Transaction Reference,Supplier Name,Line Value,Department,Category,Transaction Date,Year/Period,SME,Costs split between Mid Suffolk and Babergh District Councils Y/N,% of transaction apportioned to Babergh District Council
353045,AE WHITE SURFACING,"5,605.00",Council House Adaptions,Improvements,22-Jun-21,2122/04,SME,N,
353180,AE WHITE SURFACING,"7,170.00",C Parks General,Repairs,28-Jun-21,2122/04,SME,N,
353426,AE WHITE SURFACING,"1,068.00",Roads and Paths,Improvements,30-Jun-21,2122/04,SME,N,
353240,ANGLIAN WATER,"1,555.54",Sheltered Accommodation,Water Rates - Metered,20-Jun-21,2122/04,LGE,N,
353447,ANGLIAN WATER,739.2,Water Sampling,Sampling & Analysis,07-Jul-21,2122/04,LGE,N,
353448,ANGLIAN WATER,"1,127.27",Water Sampling,Sampling & Analysis,07-Jul-21,2122/04,LGE,N,
353449,ANGLIAN WATER,963.3,Water Sampling,Sampling & Analysis,07-Jul-21,2122/04,LGE,N,
353505,ANGLIAN WATER,400,Tenancy Services,Water Rates - Metered,28-Jun-21,2122/04,LGE,N,
353569,ANGLIAN WATER,"7,297.81",Sheltered Accommodation,Water Rates - Metered,11-May-21,2122/04,LGE,N,
353570,ANGLIAN WATER,"1,647.07",Sheltered Accommodation,Water Rates - Metered,01-May-21,2122/04,LGE,N,
353571,ANGLIAN WATER,"2,609.97",Sheltered Accommodation,Water Rates - Metered,05-May-21,2122/04,LGE,N,
353572,ANGLIAN WATER,"3,646.81",Sheltered Accommodation,Water Rates - Metered,08-May-21,2122/04,LGE,N,
353573,ANGLIAN WATER,"4,617.19",Sheltered Accommodation,Water Rates - Metered,11-May-21,2122/04,LGE,N,
353574,ANGLIAN WATER,"5,535.44",Sheltered Accommodation,Water Rates - Metered,11-May-21,2122/04,LGE,N,
353575,ANGLIAN WATER,"6,451.66",Sheltered Accommodation,Water Rates - Metered,11-May-21,2122/04,LGE,N,
353657,APSE,"2,460.00",Food & Safety (General),Agency Staff,20-Jul-21,2122/04,LGE,Y,50%
353657,APSE,"2,460.00",Animal Welfare Licensing,Agency Staff,20-Jul-21,2122/04,LGE,Y,50%
352796,AQUAJET CLEANING EQUIPMENT LTD,800,Creeting Rd Depot,Grounds & Site Maintenance,21-May-21,2122/04,SME,Y,50%
353391,ASSOCIATION OF ELECTORAL ADMINISTRATORS,"1,666.68",Electoral Registration,Misc Supplies & Services Costs,29-Jun-21,2122/04,SME,Y,50%
353392,ASSOCIATION OF ELECTORAL ADMINISTRATORS,"1,666.68",Electoral Registration,Misc Supplies & Services Costs,22-Jun-21,2122/04,SME,Y,50%
353393,ASSOCIATION OF ELECTORAL ADMINISTRATORS,"1,666.68",Electoral Registration,Misc Supplies & Services Costs,22-Jun-21,2122/04,SME,Y,50%
353014,BEN BURGESS GARDEN EQUIPMENT,349.34,Open Spaces,Plant & Vehicle - Other costs,10-Jun-21,2122/04,SME,N,
353801,BINDER LTD,142.5,Sewage Treatment Works,Contracted Services,27-Jul-21,2122/04,SME,N,
353801,BINDER LTD,211.61,Sewage Treatment Works,Repairs,27-Jul-21,2122/04,SME,N,
353874,BINDER LTD,403.49,Sewage Treatment Works,Contracted Services,30-Jul-21,2122/04,SME,N,
353875,BINDER LTD,378,Sewage Treatment Works,Contracted Services,27-Jul-21,2122/04,SME,N,
421872,BLUE FLAME (COLCHESTER) LTD,"7,923.05",Planned Maint - Heating,Property Servicing,07-Jul-21,2122/04,SME,N,
421872,BLUE FLAME (COLCHESTER) LTD,"2,066.56",Smoke Alarms (Bbgh Standard),Improvements,07-Jul-21,2122/04,SME,N,
421872,BLUE FLAME (COLCHESTER) LTD,"2,072.36",PV Panels,Contracted Services,07-Jul-21,2122/04,SME,N,
421872,BLUE FLAME (COLCHESTER) LTD,"4,307.45",Central Heating,Improvements,07-Jul-21,2122/04,SME,N,
421872,BLUE FLAME (COLCHESTER) LTD,92.2,Housing Rechargeable Works,Repairs,07-Jul-21,2122/04,SME,N,
421879,BLUE FLAME (COLCHESTER) LTD,791.73,Sheltered Accommodation,Repairs,14-Jul-21,2122/04,SME,N,
421879,BLUE FLAME (COLCHESTER) LTD,71.4,Voids Maintenance,Repairs,14-Jul-21,2122/04,SME,N,
421879,BLUE FLAME (COLCHESTER) LTD,"9,981.15",Planned Maint - Heating,Property Servicing,14-Jul-21,2122/04,SME,N,
421879,BLUE FLAME (COLCHESTER) LTD,90.58,PV Panels,Contracted Services,14-Jul-21,2122/04,SME,N,
421881,BLUE FLAME (COLCHESTER) LTD,"12,647.94",Planned Maint - Heating,Property Servicing,21-Jul-21,2122/04,SME,N,
421881,BLUE FLAME (COLCHESTER) LTD,"1,197.97",PV Panels,Contracted Services,21-Jul-21,2122/04,SME,N,
421881,BLUE FLAME (COLCHESTER) LTD,40,Housing Rechargeable Works,Repairs,21-Jul-21,2122/04,SME,N,
421886,BLUE FLAME (COLCHESTER) LTD,61.21,Voids Maintenance,Repairs,29-Jul-21,2122/04,SME,N,
421886,BLUE FLAME (COLCHESTER) LTD,"11,925.48",Planned Maint - Heating,Property Servicing,29-Jul-21,2122/04,SME,N,
421886,BLUE FLAME (COLCHESTER) LTD,184.69,PV Panels,Contracted Services,29-Jul-21,2122/04,SME,N,
353363,BOLTON BROTHERS LTD,307.5,Bring Sites,Contracted Services,30-Jun-21,2122/04,SME,N,
353051,BOWER FULLER,"1,665.30",Sheltered Accommodation,Repairs,16-Jun-21,2122/04,SME,N,
353053,BOWER FULLER,958.83,Tenancy Services,Fire Prevention,16-Jun-21,2122/04,SME,N,
353054,BOWER FULLER,529.2,Tenancy Services,Fire Prevention,18-Jun-21,2122/04,SME,N,
353055,BOWER FULLER,"1,303.20",Sheltered Accommodation,Fire Prevention,18-Jun-21,2122/04,SME,N,
353057,BOWER FULLER,920.92,Sheltered Accommodation,"Equipment, Tools & Materials",18-Jun-21,2122/04,SME,N,
353058,BOWER FULLER,704.33,Wingfield Barns,Repairs,22-Jun-21,2122/04,SME,N,
353059,BOWER FULLER,251.44,Wingfield Barns,Repairs,22-Jun-21,2122/04,SME,N,
353061,BOWER FULLER,481.2,Sheltered Accommodation,Fire Prevention,08-Jun-21,2122/04,SME,N,
353136,BUTTON & TURNER LTD,"1,517.34",Street & Major Road Cleansing,Plant & Vehicle - Other costs,03-Jun-21,2122/04,SME,N,
353213,BUTTON & TURNER LTD,718.01,Open Spaces,Plant & Vehicle - Other costs,16-Apr-21,2122/04,SME,N,
353214,BUTTON & TURNER LTD,"1,350.66",Street & Major Road Cleansing,Plant & Vehicle - Other costs,07-Apr-21,2122/04,SME,N,
353215,BUTTON & TURNER LTD,529.22,Street & Major Road Cleansing,Plant & Vehicle - Other costs,21-Apr-21,2122/04,SME,N,
353217,BUTTON & TURNER LTD,422.44,Street & Major Road Cleansing,Plant & Vehicle - Other costs,26-Apr-21,2122/04,SME,N,
353219,BUTTON & TURNER LTD,282.24,Open Spaces,Plant & Vehicle - Other costs,05-May-21,2122/04,SME,N,
353221,BUTTON & TURNER LTD,253.51,Street & Major Road Cleansing,Plant & Vehicle - Other costs,21-May-21,2122/04,SME,N,
353499,AQUASAMPLERS,535,Water Sampling,Sampling & Analysis,30-Jun-21,2122/04,SME,N,
353237,CENTRAL TYRE LTD,254.08,Building Services,Repairs,17-Jun-21,2122/04,SME,N,
353554,CHASSIS-CAB LTD,456.86,Street & Major Road Cleansing,"Equipment, Tools & Materials",04-Jun-21,2122/04,SME,N,
352370,CHIPSIDE LTD,300,C Parks General,Contracted Services,15-Apr-21,2122/04,SME,Y,50%
352810,CHIPSIDE LTD,550,C Parks General,Contracted Services,31-May-21,2122/04,SME,N,
352941,CHIPSIDE LTD,902,C Parks General,Misc Premises Costs,16-Jun-21,2122/04,SME,N,
352942,CHIPSIDE LTD,875,C Parks General,Misc Premises Costs,16-Jun-21,2122/04,SME,N,
352833,CLARKE FENCING LTD,289.33,Open Spaces,"Equipment, Tools & Materials",10-Jun-21,2122/04,SME,N,
353628,CLARKE FENCING LTD,440,Open Spaces,"Equipment, Tools & Materials",15-Jul-21,2122/04,SME,Y,50%
353629,CLARKE FENCING LTD,292.39,Open Spaces,"Equipment, Tools & Materials",15-Jul-21,2122/04,SME,N,
353247,CLARKES OF WALSHAM LTD,600.65,Building Services,"Equipment, Tools & Materials",25-Jun-21,2122/04,SME,N,
353661,CLARKES OF WALSHAM LTD,630.52,Building Services,Repairs,20-Jul-21,2122/04,SME,N,
353257,D W ADAMS LTD,"1,695.00",Building Services,Repairs,01-Jul-21,2122/04,SME,N,
353277,D W ADAMS LTD,"8,924.17",Council House Adaptions,Improvements,28-Jun-21,2122/04,SME,N,
353497,D W ADAMS LTD,840.57,Building Services,Repairs,13-Jul-21,2122/04,SME,N,
353598,DOLPHIN STAIRLIFTS (EAST ANGLIA) LTD,"3,732.00",Mand Disabled Facilities Grant,Grants,16-Jul-21,2122/04,SME,N,
353192,EAST ANGLIA CLEANING SERVICES LTD,"1,374.49",Jnt Waste Contract,General Cleaning,29-Jun-21,2122/04,SME,Y,50%
353193,EAST ANGLIA CLEANING SERVICES LTD,451.47,Open Spaces,General Cleaning,29-Jun-21,2122/04,SME,N,
353795,EAST ANGLIA CLEANING SERVICES LTD,"1,374.49",Jnt Waste Contract,General Cleaning,27-Jul-21,2122/04,SME,Y,50%
353796,EAST ANGLIA CLEANING SERVICES LTD,451.47,Open Spaces,General Cleaning,27-Jul-21,2122/04,SME,N,
353798,EAST OF ENGLAND LGA,"2,000.00",Management Team,Subscriptions,24-Jun-21,2122/04,SME,N,
353539,CIVICA ELECTION SERVICES,"1,966.25",General Elections,Commercial Printing,23-Jun-21,2122/04,LGE,N,
353540,CIVICA ELECTION SERVICES,342.5,General Elections,Commercial Printing,23-Jun-21,2122/04,LGE,N,
353541,CIVICA ELECTION SERVICES,"25,255.91",General Elections,Commercial Printing,23-Jun-21,2122/04,LGE,N,
353542,CIVICA ELECTION SERVICES,"3,262.54",General Elections,Commercial Printing,05-Jul-21,2122/04,LGE,N,
352896,ENGLISH SECURITY,144.2,Creeting Rd Depot,Fire Prevention,07-Jun-21,2122/04,SME,Y,50%
352896,ENGLISH SECURITY,82.4,Other HRA Temp Accommodation,Fire Prevention,07-Jun-21,2122/04,SME,N,
352896,ENGLISH SECURITY,185.4,Responsive maintenance,Fire Prevention,07-Jun-21,2122/04,SME,N,
352896,ENGLISH SECURITY,"2,492.61",Sheltered Accommodation,Fire Prevention,07-Jun-21,2122/04,SME,N,
352896,ENGLISH SECURITY,355.35,Temporary Accommodation,Fire Prevention,07-Jun-21,2122/04,SME,N,
352896,ENGLISH SECURITY,"2,430.80",Tenancy Services,Fire Prevention,07-Jun-21,2122/04,SME,N,
352896,ENGLISH SECURITY,180.25,Wingfield Barns,Fire Prevention,07-Jun-21,2122/04,SME,N,
352910,ENGLISH SECURITY,268.63,Sheltered Accommodation,Emergency Lighting,30-Mar-21,2122/04,SME,N,
353072,ENGLISH SECURITY,562.02,Sheltered Accommodation,Fire Prevention,14-Jun-21,2122/04,SME,N,
353076,ENGLISH SECURITY,704.24,Sheltered Accommodation,Repairs,14-Jun-21,2122/04,SME,N,
353633,ENGLISH SECURITY,280.6,Sheltered Accommodation,Emergency Lighting,08-Jul-21,2122/04,SME,N,
353634,ENGLISH SECURITY,281.01,Responsive maintenance,Fire Prevention,08-Jul-21,2122/04,SME,N,
352822,FELLBRIDGE BUILDING SERVICES,"3,742.09",Building Services,Repairs,10-Jun-21,2122/04,SME,N,
352879,FELLBRIDGE BUILDING SERVICES,"8,416.69",Building Services,Repairs,14-Jun-21,2122/04,SME,N,
353089,FELLBRIDGE BUILDING SERVICES,"3,285.28",Building Services,Repairs,24-Jun-21,2122/04,SME,N,
353090,FELLBRIDGE BUILDING SERVICES,"8,304.15",Building Services,Repairs,24-Jun-21,2122/04,SME,N,
353091,FELLBRIDGE BUILDING SERVICES,933.1,Building Services,Repairs,24-Jun-21,2122/04,SME,N,
353135,FELLBRIDGE BUILDING SERVICES,"10,560.44",Building Services,Repairs,28-Jun-21,2122/04,SME,N,
353378,FELLBRIDGE BUILDING SERVICES,"8,508.08",Building Services,Repairs,05-Jul-21,2122/04,SME,N,
353487,FELLBRIDGE BUILDING SERVICES,"2,090.35",Building Services,Repairs,12-Jul-21,2122/04,SME,N,
353488,FELLBRIDGE BUILDING SERVICES,286.27,Building Services,Repairs,12-Jul-21,2122/04,SME,N,
353579,FELLBRIDGE BUILDING SERVICES,"10,748.83",Building Services,Repairs,15-Jul-21,2122/04,SME,N,
353705,FELLBRIDGE BUILDING SERVICES,"8,889.43",Building Services,Repairs,22-Jul-21,2122/04,SME,N,
353706,FELLBRIDGE BUILDING SERVICES,"10,369.49",Building Services,Repairs,22-Jul-21,2122/04,SME,N,
352963,FORE-MOST GARAGE DOORS LTD,428.06,Building Services,Repairs,31-Mar-21,2122/04,SME,N,
353383,GB ADAPTIONS LTD,"7,262.00",Mand Disabled Facilities Grant,Grants,07-Jul-21,2122/04,SME,N,
353474,G4S CASH SOLUTIONS LTD,514.8,Financial Servs,Contracted Services,02-May-21,2122/04,LGE,N,
353475,G4S CASH SOLUTIONS LTD,720.72,Financial Servs,Contracted Services,02-May-21,2122/04,LGE,N,
353418,GIPPING PRESS LTD,625,Needham Lake Vis Centre (CAP),"Equipment, Tools & Materials",29-Jun-21,2122/04,SME,N,
352584,GLASDON UK LTD,263,Street & Major Road Cleansing,"Equipment, Tools & Materials",27-May-21,2122/04,LGE,N,
353105,HUDSON MEDIA PARTNERSHIP LTD,395,RHSSF,Advertising&mkting (non-staff),24-Jun-21,2122/04,SME,Y,50%
353593,JMP SERVICES LTD,"2,000.00",Mendlesham - New Build,Contracted Services,05-Jun-21,2122/04,SME,N,
353659,JOHN MILES & SONS,"1,500.00",Jnt Waste Contract,Rent Payable,07-Jul-21,2122/04,SME,N,
353114,KEYWAYS THE LOCKSMITHS LTD,360,Street & Major Road Cleansing,"Equipment, Tools & Materials",25-Jun-21,2122/04,SME,N,
353244,KEYWAYS THE LOCKSMITHS LTD,360,Sheltered Accommodation,Misc Premises Costs,30-Jun-21,2122/04,SME,N,
353245,KEYWAYS THE LOCKSMITHS LTD,626,Sheltered Accommodation,Repairs,30-Jun-21,2122/04,SME,N,
353726,KEYWAYS THE LOCKSMITHS LTD,606.7,Other Temp Accommodation,"Equipment, Tools & Materials",23-Jul-21,2122/04,SME,N,
353727,KEYWAYS THE LOCKSMITHS LTD,550,Other Temp Accommodation,"Equipment, Tools & Materials",23-Jul-21,2122/04,SME,N,
353190,LJ GAMMER (STOWMARKET) LTD,397.35,Building Services,Plant & Vehicle - Other costs,29-Jun-21,2122/04,SME,N,
353024,M & H CIVIL ENGINEERING LTD,386.5,Building Services,Repairs,22-Jun-21,2122/04,SME,N,
353025,M & H CIVIL ENGINEERING LTD,567.05,Building Services,Repairs,22-Jun-21,2122/04,SME,N,
353500,M & H CIVIL ENGINEERING LTD,886.8,Building Services,Repairs,12-Jul-21,2122/04,SME,N,
353581,MARTIN BROKERS ( UK ) PLC,"1,693.15",Treasury Management,Prof & Consultancy Fees,30-Jun-21,2122/04,LGE,N,
352801,MATERIAL CHANGE COMPOSTING LTD,"1,716.15",Open Spaces,Waste Disposal,31-May-21,2122/04,LGE,N,
353186,MB TREES (EAST ANGLIA) LTD,"1,275.00",Tenancy Services,Tree felling/maintenance,29-Jun-21,2122/04,SME,N,
353188,MB TREES (EAST ANGLIA) LTD,"1,480.00",Public Tree Programme,Tree felling/maintenance,29-Jun-21,2122/04,SME,N,
353189,MB TREES (EAST ANGLIA) LTD,936.25,Amenity Areas,Tree felling/maintenance,29-Jun-21,2122/04,SME,N,
353402,MB TREES (EAST ANGLIA) LTD,980,Public Tree Programme,Tree felling/maintenance,06-Jul-21,2122/04,SME,N,
353450,MB TREES (EAST ANGLIA) LTD,900,Public Tree Programme,Tree felling/maintenance,08-Jul-21,2122/04,SME,N,
353580,MB TREES (EAST ANGLIA) LTD,850,Amenity Areas,Tree felling/maintenance,15-Jul-21,2122/04,SME,N,
353582,MB TREES (EAST ANGLIA) LTD,640,Public Tree Programme,Tree felling/maintenance,15-Jul-21,2122/04,SME,N,
353653,MB TREES (EAST ANGLIA) LTD,975,Public Tree Programme,Tree felling/maintenance,15-Jul-21,2122/04,SME,N,
353125,MID SUFFOLK FENCING LTD,951.6,Building Services,Repairs,25-Jun-21,2122/04,SME,N,
353182,MID SUFFOLK FENCING LTD,980,Building Services,Repairs,25-Jun-21,2122/04,SME,N,
353700,MIXBROW LTD,"55,265.00",Pld Maint/ Enhncmts-C Parks,Annual Bldg Maint Contracts,19-Jul-21,2122/04,SME,N,
421905,NEEDHAM MARKET TOWN COUNCIL,"2,548.26",Street & Major Road Cleansing,Contributions to other Bodies,29-Jul-21,2122/04,SME,N,
353476,NORTHGATE PUBLIC SERVICES (UK) LTD,"2,500.00",ICT,Software Licnse (Line of Bus) ,09-Jul-21,2122/04,LGE,Y,50%
353362,PITMAN BROTHERS (DECORATORS) LTD,"1,580.00",Building Services,Repairs,11-Jun-21,2122/04,SME,N,
353387,PRO-FLAT SPECIALIST SERVICES LTD,992,Building Services,Repairs,30-Jun-21,2122/04,SME,N,
353038,REID PLUMBING & HEATING CONTRACTORS LTD,"8,593.32",Central Heating,Major Contracts,22-Jun-21,2122/04,SME,N,
353205,REID PLUMBING & HEATING CONTRACTORS LTD,"4,087.83",Central Heating,Major Contracts,30-Jun-21,2122/04,SME,N,
353207,REID PLUMBING & HEATING CONTRACTORS LTD,"4,860.02",Central Heating,Major Contracts,30-Jun-21,2122/04,SME,N,
353414,REID PLUMBING & HEATING CONTRACTORS LTD,"28,978.71",Central Heating,Major Contracts,06-Jul-21,2122/04,SME,N,
353524,REID PLUMBING & HEATING CONTRACTORS LTD,"9,759.57",Central Heating,Major Contracts,13-Jul-21,2122/04,SME,N,
353532,REID PLUMBING & HEATING CONTRACTORS LTD,"9,984.22",Central Heating,Major Contracts,14-Jul-21,2122/04,SME,N,
353664,REID PLUMBING & HEATING CONTRACTORS LTD,"18,968.20",Central Heating,Major Contracts,20-Jul-21,2122/04,SME,N,
353675,REID PLUMBING & HEATING CONTRACTORS LTD,"13,719.27",Central Heating,Major Contracts,21-Jul-21,2122/04,SME,N,
353719,REID PLUMBING & HEATING CONTRACTORS LTD,"8,703.71",Central Heating,Major Contracts,07-Jul-21,2122/04,SME,N,
353485,RICOH UK LTD,703.64,ICT,Photocopying,11-Jul-21,2122/04,LGE,Y,50%
353249,S SACKER (CLAYDON) LTD,563.28,Building Services,Waste Disposal,30-Jun-21,2122/04,SME,Y,50%
353289,S SACKER (CLAYDON) LTD,468.53,Building Services,Waste Disposal,22-Jun-21,2122/04,SME,Y,50%
353290,S SACKER (CLAYDON) LTD,274.39,Building Services,Waste Disposal,23-Jun-21,2122/04,SME,Y,50%
353603,S SACKER (CLAYDON) LTD,813.45,Building Services,Waste Disposal,12-Jul-21,2122/04,SME,Y,50%
352774,SEAGER HOME SOLUTIONS,"5,796.78",Building Services,Repairs,28-May-21,2122/04,SME,N,
353027,SOLUTIONS ON SECURITY SERVICES,"2,681.20",Sheltered Accommodation,Repairs,22-Jun-21,2122/04,SME,N,
353566,SOLUTIONS ON SECURITY SERVICES,580,Wingfield Barns,Fire Prevention,01-Jul-21,2122/04,SME,N,
353578,SOLUTIONS ON SECURITY SERVICES,"1,186.13",Sheltered Accommodation,Repairs,15-Jul-21,2122/04,SME,N,
353683,SOLUTIONS ON SECURITY SERVICES,605,Creeting Rd Depot,Security Systems,21-Jul-21,2122/04,SME,Y,50%
353466,SPALDINGS LTD,567,RHSSF,"Equipment, Tools & Materials",09-Jul-21,2122/04,SME,N,
353376,THERMATECH,475,Sheltered Accommodation,Fire Prevention,05-Jul-21,2122/04,SME,N,
353377,THERMATECH,"10,760.00",Sheltered Accommodation,Fire Prevention,05-Jul-21,2122/04,SME,N,
353714,THERMATECH,475,Sheltered Accommodation,Fire Prevention,22-Jul-21,2122/04,SME,N,
353472,THOMPSON COOPER LTD,620.5,Street & Major Road Cleansing,Bins,12-Jul-21,2122/04,SME,N,
353473,THOMPSON COOPER LTD,912.5,RHSSF,"Equipment, Tools & Materials",12-Jul-21,2122/04,SME,N,
353552,THOMPSON COOPER LTD,292,Street & Major Road Cleansing,Bins,06-Jul-21,2122/04,SME,N,
353782,THOMPSON COOPER LTD,912.5,Street & Major Road Cleansing,Bins,26-Jul-21,2122/04,SME,N,
353692,TOMLINSON GROUNDCARE,"34,054.00",S106/CIL Plant Renewals,Plant & Vehicle - Purchase,22-Jul-21,2122/04,SME,N,
353198,TRUCKEAST LTD,264,Street & Major Road Cleansing,Plant & Vehicle - Other costs,29-Jun-21,2122/04,LGE,N,
352964,WINDIMAN LTD,288.14,Building Services,Repairs,17-Jun-21,2122/04,SME,N,
353003,WORKWEAR (EAST ANGLIA) LTD,196.4,Open Spaces,Protective clothing,03-Jun-21,2122/04,SME,N,
353003,WORKWEAR (EAST ANGLIA) LTD,196.4,Street & Major Road Cleansing,Protective clothing,03-Jun-21,2122/04,SME,N,
353780,WORKWEAR (EAST ANGLIA) LTD,299,Business Cont/Emergency Plan,Protective clothing,19-Jul-21,2122/04,SME,N,
353184,ARCHANT COMMUNITY MEDIA LTD,"1,269.48",Devt Management - Apps,Advertising&mkting (non-staff),26-Jun-21,2122/04,LGE,N,
353382,ARCHANT COMMUNITY MEDIA LTD,300,RHSSF,Advertising&mkting (non-staff),05-Jul-21,2122/04,LGE,Y,49%
353490,ARCHANT COMMUNITY MEDIA LTD,"1,050.60",Devt Management - Apps,Advertising&mkting (non-staff),10-Jul-21,2122/04,LGE,N,
353707,ARCHANT COMMUNITY MEDIA LTD,770.44,Devt Management - Apps,Advertising&mkting (non-staff),19-Jul-21,2122/04,LGE,N,
353367,LOCAL GOVERNMENT ASSOCIATION,379,Governance,Conference Expenses,05-Jul-21,2122/04,LGE,N,
353369,LOCAL GOVERNMENT ASSOCIATION,379,Management Team,Conference Expenses,05-Jul-21,2122/04,LGE,Y,50%
353521,IDOX SOFTWARE LTD,"29,058.43",ICT,Line of Business Applications,13-Jul-21,2122/04,SME,Y,50%
353097,DARDAN SECURITY,395,Wingfield Barns,Annual Bldg Maint Contracts,11-Jun-21,2122/04,LGE,N,
353422,NPS PROPERTY CONSULTANTS LTD,"2,560.00","11 Market Place, Stowmarket",Prof & Consultancy Fees,05-Jul-21,2122/04,LGE,N,
352997,IPSWICH BOROUGH COUNCIL,"255,588.27",Shared Revenues Partnership,Major Contracts,15-Jun-21,2122/04,LGE,N,
353766,IPSWICH BOROUGH COUNCIL,"255,586.48",Shared Revenues Partnership,Major Contracts,23-Jul-21,2122/04,LGE,N,
353850,SERCO LTD,"4,377.00",Domestic Waste,Refuse Contract,15-Jul-21,2122/04,LGE,Y,50%
353851,SERCO LTD,"22,179.86",Trade Waste,Refuse Contract,15-Jul-21,2122/04,LGE,Y,60%
353851,SERCO LTD,"77,664.58",Garden Waste,Refuse Contract,15-Jul-21,2122/04,LGE,Y,47.50%
353851,SERCO LTD,"292,516.56",Domestic Waste,Refuse Contract,15-Jul-21,2122/04,LGE,Y,47.50%
353069,TRAVIS PERKINS TRADING CO LTD,316.61,Building Services,"Equipment, Tools & Materials",18-Jun-21,2122/04,LGE,Y,50%
353070,TRAVIS PERKINS TRADING CO LTD,615,Building Services,"Equipment, Tools & Materials",18-Jun-21,2122/04,LGE,Y,50%
353138,TRAVIS PERKINS TRADING CO LTD,305,Building Services,"Equipment, Tools & Materials",23-Jun-21,2122/04,LGE,Y,50%
353380,TRAVIS PERKINS TRADING CO LTD,350,Building Services,"Equipment, Tools & Materials",30-Jun-21,2122/04,LGE,Y,50%
353428,TRAVIS PERKINS TRADING CO LTD,"36,956.96",Building Services,"Equipment, Tools & Materials",01-Jul-21,2122/04,LGE,Y,53%
353455,TRAVIS PERKINS TRADING CO LTD,679,Building Services,"Equipment, Tools & Materials",07-Jul-21,2122/04,LGE,Y,50%
353456,TRAVIS PERKINS TRADING CO LTD,457.49,Building Services,"Equipment, Tools & Materials",07-Jul-21,2122/04,LGE,Y,50%
353680,TRAVIS PERKINS TRADING CO LTD,455,Building Services,"Equipment, Tools & Materials",14-Jul-21,2122/04,LGE,Y,50%
421883,EDF ENERGY,115.08,"11 Market Place, Stowmarket",Electricity,09-Jul-21,2122/04,LGE,N,
421883,EDF ENERGY,311.25,C Parks General,Electricity,09-Jul-21,2122/04,LGE,N,
421883,EDF ENERGY,442.64,Creeting Rd Depot,Electricity,09-Jul-21,2122/04,LGE,Y,50%
421883,EDF ENERGY,21.38,General/Supervision & Mgmt,Electricity,09-Jul-21,2122/04,LGE,N,
421883,EDF ENERGY,270.25,Headquarters General,Electricity,09-Jul-21,2122/04,LGE,N,
421883,EDF ENERGY,"7,439.52",Leisure Contract,Electricity,09-Jul-21,2122/04,LGE,N,
421883,EDF ENERGY,225.23,Open Spaces,Electricity,09-Jul-21,2122/04,LGE,N,
421883,EDF ENERGY,344.88,Other HRA Temp Accommodation,Electricity,09-Jul-21,2122/04,LGE,N,
421883,EDF ENERGY,31.09,Public Conveniences,Electricity,09-Jul-21,2122/04,LGE,N,
421883,EDF ENERGY,167.64,Pure Gym & Adjacent Building,Electricity,09-Jul-21,2122/04,LGE,N,
421883,EDF ENERGY,1.69,Recycling Centre,Electricity,09-Jul-21,2122/04,LGE,N,
421883,EDF ENERGY,324.88,Sewage Treatment Works,Electricity,09-Jul-21,2122/04,LGE,N,
421883,EDF ENERGY,"7,158.93",Sheltered Accommodation,Electricity,09-Jul-21,2122/04,LGE,N,
421883,EDF ENERGY,33.5,Tacon Close Eye TDP,Electricity,09-Jul-21,2122/04,LGE,Y,50%
421883,EDF ENERGY,354.16,Temporary Accommodation,Electricity,09-Jul-21,2122/04,LGE,N,
421883,EDF ENERGY,814.19,Tenancy Services,Electricity,09-Jul-21,2122/04,LGE,N,
421883,EDF ENERGY,676.05,Wingfield Barns,Electricity,09-Jul-21,2122/04,LGE,N,
421880,GPC BARCLAYS,"2,325.86",Current Assets,Barclaycard Control,14-Jul-21,2122/04,LGE,Y,17%
421871,ALLSTAR BUSINESS SOLUTIONS LTD,80.97,Tenancy Services,Plant & Vehicle Fuel,30-Jun-21,2122/04,SME,Y,50%
421871,ALLSTAR BUSINESS SOLUTIONS LTD,"7,398.47",Building Services,Plant & Vehicle Fuel,30-Jun-21,2122/04,SME,Y,50%
421917,COMPUTERSHARE ,"1,181.00",Current Assets,ChildCare Vouchers-Control,29-Jul-21,2122/04,LGE,N,
421887,BACTON PARISH COUNCIL,347.49,Street & Major Road Cleansing,Contributions to other Bodies,29-Jul-21,2122/04,SME,N,
421888,BARHAM PARISH COUNCIL,579.15,Street & Major Road Cleansing,Contributions to other Bodies,29-Jul-21,2122/04,SME,N,
421889,BARKING PARISH COUNCIL,347.49,Street & Major Road Cleansing,Contributions to other Bodies,29-Jul-21,2122/04,SME,N,
421891,BOTESDALE PARISH COUNCIL,347.49,Street & Major Road Cleansing,Contributions to other Bodies,29-Jul-21,2122/04,SME,N,
421892,BRAMFORD PARISH COUNCIL,579.15,Street & Major Road Cleansing,Contributions to other Bodies,29-Jul-21,2122/04,SME,N,
421893,CLAYDON & WHITTON PARISH COUNCIL,"1,158.30",Street & Major Road Cleansing,Contributions to other Bodies,29-Jul-21,2122/04,SME,N,
353749,DEBENHAM PARISH COUNCIL,800,Grants & Contrbns,Contributions & Donations,23-Jul-21,2122/04,SME,N,
421894,DEBENHAM PARISH COUNCIL,"2,055.98",Street & Major Road Cleansing,Contributions to other Bodies,29-Jul-21,2122/04,SME,N,
353742,DEBENHAM VILLAGE HALL & PLAYING FIELD TR,500,Grants & Contrbns,Contributions & Donations,23-Jul-21,2122/04,SME,N,
353747,DEBENHAM VILLAGE HALL & PLAYING FIELD TR,"1,000.00",Grants & Contrbns,Contributions & Donations,23-Jul-21,2122/04,SME,N,
421895,EYE TOWN COUNCIL,"2,316.60",Street & Major Road Cleansing,Contributions to other Bodies,29-Jul-21,2122/04,SME,N,
421896,FRESSINGFIELD PARISH COUNCIL,521.24,Street & Major Road Cleansing,Contributions to other Bodies,29-Jul-21,2122/04,SME,N,
421897,GREAT BLAKENHAM PARISH COUNCIL,"1,158.30",Street & Major Road Cleansing,Contributions to other Bodies,29-Jul-21,2122/04,SME,N,
421899,HARLESTON PARISH MEETING,579.15,Street & Major Road Cleansing,Contributions to other Bodies,29-Jul-21,2122/04,SME,N,
421900,HAUGHLEY PARISH COUNCIL,579.15,Street & Major Road Cleansing,Contributions to other Bodies,29-Jul-21,2122/04,SME,N,
353746,HOME -START MID SUFFOLK,"2,000.00",Grants & Contrbns,Contributions & Donations,23-Jul-21,2122/04,SME,N,
421902,HOXNE PARISH COUNCIL,579.15,Street & Major Road Cleansing,Contributions to other Bodies,29-Jul-21,2122/04,SME,N,
353736,LAXFIELD PARISH COUNCIL,"1,500.00",Grants & Contrbns,Contributions & Donations,23-Jul-21,2122/04,SME,N,
421904,MENDLESHAM PARISH COUNCIL,405.41,Street & Major Road Cleansing,Contributions to other Bodies,29-Jul-21,2122/04,SME,N,
353785,MUSEUM OF EAST ANGLIAN LIFE,"15,000.00",RHSSF,Advertising&mkting (non-staff),26-Jul-21,2122/04,SME,N,
353710,NEW ANGLIA LOCAL ENTERPRISE PARTNERSHIP,"7,000.00",Management Team,Subscriptions,05-Jul-21,2122/04,SME,N,
353735,NORTON PARISH COUNCIL,"1,500.00",Grants & Contrbns,Contributions & Donations,23-Jul-21,2122/04,SME,N,
421907,RICKINGHALL INFERIOR AND RICKINGHALL SUP,463.32,Street & Major Road Cleansing,Contributions to other Bodies,29-Jul-21,2122/04,SME,N,
353741,STONHAM ASPAL PARISH COUNCIL,637.83,Grants & Contrbns,Contributions & Donations,23-Jul-21,2122/04,SME,N,
353740,STONHAM PARVA PARISH COUNCIL,500,Grants & Contrbns,Contributions & Donations,23-Jul-21,2122/04,SME,N,
421909,STOWUPLAND PARISH COUNCIL,810.81,Street & Major Road Cleansing,Contributions to other Bodies,29-Jul-21,2122/04,SME,N,
421910,STRADBROKE PARISH COUNCIL,984.56,Street & Major Road Cleansing,Contributions to other Bodies,29-Jul-21,2122/04,SME,N,
421911,THURSTON PARISH COUNCIL,984.56,Street & Major Road Cleansing,Contributions to other Bodies,29-Jul-21,2122/04,SME,N,
353734,WATTISFIELD PARISH COUNCIL,"1,000.00",Grants & Contrbns,Contributions & Donations,23-Jul-21,2122/04,SME,N,
421913,WETHERDEN PARISH COUNCIL,347.49,Street & Major Road Cleansing,Contributions to other Bodies,29-Jul-21,2122/04,SME,N,
421914,WOOLPIT PARISH COUNCIL,694.98,Street & Major Road Cleansing,Contributions to other Bodies,29-Jul-21,2122/04,SME,N,
352537,SUFFOLK COUNTY COUNCIL,"2,305.00",Land Chgs,Contracted Services,26-May-21,2122/04,LGE,N,
352574,SUFFOLK COUNTY COUNCIL,400,Organisational Devt,Contracted Services,27-May-21,2122/04,LGE,Y,50%
352871,SUFFOLK COUNTY COUNCIL,"3,050.00",Land Chgs,Contracted Services,10-Jun-21,2122/04,LGE,N,
353203,SUFFOLK COUNTY COUNCIL,"25,855.64",Domestic Waste,MRF Disposal,29-Jun-21,2122/04,LGE,N,
353203,SUFFOLK COUNTY COUNCIL,"21,508.80",Garden Waste,Garden Waste Disposal,29-Jun-21,2122/04,LGE,N,
353273,SUFFOLK COUNTY COUNCIL,525,Organisational Devt,Contracted Services,30-Jun-21,2122/04,LGE,Y,50%
353408,SUFFOLK COUNTY COUNCIL,970.25,Organisational Devt,Contracted Services,06-Jul-21,2122/04,LGE,Y,50%
353440,SUFFOLK COUNTY COUNCIL,"112,726.89",ICT,Software Licences (Corporate) ,07-Jul-21,2122/04,LGE,Y,50%
353686,SUFFOLK COUNTY COUNCIL,"1,786.56",General Rechargeable Works,Misc Supplies & Services Costs,20-Jul-21,2122/04,LGE,N,
353731,SUFFOLK COUNTY COUNCIL,"2,060.00",Land Chgs,Contracted Services,22-Jul-21,2122/04,LGE,N,
353557,STOWMARKET TOWN COUNCIL,"10,000.00",Community Safety-General,"Equipment, Tools & Materials",30-Jun-21,2122/04,SME,N,
353134,PIRTEK IPSWICH,300.72,Open Spaces,Plant & Vehicle - Other costs,25-Jun-21,2122/04,SME,N,
353786,TELEFONICA UK LIMITED - O2,909.5,ICT,Telephone Costs,27-Jul-21,2122/04,LGE,Y,50%
353502,SUFFOLK COUNTY COUNCIL - PENSIONS ACCT,"1,500.00",Ext Audit,Audit Fees,08-Jul-21,2122/04,LGE,N,
353543,SUFFOLK COUNTY COUNCIL - PENSIONS ACCT,"1,225.00",Ext Audit,Audit Fees,13-Jul-21,2122/04,LGE,N,
353151,KENNET EQUIPMENT LEASING,283.05,Creeting Rd Depot,Operating Lease Payments,28-Jun-21,2122/04,SME,Y,50%
353774,KENNET EQUIPMENT LEASING,283.05,Creeting Rd Depot,Operating Lease Payments,26-Jul-21,2122/04,SME,Y,50%
353104,PREMIER BODYWORKS,"1,794.41",Street & Major Road Cleansing,Plant & Vehicle - Other costs,21-Jun-21,2122/04,SME,N,
353546,PREMIER BODYWORKS,450,Street & Major Road Cleansing,Plant & Vehicle - Other costs,14-Jul-21,2122/04,SME,Y,50%
353641,MID SUFFOLK CITIZENS ADVICE BUREAU,"23,875.00",Grants & Contrbns,Grants,19-Jul-21,2122/04,SME,N,
351968,WHYBROW PROPERTY SOLUTIONS LTD,"10,754.00",Building Services,Repairs,28-Apr-21,2122/04,SME,N,
352303,WHYBROW PROPERTY SOLUTIONS LTD,"12,621.91",Building Services,Repairs,12-May-21,2122/04,SME,N,
352304,WHYBROW PROPERTY SOLUTIONS LTD,"2,169.66",Building Services,Repairs,12-May-21,2122/04,SME,N,
352582,WHYBROW PROPERTY SOLUTIONS LTD,"7,666.29",Building Services,Repairs,26-May-21,2122/04,SME,N,
352583,WHYBROW PROPERTY SOLUTIONS LTD,"3,082.78",Building Services,Repairs,26-May-21,2122/04,SME,N,
352588,WHYBROW PROPERTY SOLUTIONS LTD,"5,134.25",Building Services,Repairs,26-May-21,2122/04,SME,N,
352697,WHYBROW PROPERTY SOLUTIONS LTD,"6,017.90",Building Services,Repairs,03-Jun-21,2122/04,SME,N,
352845,WHYBROW PROPERTY SOLUTIONS LTD,"1,339.29",Building Services,Repairs,10-Jun-21,2122/04,SME,N,
353118,WHYBROW PROPERTY SOLUTIONS LTD,"6,120.77",Building Services,Repairs,24-Jun-21,2122/04,SME,N,
353491,WHYBROW PROPERTY SOLUTIONS LTD,"10,000.00",Council House Adaptions,Improvements,08-Jul-21,2122/04,SME,N,
353531,WHYBROW PROPERTY SOLUTIONS LTD,"9,822.03",Responsive maintenance,Repairs,08-Jul-21,2122/04,SME,N,
353715,WHYBROW PROPERTY SOLUTIONS LTD,495,Temporary Accommodation,Fire Prevention,21-Jul-21,2122/04,SME,N,
353010,L A C CLEANING CONTRACTORS LIMITED,491.5,Building Services,Repairs,21-Jun-21,2122/04,SME,N,
353401,L A C CLEANING CONTRACTORS LIMITED,495.5,Temporary Accommodation,General Cleaning,06-Jul-21,2122/04,SME,N,
353750,L A C CLEANING CONTRACTORS LIMITED,798.41,Temporary Accommodation,General Cleaning,26-Jul-21,2122/04,SME,N,
353379,ARMSTRONG YORK ASBESTOS ENVIRONMENTAL,"11,864.15",Asbestos Survey & Reinspection,Prof & Consultancy Fees,31-May-21,2122/04,SME,N,
353605,ARMSTRONG YORK ASBESTOS ENVIRONMENTAL,"11,350.74",Asbestos Survey & Reinspection,Prof & Consultancy Fees,30-Jun-21,2122/04,SME,N,
351812,LONDON SOUTH BANK UNIVERSITY,"6,935.00",Organisational Devt,Post-Entry Training,05-Oct-20,2122/04,LGE,Y,50%
353389,THE MIX STOWMARKET LTD,"15,000.00",MyGo,Rent Payable,07-Jul-21,2122/04,SME,N,
421868,BT DIRECT DEBIT,"10,644.11",ICT,Telephone Costs,21-Jun-21,2122/04,LGE,Y,50%
353296,TRADITION (UK) LTD,"16,445.20",Treasury Management,Prof & Consultancy Fees,30-Jun-21,2122/04,LGE,N,
353433,CHILDCARE VOUCHER LTD EDENRED (UK GROUP),403.75,Health & Safety,"Equipment, Tools & Materials",12-Jul-21,2122/04,SME,N,
352581,DALROD (UK) LTD,294,Creeting Rd Depot,Grounds & Site Maintenance,26-May-21,2122/04,SME,Y,50%
353123,OPUS PEOPLE SOLUTIONS LTD,"1,243.64",Current Liabilities,Agency Staff Holding A/C,24-Jun-21,2122/04,SME,N,
353360,OPUS PEOPLE SOLUTIONS LTD,"1,248.58",Current Liabilities,Agency Staff Holding A/C,01-Jul-21,2122/04,SME,N,
353486,OPUS PEOPLE SOLUTIONS LTD,"1,122.36",Current Liabilities,Agency Staff Holding A/C,08-Jul-21,2122/04,SME,N,
353625,OPUS PEOPLE SOLUTIONS LTD,735.48,Current Liabilities,Agency Staff Holding A/C,15-Jul-21,2122/04,SME,N,
353769,OPUS PEOPLE SOLUTIONS LTD,307.58,Current Liabilities,Agency Staff Holding A/C,22-Jul-21,2122/04,SME,N,
353674,CORNERSTONE BARRISTERS,375,Devt Management - Apps,Legal Expenses,16-Jul-21,2122/04,SME,N,
353694,CORNERSTONE BARRISTERS,"3,000.00",Devt Policy & Local Plans,Misc Legal Expenses,29-Jun-21,2122/04,SME,N,
353820,CORNERSTONE BARRISTERS,"2,500.00",Devt Management - Apps,Legal Expenses,13-Jul-21,2122/04,SME,N,
353821,CORNERSTONE BARRISTERS,"2,000.00",Planning Enforcement,Legal Expenses,25-May-21,2122/04,SME,N,
353778,LLG ENTERPRISES LTD T/AS LLG LEGAL TRAIN,398,Governance,Training,13-May-21,2122/04,SME,Y,50%
353424,VERTAS GROUP LTD,"1,485.00",Unapportionable Central OHs,Security Systems,31-May-21,2122/04,SME,N,
353857,VERTAS GROUP LTD,"4,557.00",Stowmarket CAP,Operating Lease Payments,29-Jul-21,2122/04,SME,Y,50%
353857,VERTAS GROUP LTD,"3,307.00",Stowmarket CAP,Contracted Services,29-Jul-21,2122/04,SME,Y,50%
353858,VERTAS GROUP LTD,"41,000.00",Endeavour House - HQ,Operating Lease Payments,29-Jul-21,2122/04,SME,Y,50%
353858,VERTAS GROUP LTD,"42,500.00",Endeavour House - HQ,Contracted Services,29-Jul-21,2122/04,SME,Y,50%
353279,4PRINCIPLES CONSTRUCTION LTD,"6,389.38",Mand Disabled Facilities Grant,Grants,01-Jul-21,2122/04,SME,N,
353460,BIRKETTS LLP,285,Organisational Devt,Legal Expenses,30-Jun-21,2122/04,LGE,Y,50%
353132,CIRRUS RESEARCH PLC,379.97,Environmental Protection,Contracted Services,25-Jun-21,2122/04,SME,Y,50%
353388,CIRRUS RESEARCH PLC,"1,033.50",Environmental Protection,Contracted Services,01-Jul-21,2122/04,SME,Y,50%
352831,FORESOLUTIONS LTD,272.92,Open Spaces,Plant & Vehicle - Other costs,10-Jun-21,2122/04,SME,N,
352831,FORESOLUTIONS LTD,57.8,Street & Major Road Cleansing,Plant & Vehicle - Other costs,10-Jun-21,2122/04,SME,N,
353204,FORESOLUTIONS LTD,240,Open Spaces,Plant & Vehicle - Other costs,29-Jun-21,2122/04,SME,N,
353204,FORESOLUTIONS LTD,240,Street & Major Road Cleansing,Plant & Vehicle - Other costs,29-Jun-21,2122/04,SME,N,
353535,FORESOLUTIONS LTD,468.7,Open Spaces,Plant & Vehicle - Other costs,09-Jul-21,2122/04,SME,N,
353535,FORESOLUTIONS LTD,188.6,Street & Major Road Cleansing,Plant & Vehicle - Other costs,09-Jul-21,2122/04,SME,N,
353529,EYE WORKS 4 U,"1,000.00",Grants & Contrbns,Contributions & Donations,10-Jul-21,2122/04,SME,N,
353840,DAVID BLACK & SON LTD,540.01,Current Assets,Debtors -  CIL,27-Jul-21,2122/04,SME,N,
353640,BACTON VILLAGE HALL,260,Community Fund Projects-Grants,Grants,19-Jul-21,2122/04,SME,N,
353385,MENDLESHAM MEDICAL GROUP,"29,520.00",CIL Funded REFCUS,Grants,06-Jul-21,2122/04,SME,N,
353243,GRANGEWOOD PLASTIC PACKAGING LTD,"2,750.00",Domestic Waste,Refuse Sacks,23-Jun-21,2122/04,SME,N,
353243,GRANGEWOOD PLASTIC PACKAGING LTD,"2,600.00",Domestic Waste,Refuse Sacks,23-Jun-21,2122/04,SME,N,
353809,GRANGEWOOD PLASTIC PACKAGING LTD,"5,350.00",Domestic Waste,Refuse Sacks,21-Jul-21,2122/04,SME,N,
353809,GRANGEWOOD PLASTIC PACKAGING LTD,"1,620.00",Domestic Waste,Refuse Sacks,21-Jul-21,2122/04,SME,N,
353501,PUBLIC SEWER SERVICES,"2,816.79",Building Services,Repairs,30-Jun-21,2122/04,SME,N,
353508,PUBLIC SEWER SERVICES,574.19,Building Services,Repairs,30-Jun-21,2122/04,SME,N,
353650,PUBLIC SEWER SERVICES,"1,584.77",Building Services,Repairs,20-Jul-21,2122/04,SME,N,
353691,PLACE SERVICES,560,Nghbrhd Plan Designations,Prof & Consultancy Fees,12-May-21,2122/04,SME,N,
353331,THE STOWMARKET GLASS COMPANY LTD,260.12,Building Services,Repairs,16-Jun-21,2122/04,SME,N,
353341,THE STOWMARKET GLASS COMPANY LTD,257.48,Building Services,Repairs,16-Jun-21,2122/04,SME,N,
353181,ASPECT CONTRACTS LTD,"3,110.00",Asbestos,Improvements,23-Jun-21,2122/04,LGE,N,
353663,ASPECT CONTRACTS LTD,"4,236.00",Asbestos,Improvements,21-Jul-21,2122/04,LGE,N,
421873,RIX PETROLEUM (EAST ANGLIA) LTD,"1,425.75",Open Spaces,Plant & Vehicle Fuel,07-Jul-21,2122/04,SME,N,
353039,M3 HOUSING,"2,980.00",Building Services,Line of Business Applications,07-Jun-21,2122/04,SME,Y,50%
353765,HOUSING FINANCE ASSOCIATES LTD,"4,120.00",General/Supervision & Mgmt,Contracted Services,21-Jul-21,2122/04,SME,Y,50%
353119,NORTHUMBRIAN WATER LTD,28.9,Cedars Park,Legionella Testing,25-Jun-21,2122/04,LGE,N,
353119,NORTHUMBRIAN WATER LTD,28.9,Creeting Rd Depot,Legionella Testing,25-Jun-21,2122/04,LGE,Y,50%
353119,NORTHUMBRIAN WATER LTD,34.15,Headquarters General,Legionella Testing,25-Jun-21,2122/04,LGE,N,
353119,NORTHUMBRIAN WATER LTD,28.9,Leisure Contract,Legionella Testing,25-Jun-21,2122/04,LGE,N,
353119,NORTHUMBRIAN WATER LTD,183.9,Open Spaces,Legionella Testing,25-Jun-21,2122/04,LGE,N,
353119,NORTHUMBRIAN WATER LTD,34.15,Other HRA Temp Accommodation,Legionella Testing,25-Jun-21,2122/04,LGE,N,
353119,NORTHUMBRIAN WATER LTD,68.3,Public Conveniences,Legionella Testing,25-Jun-21,2122/04,LGE,N,
353119,NORTHUMBRIAN WATER LTD,470.25,Responsive maintenance,Legionella Testing,25-Jun-21,2122/04,LGE,N,
353119,NORTHUMBRIAN WATER LTD,438.7,Sheltered Accommodation,Legionella Testing,25-Jun-21,2122/04,LGE,N,
353119,NORTHUMBRIAN WATER LTD,34.15,Temporary Accommodation,Legionella Testing,25-Jun-21,2122/04,LGE,N,
353119,NORTHUMBRIAN WATER LTD,63.05,Wingfield Barns,Legionella Testing,25-Jun-21,2122/04,LGE,N,
353209,GIPPING OCCUPATIONAL HEALTH LTD,675,Health & Safety,Contracted Services,29-Jun-21,2122/04,SME,Y,50%
353211,GIPPING OCCUPATIONAL HEALTH LTD,461,Organisational Devt,Contracted Services,29-Jun-21,2122/04,SME,Y,50%
353150,PARK AVENUE RECRUITMENT LTD,"1,804.00",Devt Management - Apps,Prof & Consultancy Fees,28-Jun-21,2122/04,SME,Y,45%
353743,JOHN FORD GROUP LTD,"9,188.34",Mand Disabled Facilities Grant,Grants,23-Jul-21,2122/04,SME,N,
353425,BRITISH RED CROSS,259,Organisational Devt,Health & Safety Training,24-Jun-21,2122/04,SME,Y,50%
353350,TOP FLOORS (EAST ANGLIA) LTD,349.96,Building Services,Repairs,30-Jun-21,2122/04,SME,N,
353122,ICENI,"2,240.00",Paddock House,Prof & Consultancy Fees,25-Jun-21,2122/04,SME,N,
353404,ICENI,"1,857.90","Back Hills, Botesdale, S106",Prof & Consultancy Fees,06-Jul-21,2122/04,SME,N,
353405,ICENI,"2,421.12",Eves Meadow Haughley S106,Prof & Consultancy Fees,06-Jul-21,2122/04,SME,N,
353406,ICENI,"2,935.43","Green Road, Woolpit",Prof & Consultancy Fees,06-Jul-21,2122/04,SME,N,
353407,ICENI,"3,300.17",Needham Market Middle School,Prof & Consultancy Fees,06-Jul-21,2122/04,SME,N,
353833,ICENI,"1,857.90","Back Hills, Botesdale, S106",Prof & Consultancy Fees,28-Jul-21,2122/04,SME,N,
353834,ICENI,"2,421.12",Eves Meadow Haughley S106,Prof & Consultancy Fees,28-Jul-21,2122/04,SME,N,
353836,ICENI,"2,935.43","Green Road, Woolpit",Prof & Consultancy Fees,28-Jul-21,2122/04,SME,N,
353458,P BOWYER ASSOCIATES LTD,"3,000.00",Pure Gym & Adjacent Building,Prof & Consultancy Fees,05-Jul-21,2122/04,SME,N,
353604,SWARCO UK LTD,"2,228.00",Environmental Protection,Contracted Services,08-Jul-21,2122/04,LGE,N,
353495,ABBEYCROFT LEISURE,"1,036.00",Policy & Strategy (H & W),Contributions & Donations,13-Jul-21,2122/04,LGE,N,
353496,ABBEYCROFT LEISURE,"1,457.19",Policy & Strategy (H & W),Contributions & Donations,13-Jul-21,2122/04,LGE,N,
353246,HAMSON BARRON SMITH LTD,"1,500.00",Pure Gym & Adjacent Building,Property Enhancements & Imps,30-Jun-21,2122/04,LGE,N,
353129,A C LEIGH (NORWICH) LTD,"3,159.72",Building Services,"Equipment, Tools & Materials",23-Jun-21,2122/04,SME,N,
353587,A C LEIGH (NORWICH) LTD,482.4,Building Services,"Equipment, Tools & Materials",14-Jun-21,2122/04,SME,N,
353638,A C LEIGH (NORWICH) LTD,603.26,Building Services,"Equipment, Tools & Materials",16-Jul-21,2122/04,SME,N,
353423,OAKPARK SECURITY SYSTEMS LTD,"8,207.00",Temporary Accommodation,Contracted Services,30-Jun-21,2122/04,LGE,N,
353107,EDMUNDSON ELECTRICAL LTD (IPSWICH),353.11,Building Services,"Equipment, Tools & Materials",22-Jun-21,2122/04,LGE,N,
353108,EDMUNDSON ELECTRICAL LTD (IPSWICH),624.17,Building Services,"Equipment, Tools & Materials",24-Jun-21,2122/04,LGE,N,
353525,EDMUNDSON ELECTRICAL LTD (IPSWICH),767.37,Building Services,"Equipment, Tools & Materials",12-Jul-21,2122/04,LGE,N,
353526,EDMUNDSON ELECTRICAL LTD (IPSWICH),339.08,Building Services,"Equipment, Tools & Materials",12-Jul-21,2122/04,LGE,N,
353280,DG ACCESSIBLE DESIGNS,"1,073.41",Mand Disabled Facilities Grant,Grants,01-Jul-21,2122/04,SME,N,
353353,DG ACCESSIBLE DESIGNS,400,Council House Adaptions,Improvements,28-Jun-21,2122/04,SME,N,
353563,APTL ENTERPRISES LTD,"6,702.50",PV Panels,Repairs,30-Jun-21,2122/04,SME,N,
353106,WASHCO LTD,273.98,Tenancy Services,Repairs,24-Jun-21,2122/04,SME,N,
353304,WASHCO LTD,467,Sheltered Accommodation,"Equipment, Tools & Materials",01-Jul-21,2122/04,SME,N,
353157,ANGLIA COMMERCIAL FLOORING LTD,439.91,Building Services,Repairs,28-Jun-21,2122/04,SME,N,
353158,ANGLIA COMMERCIAL FLOORING LTD,439.91,Building Services,Repairs,28-Jun-21,2122/04,SME,N,
353159,ANGLIA COMMERCIAL FLOORING LTD,980.47,Building Services,Repairs,28-Jun-21,2122/04,SME,N,
353160,ANGLIA COMMERCIAL FLOORING LTD,393.55,Building Services,Repairs,28-Jun-21,2122/04,SME,N,
353162,ANGLIA COMMERCIAL FLOORING LTD,629.22,Building Services,Repairs,28-Jun-21,2122/04,SME,N,
353163,ANGLIA COMMERCIAL FLOORING LTD,362.41,Building Services,Repairs,28-Jun-21,2122/04,SME,N,
353164,ANGLIA COMMERCIAL FLOORING LTD,410.92,Building Services,Repairs,28-Jun-21,2122/04,SME,N,
353165,ANGLIA COMMERCIAL FLOORING LTD,385.23,Building Services,Repairs,28-Jun-21,2122/04,SME,N,
353166,ANGLIA COMMERCIAL FLOORING LTD,968.69,Building Services,Repairs,28-Jun-21,2122/04,SME,N,
353169,ANGLIA COMMERCIAL FLOORING LTD,449.44,Building Services,Repairs,28-Jun-21,2122/04,SME,N,
353170,ANGLIA COMMERCIAL FLOORING LTD,950,Building Services,Repairs,28-Jun-21,2122/04,SME,N,
353172,ANGLIA COMMERCIAL FLOORING LTD,490.86,Building Services,Repairs,28-Jun-21,2122/04,SME,N,
353173,ANGLIA COMMERCIAL FLOORING LTD,500.81,Building Services,Repairs,28-Jun-21,2122/04,SME,N,
353403,PARKYNS LETTINGS BURY ST EDMUNDS,650,Guaranteed Rent Scheme,Rent Payable,06-Jul-21,2122/04,SME,N,
353530,DIGGER STUFF LTD,830,CIL Funded REFCUS,Grants,12-Jul-21,2122/04,SME,N,
353498,CROSS MEDIA PRINT& DIGITAL SOLUTIONS LTD,450.24,Business Cont/Emergency Plan,Property Servicing,06-Jul-21,2122/04,SME,Y,50%
353678,CROSS MEDIA PRINT& DIGITAL SOLUTIONS LTD,738.46,Business Cont/Emergency Plan,Property Servicing,15-Jul-21,2122/04,SME,Y,50%
353152,MID SUFFOLK GROWTH LTD,"48,284.68",Regen Fund - HQ Sites,Prof & Consultancy Fees,28-Jun-21,2122/04,SME,N,
353153,MID SUFFOLK GROWTH LTD,"63,532.48",Needham HQ S106 Units,Purchase of Land & Buildings,29-Jun-21,2122/04,SME,N,
353723,MID SUFFOLK GROWTH LTD,"57,000.26",Regen Fund - HQ Sites,Prof & Consultancy Fees,22-Jul-21,2122/04,SME,N,
353724,MID SUFFOLK GROWTH LTD,"75,000.34",Needham HQ S106 Units,Purchase of Land & Buildings,23-Jul-21,2122/04,SME,N,
353015,SPECIALIST ACCESS TRAINING LTD,595,Building Services,Training,21-Jun-21,2122/04,SME,Y,50%
353567,DEMOCRACY COUNTS LTD,995,Electoral Registration,Software Licnse (Line of Bus) ,07-Jul-21,2122/04,SME,Y,47%
352473,WATERLOGIC,538.47,Creeting Rd Depot,Contracted Services,27-Apr-21,2122/04,LGE,Y,50%
353644,HAUGHLEY UNITED FOOTBALL CLUB,500,Suffolk Community Restart Fund,Contributions from other LAs,19-Jul-21,2122/04,SME,N,
421885,SAFESTORE LTD (IPSWICH),418.35,Homelessness Private Sector,Removal Expenses,26-Jul-21,2122/04,SME,N,
353819,GREGG BROWN PHOTOGRAPHY,285,Communications,Advertising&mkting (non-staff),28-Jul-21,2122/04,ST,N,
353784,LIMELEASE LTD,395,Guaranteed Rent Scheme,Rent Payable,27-Jul-21,2122/04,SME,N,
353748,DEBENHAM SHED,500,Grants & Contrbns,Contributions & Donations,23-Jul-21,2122/04,SME,N,
421875,JLV PROPERTY LTD,500,Guaranteed Rent Scheme,Rent Payable,02-Jul-21,2122/04,SME,N,
421875,JLV PROPERTY LTD,750,Guaranteed Rent Scheme,Misc Supplies & Services Costs,02-Jul-21,2122/04,SME,N,
353608,BUCHER MUNICIPAL LTD,"1,500.00",Street & Major Road Cleansing,Plant & Vehicle - Other costs,14-Jul-21,2122/04,LGE,N,
353096,PLUG-N-GO-LIMITED,550,Climate Change and Sustainabil,Contracted Services,24-Jun-21,2122/04,SME,N,
353130,GIPPING CONSTRUCTION LTD,"23,651.50",Regen Fund - HQ Sites,Prof & Consultancy Fees,25-Jun-21,2122/04,SME,N,
353130,GIPPING CONSTRUCTION LTD,"309,640.50",Needham Market Middle School,Prof & Consultancy Fees,25-Jun-21,2122/04,SME,N,
353662,PRIVATE LANDLORD,786.5,Rent Deposit Scheme,Rent Payable,21-Jul-21,2122/04,ST,N,
353239,WHITESPACE CONSTRUCTION LTD,"2,962.42",Mand Disabled Facilities Grant,Grants,30-Jun-21,2122/04,SME,N,
353148,MRS SHELLEY SPALL T/A CLEANING COVERED,896,Business Cont/Emergency Plan,General Cleaning,27-Jun-21,2122/04,SME,N,
353556,MRS SHELLEY SPALL T/A CLEANING COVERED,896,Business Cont/Emergency Plan,General Cleaning,14-Jul-21,2122/04,SME,N,
352898,DUNMOW SKIPS LTD T/A DUNMOW GROUP,500,Jnt Waste Contract,Waste Disposal,12-Jun-21,2122/04,LGE,Y,50%
353668,DUNMOW SKIPS LTD T/A DUNMOW GROUP,500,Jnt Waste Contract,Waste Disposal,20-Jul-21,2122/04,LGE,Y,50%
353409,PRIVATE LANDLORD,786.5,Guaranteed Rent Scheme,Rent Payable,07-Jul-21,2122/04,ST,N,
353538,COUNTRYSTYLE RECYCLING LTD,"2,386.57",Bring Sites,Contracted Services,30-Jun-21,2122/04,SME,N,
353698,BURGESS HOMES LTD,"292,495.00","Back Hills, Botesdale, S106",Prof & Consultancy Fees,20-Jul-21,2122/04,SME,N,
353649,TEMPLE LETTINGS,650,Guaranteed Rent Scheme,Rent Payable,20-Jul-21,2122/04,SME,N,
353365,DGL QUALITY MANAGEMENT LTD,870.76,Needham Market Middle School,Prof & Consultancy Fees,30-Jun-21,2122/04,SME,N,
353656,PRIMADONNA FESTIVAL CIC,"5,000.00",BRRP-MarketTownVision&Invest,Prof & Consultancy Fees,20-Jul-21,2122/04,SME,N,
353457,RSK LAND & DEVELOPMENT ENGINEERING LTD,450,Strategic Assets,Prof & Consultancy Fees,08-Jul-21,2122/04,LGE,N,
353216,PERMISERV LIMITED,"1,113.00",Jnt Waste Contract,"Equipment, Tools & Materials",30-Jun-21,2122/04,SME,Y,50%
353183,JAMES BLAKE ASSOCIATES LTD,294,Devt Management - Apps,Landscape Consultancy,28-Jun-21,2122/04,SME,N,
353607,PHOENIX HEALTH AND SAFETY,"2,083.00",Organisational Devt,Health & Safety Training,24-May-21,2122/04,SME,Y,50%
353200,ARAN INSULATION LTD,"2,591.22",Renovation/Home Repair Grants,Grants,29-Jun-21,2122/04,SME,N,
353264,ARAN INSULATION LTD,618.5,Insulation Imps,Improvements,22-Jun-21,2122/04,SME,N,
353265,ARAN INSULATION LTD,"1,491.00",Insulation Imps,Improvements,22-Jun-21,2122/04,SME,N,
353371,ARAN INSULATION LTD,"5,085.31",Insulation Imps,Improvements,30-Jun-21,2122/04,SME,N,
353477,HM REVENUES & CUSTOMS (CIS TAX),411.87,Current Liabilities,Bank Payments,13-Jul-21,2122/04,LGE,N,
353117,BLUESKY INTERNATIONAL LTD,"8,002.00",Open Spaces,Contracted Services,25-Jun-21,2122/04,SME,Y,49.50%
353506,PARISH MEETING OF HUNSTON,517.86,Grants & Contrbns,Contributions & Donations,10-Jul-21,2122/04,SME,N,
353375,COLOUR IDEA LTD T/A WILD VIEW CAMERAS,252.47,Environmental Protection,"Equipment, Tools & Materials",01-Jul-21,2122/04,SME,Y,50%
353386,PREFERRED ACCESS RAMP SYSTEMS LTD,"2,000.00",Mand Disabled Facilities Grant,Grants,06-Jul-21,2122/04,SME,N,
353390,R D FARROW & SONS BUILDERS,"6,219.00",Mand Disabled Facilities Grant,Grants,07-Jul-21,2122/04,SME,N,
353527,FRIENDS OF THURSTON COLLEGE,"2,000.00",Grants & Contrbns,Contributions & Donations,10-Jul-21,2122/04,SME,N,
353528,FRIENDS OF THURSTON COLLEGE,"2,000.00",Grants & Contrbns,Contributions & Donations,10-Jul-21,2122/04,SME,N,
353704,BALDWINS CRANE HIRE LTD,"2,200.00",Dangerous Structures,Repairs,21-Jul-21,2122/04,SME,N,
353631,W J PAGE ELECTRICAL,352.47,Renovation/Home Repair Grants,Grants,19-Jul-21,2122/04,ST,N,
353687,SUFFOLK RIDING CLUB,456,Suffolk Community Restart Fund,Contributions from other LAs,21-Jul-21,2122/04,SME,N,
353654,EYE & DISTRICT CRICKET CLUB,"1,995.00",Suffolk Community Restart Fund,Contributions from other LAs,20-Jul-21,2122/04,SME,N,
353655,WALSHAM LE WILLOWS CRICKET CLUB,480,Suffolk Community Restart Fund,Contributions from other LAs,20-Jul-21,2122/04,SME,N,
353679,MELLIS CRICKET CLUB,"1,893.60",Suffolk Community Restart Fund,Contributions from other LAs,21-Jul-21,2122/04,SME,N,
849,DISTRICT COUNCILS' NETWORK,-379,Cost of Democracy,Conference Expenses,05-Jul-21,2122/04,LGE,N,
849,DISTRICT COUNCILS' NETWORK,-379,Management Team,Conference Expenses,05-Jul-21,2122/04,LGE,Y,50%
854,VALUATION OFFICE AGENCY,"-1,500.00",Devt Management - Apps,Prof & Consultancy Fees,28-Jul-21,2122/04,LGE,N,
353295,WORKWEAR (EAST ANGLIA) LTD,-33.11,Tenancy Services,Protective clothing,29-Jun-21,2122/04,SME,N,
353648,WORKWEAR (EAST ANGLIA) LTD,-23.97,Open Spaces,Protective clothing,06-Jul-21,2122/04,SME,N,
191,ROYAL MAIL,-4.96,Electoral Registration,Postage,02-Jul-21,2122/04,LGE,Y,50%
353432,BRITISH RED CROSS,-117,Organisational Devt,Training,30-Jun-21,2122/04,SME,Y,50%
354198,ADVANCED CONTROLS & MANAGEMENT SYSTEMS L,"3,400.00",Central Heating,Improvements,16-Aug-21,2122/05,SME,N,
354099,ANGLIAN WATER,"1,264.31",Water Sampling,Sampling & Analysis,09-Aug-21,2122/05,LGE,N,
354051,ANTALIS LTD,297.5,Devt Management - Apps,Stationery,05-Aug-21,2122/05,SME,N,
354263,APSE,"2,460.00",Food & Safety (General),Agency Staff,20-Aug-21,2122/05,LGE,Y,50%
354263,APSE,"2,460.00",Animal Welfare Licensing,Agency Staff,20-Aug-21,2122/05,LGE,Y,50%
354113,BLUE FLAME (COLCHESTER) LTD,"26,081.79",Planned Maint - Heating,Property Servicing,29-Jul-21,2122/05,SME,N,
421918,BLUE FLAME (COLCHESTER) LTD,"10,099.09",Planned Maint - Heating,Property Servicing,04-Aug-21,2122/05,SME,N,
421918,BLUE FLAME (COLCHESTER) LTD,362.32,PV Panels,Contracted Services,04-Aug-21,2122/05,SME,N,
421918,BLUE FLAME (COLCHESTER) LTD,"10,187.00",Central Heating,Improvements,04-Aug-21,2122/05,SME,N,
421926,BLUE FLAME (COLCHESTER) LTD,"7,888.02",Planned Maint - Heating,Property Servicing,11-Aug-21,2122/05,SME,N,
421926,BLUE FLAME (COLCHESTER) LTD,524.52,Smoke Alarms (Bbgh Standard),Improvements,11-Aug-21,2122/05,SME,N,
421926,BLUE FLAME (COLCHESTER) LTD,"2,054.13",PV Panels,Contracted Services,11-Aug-21,2122/05,SME,N,
421930,BLUE FLAME (COLCHESTER) LTD,65.66,Voids Maintenance,Repairs,18-Aug-21,2122/05,SME,N,
421930,BLUE FLAME (COLCHESTER) LTD,"10,058.54",Planned Maint - Heating,Property Servicing,18-Aug-21,2122/05,SME,N,
421930,BLUE FLAME (COLCHESTER) LTD,67.4,Smoke Alarms (Bbgh Standard),Improvements,18-Aug-21,2122/05,SME,N,
421930,BLUE FLAME (COLCHESTER) LTD,"1,071.87",PV Panels,Contracted Services,18-Aug-21,2122/05,SME,N,
421936,BLUE FLAME (COLCHESTER) LTD,"14,912.07",Planned Maint - Heating,Property Servicing,25-Aug-21,2122/05,SME,N,
421936,BLUE FLAME (COLCHESTER) LTD,563.31,PV Panels,Contracted Services,25-Aug-21,2122/05,SME,N,
421936,BLUE FLAME (COLCHESTER) LTD,37.79,Housing Rechargeable Works,Repairs,25-Aug-21,2122/05,SME,N,
353974,BOLTON BROTHERS LTD,623.43,Bring Sites,Contracted Services,31-Jul-21,2122/05,SME,N,
353065,BOWER FULLER,"1,245.20",Asbestos Removal,Repairs,08-Jun-21,2122/05,SME,N,
353042,BUTTON & TURNER LTD,54.85,Open Spaces,Plant & Vehicle - Other costs,02-Jun-21,2122/05,SME,N,
353042,BUTTON & TURNER LTD,276.06,Street & Major Road Cleansing,Plant & Vehicle - Other costs,02-Jun-21,2122/05,SME,N,
353992,BUTTON & TURNER LTD,703.59,Street & Major Road Cleansing,Plant & Vehicle - Other costs,05-Jul-21,2122/05,SME,N,
353995,BUTTON & TURNER LTD,446.73,Open Spaces,Plant & Vehicle - Other costs,12-Jul-21,2122/05,SME,N,
354229,AQUASAMPLERS,600,Water Sampling,Sampling & Analysis,31-Jul-21,2122/05,SME,N,
353962,CHASSIS-CAB LTD,456.86,Street & Major Road Cleansing,Plant & Vehicle - Other costs,04-Jun-21,2122/05,SME,N,
353544,CHIPSIDE LTD,631.5,C Parks General,Contracted Services,30-Jun-21,2122/05,SME,N,
354047,CHIPSIDE LTD,645.33,C Parks General,Contracted Services,31-Jul-21,2122/05,SME,N,
353934,CLARKE FENCING LTD,347.61,Open Spaces,"Equipment, Tools & Materials",02-Aug-21,2122/05,SME,N,
354240,CLARKE FENCING LTD,292.91,Open Spaces,"Equipment, Tools & Materials",16-Jun-21,2122/05,SME,N,
354282,CLARKE FENCING LTD,648.18,Open Spaces,"Equipment, Tools & Materials",20-Aug-21,2122/05,SME,N,
354283,CLARKE FENCING LTD,"2,425.14",Open Spaces,"Equipment, Tools & Materials",20-Aug-21,2122/05,SME,N,
353514,CLARKES OF WALSHAM LTD,941.26,Building Services,"Equipment, Tools & Materials",09-Jul-21,2122/05,SME,N,
353790,D W ADAMS LTD,"3,342.30",Council House Adaptions,Improvements,27-Jul-21,2122/05,SME,N,
353873,D W ADAMS LTD,"5,085.44",Council House Adaptions,Improvements,30-Jul-21,2122/05,SME,N,
354050,D W ADAMS LTD,"6,274.00",Major Imps,Improvements,06-Aug-21,2122/05,SME,N,
353685,DMA HEALTH AND SAFETY LTD,300,Council House Adaptions,Prof & Consultancy Fees,15-Jul-21,2122/05,SME,N,
354036,DMA HEALTH AND SAFETY LTD,300,Planned Maint - Ext Painting,Prof & Consultancy Fees,05-Aug-21,2122/05,SME,N,
354139,EGBERT H.TAYLOR & CO.LTD.,"16,152.76",Bins,Bins,30-Jul-21,2122/05,SME,Y,50%
354139,EGBERT H.TAYLOR & CO.LTD.,450,Jnt Waste Contract,"Equipment, Tools & Materials",30-Jul-21,2122/05,SME,Y,50%
353887,ELMHURST ENERGY SYSTEMS LTD - DD,485,Bldg Regs Chargeable Serv,Contracted Services,31-Jul-21,2122/05,SME,Y,50%
421919,ELMHURST ENERGY SYSTEMS LTD - DD,485,Bldg Regs Chargeable Serv,Contracted Services,31-Jul-21,2122/05,SME,Y,45%
421924,ELMHURST ENERGY SYSTEMS LTD - DD,290,Bldg Regs Chargeable Serv,Contracted Services,01-Aug-21,2122/05,SME,Y,45%
354074,ENGLISH SECURITY,600.6,Sheltered Accommodation,Emergency Lighting,05-Aug-21,2122/05,SME,N,
354074,ENGLISH SECURITY,232.8,Tenancy Services,Emergency Lighting,05-Aug-21,2122/05,SME,N,
354200,ENGLISH SECURITY,195.82,Responsive maintenance,Emergency Lighting,09-Aug-21,2122/05,SME,N,
354200,ENGLISH SECURITY,265.28,Sheltered Accommodation,Emergency Lighting,09-Aug-21,2122/05,SME,N,
354201,ENGLISH SECURITY,172.38,Building Services,Repairs,09-Aug-21,2122/05,SME,N,
354201,ENGLISH SECURITY,35,Sheltered Accommodation,Emergency Lighting,09-Aug-21,2122/05,SME,N,
354201,ENGLISH SECURITY,151.61,Other HRA Temp Accommodation,Emergency Lighting,09-Aug-21,2122/05,SME,N,
353854,ENVIROVENT LTD,460,Building Services,Repairs,26-Jul-21,2122/05,SME,N,
353866,FELLBRIDGE BUILDING SERVICES,714.6,Building Services,Repairs,29-Jul-21,2122/05,SME,N,
353867,FELLBRIDGE BUILDING SERVICES,"2,545.20",Building Services,Repairs,29-Jul-21,2122/05,SME,N,
353931,FELLBRIDGE BUILDING SERVICES,"2,167.12",Building Services,Repairs,02-Aug-21,2122/05,SME,N,
354037,FELLBRIDGE BUILDING SERVICES,"9,059.86",Building Services,Repairs,05-Aug-21,2122/05,SME,N,
354038,FELLBRIDGE BUILDING SERVICES,476.4,Building Services,Repairs,05-Aug-21,2122/05,SME,N,
354222,G & G SIGNS,298.2,Street Naming & Numbering,Signs,16-Aug-21,2122/05,SME,N,
354235,GB ADAPTIONS LTD,"4,315.00",Mand Disabled Facilities Grant,Grants,18-Aug-21,2122/05,SME,N,
354260,GB ADAPTIONS LTD,"7,112.00",Mand Disabled Facilities Grant,Grants,20-Aug-21,2122/05,SME,N,
354076,GHB ROOFING,"1,315.00",Building Services,Repairs,30-Jul-21,2122/05,SME,N,
354077,GHB ROOFING,"1,270.00",Building Services,Repairs,30-Jul-21,2122/05,SME,N,
354078,GHB ROOFING,"1,230.00",Building Services,Repairs,30-Jul-21,2122/05,SME,N,
354079,GHB ROOFING,"1,315.80",Building Services,Repairs,30-Jul-21,2122/05,SME,N,
354298,KENDA-CLEAN,62,Creeting Rd Depot,Window Cleaning,23-Aug-21,2122/05,SME,Y,50%
354298,KENDA-CLEAN,"2,074.00",Sheltered Accommodation,Window Cleaning,23-Aug-21,2122/05,SME,N,
354298,KENDA-CLEAN,103,Temporary Accommodation,Window Cleaning,23-Aug-21,2122/05,SME,N,
354175,M & H CIVIL ENGINEERING LTD,665.3,Building Services,Repairs,14-Aug-21,2122/05,SME,N,
354176,M & H CIVIL ENGINEERING LTD,719.5,Building Services,Repairs,14-Aug-21,2122/05,SME,N,
354177,M & H CIVIL ENGINEERING LTD,727.5,Building Services,Repairs,14-Aug-21,2122/05,SME,N,
354153,MARTIN BROKERS ( UK ) PLC,"1,008.22",Treasury Management,Prof & Consultancy Fees,31-Jul-21,2122/05,LGE,N,
354025,MATERIAL CHANGE COMPOSTING LTD,466.72,Open Spaces,Waste Disposal,31-Jul-21,2122/05,LGE,N,
353972,MB TREES (EAST ANGLIA) LTD,880,Amenity Areas,Tree felling/maintenance,31-Jul-21,2122/05,SME,N,
353973,MB TREES (EAST ANGLIA) LTD,"1,820.00",Amenity Areas,Tree felling/maintenance,31-Jul-21,2122/05,SME,N,
354040,MB TREES (EAST ANGLIA) LTD,"2,080.00",Public Tree Programme,Tree felling/maintenance,31-Jul-21,2122/05,SME,N,
354111,MB TREES (EAST ANGLIA) LTD,450,Bldg Regs Chargeable Serv,Advertising&mkting (non-staff),05-Aug-21,2122/05,SME,N,
354210,MB TREES (EAST ANGLIA) LTD,"1,280.00",Amenity Areas,Tree felling/maintenance,17-Aug-21,2122/05,SME,N,
354214,MB TREES (EAST ANGLIA) LTD,940,Public Tree Programme,Tree felling/maintenance,17-Aug-21,2122/05,SME,N,
354092,MERCURY BUILDING SERVICES LTD,670,Sheltered Accommodation,Repairs,09-Aug-21,2122/05,SME,N,
353978,MID SUFFOLK FENCING LTD,950,Building Services,Repairs,03-Aug-21,2122/05,SME,N,
354130,MID SUFFOLK FENCING LTD,375,Building Services,Repairs,03-Aug-21,2122/05,SME,N,
354131,MID SUFFOLK FENCING LTD,300,Building Services,Repairs,03-Aug-21,2122/05,SME,N,
354285,MID SUFFOLK FENCING LTD,"3,806.72",Building Services,Repairs,01-Aug-21,2122/05,SME,N,
353938,NAVIGUS PLANNING LTD,"1,260.00",Strategic Planning General,Prof & Consultancy Fees,03-Aug-21,2122/05,SME,N,
353942,PRO-FLAT SPECIALIST SERVICES LTD,627,Building Services,Repairs,31-Jul-21,2122/05,SME,N,
353943,PRO-FLAT SPECIALIST SERVICES LTD,627,Building Services,Repairs,31-Jul-21,2122/05,SME,N,
354243,PRO-FLAT SPECIALIST SERVICES LTD,"1,390.00",Roofing,Improvements,18-Aug-21,2122/05,SME,N,
354344,PSC SYSTEMS,315.24,Financial Servs,Contracted Services,03-Aug-21,2122/05,SME,N,
353791,REID PLUMBING & HEATING CONTRACTORS LTD,"14,494.52",Central Heating,Major Contracts,27-Jul-21,2122/05,SME,N,
353806,REID PLUMBING & HEATING CONTRACTORS LTD,"19,323.14",Central Heating,Major Contracts,27-Jul-21,2122/05,SME,N,
353979,REID PLUMBING & HEATING CONTRACTORS LTD,"8,868.18",Central Heating,Major Contracts,04-Aug-21,2122/05,SME,N,
354093,REID PLUMBING & HEATING CONTRACTORS LTD,"9,235.08",Central Heating,Major Contracts,04-Aug-21,2122/05,SME,N,
354122,REID PLUMBING & HEATING CONTRACTORS LTD,"18,809.84",Central Heating,Major Contracts,10-Aug-21,2122/05,SME,N,
354126,REID PLUMBING & HEATING CONTRACTORS LTD,"16,200.32",Central Heating,Major Contracts,11-Aug-21,2122/05,SME,N,
354219,REID PLUMBING & HEATING CONTRACTORS LTD,"13,510.88",Central Heating,Major Contracts,18-Aug-21,2122/05,SME,N,
354241,REID PLUMBING & HEATING CONTRACTORS LTD,"9,165.05",Central Heating,Major Contracts,18-Aug-21,2122/05,SME,N,
354389,RIGBY TAYLOR LTD,892,Open Spaces,"Equipment, Tools & Materials",26-Aug-21,2122/05,SME,N,
354156,ROYAL INSTITUTION OF CHARTERED SURVEYORS,945,Organisational Devt,Training,09-Aug-21,2122/05,LGE,Y,50%
353758,S SACKER (CLAYDON) LTD,465.66,Building Services,Waste Disposal,21-Jul-21,2122/05,SME,Y,50%
353927,S SACKER (CLAYDON) LTD,494.37,Building Services,Waste Disposal,29-Jul-21,2122/05,SME,Y,50%
354112,S SACKER (CLAYDON) LTD,668.28,Building Services,Waste Disposal,02-Aug-21,2122/05,SME,Y,50%
354121,S SACKER (CLAYDON) LTD,728.57,Building Services,Waste Disposal,04-Aug-21,2122/05,SME,Y,50%
354267,S SACKER (CLAYDON) LTD,382.4,Building Services,Waste Disposal,17-Aug-21,2122/05,SME,Y,50%
354270,S SACKER (CLAYDON) LTD,528.83,Building Services,Waste Disposal,13-Aug-21,2122/05,SME,Y,50%
353827,SEAGER HOME SOLUTIONS,"8,180.08",Building Services,Repairs,26-Jul-21,2122/05,SME,N,
353828,SEAGER HOME SOLUTIONS,"3,928.59",Council House Adaptions,Improvements,26-Jul-21,2122/05,SME,N,
353930,SOLACE GROUP LTD,"1,100.00",Cost of Democracy,Member's Courses & Conferences,31-Jul-21,2122/05,SME,N,
354213,SOLUTIONS ON SECURITY SERVICES,669.78,Sheltered Accommodation,Repairs,17-Aug-21,2122/05,SME,N,
353756,TANKCHANGE LTD,"2,095.00",Building Services,Repairs,25-Jul-21,2122/05,SME,N,
353757,TANKCHANGE LTD,"2,695.00",Central Heating,Improvements,25-Jul-21,2122/05,SME,N,
353713,THERMATECH,"1,480.00",Sheltered Accommodation,Fire Prevention,22-Jul-21,2122/05,SME,N,
354007,THERMATECH,"2,160.00",Sheltered Accommodation,Fire Prevention,04-Aug-21,2122/05,SME,N,
354007,THERMATECH,"1,520.00",Sheltered Accommodation,Fire Prevention,04-Aug-21,2122/05,SME,N,
354064,THERMATECH,475,Sheltered Accommodation,Fire Prevention,06-Aug-21,2122/05,SME,N,
353928,THOMPSON COOPER LTD,912.5,Street & Major Road Cleansing,Bins,02-Aug-21,2122/05,SME,N,
354310,TRUCKEAST LTD,535.01,Street & Major Road Cleansing,Plant & Vehicle - Other costs,24-Aug-21,2122/05,LGE,N,
353911,WEST END REHOMING,417.96,Dog Control,Collection Charges,01-Aug-21,2122/05,SME,N,
353862,WINDIMAN LTD,569.7,Building Services,Repairs,29-Jul-21,2122/05,SME,N,
353946,WINDIMAN LTD,313.86,Building Services,Repairs,03-Aug-21,2122/05,SME,N,
353947,WINDIMAN LTD,735,Building Services,Repairs,03-Aug-21,2122/05,SME,N,
353948,WINDIMAN LTD,"1,120.00",Building Services,Repairs,03-Aug-21,2122/05,SME,N,
353949,WINDIMAN LTD,735,Building Services,Repairs,03-Aug-21,2122/05,SME,N,
353964,WINDIMAN LTD,735,Building Services,Repairs,03-Aug-21,2122/05,SME,N,
354147,WINDIMAN LTD,627.38,Building Services,Repairs,12-Aug-21,2122/05,SME,N,
353856,WORKWEAR (EAST ANGLIA) LTD,539.4,Building Services,Protective clothing,20-Jul-21,2122/05,SME,Y,50%
353908,WORKWEAR (EAST ANGLIA) LTD,405.02,Open Spaces,Protective clothing,12-Jul-21,2122/05,SME,N,
354081,WORKWEAR (EAST ANGLIA) LTD,254.15,Street & Major Road Cleansing,Protective clothing,03-Aug-21,2122/05,SME,N,
354159,WORKWEAR (EAST ANGLIA) LTD,327.02,Street & Major Road Cleansing,Protective clothing,12-Aug-21,2122/05,SME,N,
354370,WORKWEAR (EAST ANGLIA) LTD,341.24,Street & Major Road Cleansing,Protective clothing,11-Aug-21,2122/05,SME,N,
353781,ARCHANT COMMUNITY MEDIA LTD,770.44,Devt Management - Apps,Advertising&mkting (non-staff),24-Jul-21,2122/05,LGE,N,
354135,SERCO LTD,"4,377.00",Domestic Waste,Refuse Contract,11-Aug-21,2122/05,LGE,Y,50%
354137,SERCO LTD,"22,179.86",Trade Waste,Refuse Contract,11-Aug-21,2122/05,LGE,Y,60%
354137,SERCO LTD,"77,664.58",Garden Waste,Refuse Contract,11-Aug-21,2122/05,LGE,Y,48%
354137,SERCO LTD,"292,516.56",Domestic Waste,Refuse Contract,11-Aug-21,2122/05,LGE,Y,48%
354138,SERCO LTD,567.12,Domestic Waste,Refuse Contract,10-Aug-21,2122/05,LGE,Y,50%
354163,SERCO LTD,"2,670.41",Domestic Waste,Refuse Contract,12-Aug-21,2122/05,LGE,Y,50%
354008,TRAVIS PERKINS TRADING CO LTD,568.08,Building Services,"Equipment, Tools & Materials",30-Jul-21,2122/05,LGE,Y,50%
354127,TRAVIS PERKINS TRADING CO LTD,850,Building Services,"Equipment, Tools & Materials",09-Aug-21,2122/05,LGE,Y,50.00%
354192,TRAVIS PERKINS TRADING CO LTD,"34,277.90",Building Services,"Equipment, Tools & Materials",01-Aug-21,2122/05,LGE,Y,62%
421934,EDF ENERGY,100.92,"11 Market Place, Stowmarket",Electricity,18-Aug-21,2122/05,LGE,N,
421934,EDF ENERGY,326.93,C Parks General,Electricity,18-Aug-21,2122/05,LGE,N,
421934,EDF ENERGY,19.17,Climate Change and Sustainabil,Electricity,18-Aug-21,2122/05,LGE,N,
421934,EDF ENERGY,466.76,Creeting Rd Depot,Electricity,18-Aug-21,2122/05,LGE,Y,50%
421934,EDF ENERGY,243.07,Headquarters General,Electricity,18-Aug-21,2122/05,LGE,N,
421934,EDF ENERGY,"38,558.85",Leisure Contract,Electricity,18-Aug-21,2122/05,LGE,N,
421934,EDF ENERGY,22.81,Needham Market Middle School,Electricity,18-Aug-21,2122/05,LGE,N,
421934,EDF ENERGY,272.35,Open Spaces,Electricity,18-Aug-21,2122/05,LGE,N,
421934,EDF ENERGY,340.57,Other HRA Temp Accommodation,Electricity,18-Aug-21,2122/05,LGE,N,
421934,EDF ENERGY,2.68,Paddock House Eye,Electricity,18-Aug-21,2122/05,LGE,N,
421934,EDF ENERGY,30.99,Public Conveniences,Electricity,18-Aug-21,2122/05,LGE,N,
421934,EDF ENERGY,94.92,Pure Gym & Adjacent Building,Electricity,18-Aug-21,2122/05,LGE,N,
421934,EDF ENERGY,1.89,Recycling Centre,Electricity,18-Aug-21,2122/05,LGE,N,
421934,EDF ENERGY,323.99,Sewage Treatment Works,Electricity,18-Aug-21,2122/05,LGE,N,
421934,EDF ENERGY,"6,275.74",Sheltered Accommodation,Electricity,18-Aug-21,2122/05,LGE,N,
421934,EDF ENERGY,33.93,Tacon Close Eye TDP,Electricity,18-Aug-21,2122/05,LGE,N,
421934,EDF ENERGY,345.53,Temporary Accommodation,Electricity,18-Aug-21,2122/05,LGE,N,
421934,EDF ENERGY,"1,069.61",Tenancy Services,Electricity,18-Aug-21,2122/05,LGE,N,
421934,EDF ENERGY,647.2,Wingfield Barns,Electricity,18-Aug-21,2122/05,LGE,N,
353971,ERNST & YOUNG LLP,"36,477.00",Ext Audit,Audit Fees,29-Jul-21,2122/05,LGE,N,
421929,GPC BARCLAYS,"4,879.67",Current Assets,Barclaycard Control,14-Aug-21,2122/05,LGE,Y,3%
421921,ALLSTAR BUSINESS SOLUTIONS LTD,83.34,Housing Options,Plant & Vehicle Fuel,31-Jul-21,2122/05,SME,Y,50%
421921,ALLSTAR BUSINESS SOLUTIONS LTD,"8,335.11",Building Services,Plant & Vehicle Fuel,31-Jul-21,2122/05,SME,Y,50%
353817,STANNAH STAIRLIFTS LTD,"2,354.00",Mand Disabled Facilities Grant,Grants,26-Jul-21,2122/05,LGE,N,
354024,COTTON VILLAGE HALL,"14,296.70",Community Fund Projects-Grants,Grants,06-Aug-21,2122/05,SME,N,
354061,DEBENHAM VILLAGE HALL & PLAYING FIELD TR,310.25,Cost of Democracy,Room Hire,31-Jul-21,2122/05,SME,N,
354189,DEBENHAM VILLAGE HALL & PLAYING FIELD TR,"21,198.00",S106 Open Spaces Expenditure,Grants,16-Aug-21,2122/05,SME,N,
353842,ELMSWELL PARISH COUNCIL,750,Suffolk Community Restart Fund,Contributions from other LAs,28-Jul-21,2122/05,SME,N,
353900,MUSEUM OF EAST ANGLIAN LIFE,"15,000.00",Grants & Contrbns,Grants,03-Aug-21,2122/05,SME,N,
353832,WALSHAM LE WILLOWS SPORTS CLUB,"1,000.00",Grants & Contrbns,Contributions & Donations,27-Jul-21,2122/05,SME,N,
353839,WATTISFIELD COMMUNITY CENTRE,950,Suffolk Community Restart Fund,Contributions from other LAs,28-Jul-21,2122/05,SME,N,
353564,SUFFOLK COUNTY COUNCIL,922.22,Organisational Devt,Contracted Services,14-Jul-21,2122/05,LGE,Y,50%
353789,SUFFOLK COUNTY COUNCIL,"2,045.00",Customer Servs,"Equipment, Tools & Materials",26-Jul-21,2122/05,LGE,Y,50%
354056,SUFFOLK COUNTY COUNCIL,"26,314.09",Domestic Waste,MRF Disposal,05-Aug-21,2122/05,LGE,N,
354056,SUFFOLK COUNTY COUNCIL,"33,687.60",Garden Waste,Garden Waste Disposal,05-Aug-21,2122/05,LGE,N,
354225,SUFFOLK COUNTY COUNCIL,"48,841.74",Trade Waste,Trade Waste Disposal,17-Aug-21,2122/05,LGE,N,
354249,SUFFOLK COUNTY COUNCIL,300,Organisational Devt,Training,18-Aug-21,2122/05,LGE,Y,50%
354269,SUFFOLK COUNTY COUNCIL,"2,065.00",Land Chgs,Contracted Services,19-Aug-21,2122/05,LGE,N,
353933,FENN WRIGHT LLP,675,General/Supervision & Mgmt,Prof & Consultancy Fees,30-Jul-21,2122/05,SME,N,
354348,FENN WRIGHT LLP,675,General/Supervision & Mgmt,Prof & Consultancy Fees,26-Aug-21,2122/05,SME,N,
354379,TELEFONICA UK LIMITED - O2,"1,281.93",ICT,Telephone Costs,27-Aug-21,2122/05,LGE,Y,50%
354308,KENNET EQUIPMENT LEASING,283.05,Creeting Rd Depot,Operating Lease Payments,23-Aug-21,2122/05,SME,Y,50%
354080,J P CHICK & PARTNERS LIMITED,475,Bldg Regs Chargeable Serv,Prof & Consultancy Fees,09-Aug-21,2122/05,SME,N,
353568,LANDMARK CHAMBERS,"1,500.00",Devt Management - Apps,Legal ex App proj&pre-decn adv,15-Jul-21,2122/05,SME,N,
353988,ESSEX AND SUFFOLK WATER,"1,543.07",Sheltered Accommodation,Water Rates - Metered,28-Jul-21,2122/05,LGE,N,
354459,ESSEX AND SUFFOLK WATER,306.55,Sheltered Accommodation,Water Rates - Metered,19-Aug-21,2122/05,LGE,N,
354460,ESSEX AND SUFFOLK WATER,815.2,Sheltered Accommodation,Water Rates - Metered,19-Aug-21,2122/05,LGE,N,
421920,GAZPROM ENERGY,15.01,"11 Market Place, Stowmarket",Gas,24-Jun-21,2122/05,SME,N,
421920,GAZPROM ENERGY,93.5,Creeting Rd Depot,Gas,24-Jun-21,2122/05,SME,Y,50%
421920,GAZPROM ENERGY,31.78,General/Supervision & Mgmt,Gas,24-Jun-21,2122/05,SME,N,
421920,GAZPROM ENERGY,2.54,Headquarters General,Gas,24-Jun-21,2122/05,SME,N,
421920,GAZPROM ENERGY,"3,359.60",Leisure Contract,Gas,24-Jun-21,2122/05,SME,N,
421920,GAZPROM ENERGY,69.66,Pure Gym & Adjacent Building,Gas,24-Jun-21,2122/05,SME,N,
421920,GAZPROM ENERGY,"3,300.20",Sheltered Accommodation,Gas,24-Jun-21,2122/05,SME,N,
421920,GAZPROM ENERGY,251.73,Temporary Accommodation,Gas,24-Jun-21,2122/05,SME,N,
421920,GAZPROM ENERGY,209.41,Tenancy Services,Gas,24-Jun-21,2122/05,SME,N,
421935,GAZPROM ENERGY,15.51,"11 Market Place, Stowmarket",Gas,19-Aug-21,2122/05,SME,N,
421935,GAZPROM ENERGY,82.71,Creeting Rd Depot,Gas,19-Aug-21,2122/05,SME,Y,50%
421935,GAZPROM ENERGY,17.76,General/Supervision & Mgmt,Gas,19-Aug-21,2122/05,SME,N,
421935,GAZPROM ENERGY,2.63,Headquarters General,Gas,19-Aug-21,2122/05,SME,N,
421935,GAZPROM ENERGY,"2,857.53",Leisure Contract,Gas,19-Aug-21,2122/05,SME,N,
421935,GAZPROM ENERGY,71.99,Pure Gym & Adjacent Building,Gas,19-Aug-21,2122/05,SME,N,
421935,GAZPROM ENERGY,"3,017.45",Sheltered Accommodation,Gas,19-Aug-21,2122/05,SME,N,
421935,GAZPROM ENERGY,215.68,Temporary Accommodation,Gas,19-Aug-21,2122/05,SME,N,
421935,GAZPROM ENERGY,190.27,Tenancy Services,Gas,19-Aug-21,2122/05,SME,N,
353611,PREMIER BODYWORKS,"2,387.84",Street & Major Road Cleansing,Plant & Vehicle - Other costs,30-Jun-21,2122/05,SME,N,
354290,LAMBERT SMITH HAMPTON GROUP LTD,637,Devt Policy & Local Plans,Prof & Consultancy Fees,27-Jul-21,2122/05,LGE,N,
354353,LAMBERT SMITH HAMPTON GROUP LTD,"14,500.00",Devt Management - Apps,Prof & Consultancy Fees,18-Aug-21,2122/05,LGE,N,
352698,WHYBROW PROPERTY SOLUTIONS LTD,"14,904.99",Building Services,Repairs,03-Jun-21,2122/05,SME,N,
353716,WHYBROW PROPERTY SOLUTIONS LTD,"6,489.91",Building Services,Repairs,21-Jul-21,2122/05,SME,N,
353751,WHYBROW PROPERTY SOLUTIONS LTD,495,Temporary Accommodation,Fire Prevention,21-Jul-21,2122/05,SME,N,
353752,WHYBROW PROPERTY SOLUTIONS LTD,"10,000.00",Building Services,Repairs,23-Jul-21,2122/05,SME,N,
353883,WHYBROW PROPERTY SOLUTIONS LTD,"10,000.00",Building Services,Repairs,30-Aug-21,2122/05,SME,N,
353884,WHYBROW PROPERTY SOLUTIONS LTD,"10,000.00",Council House Adaptions,Improvements,30-Jul-21,2122/05,SME,N,
354035,WHYBROW PROPERTY SOLUTIONS LTD,"8,286.85",Building Services,Repairs,05-Aug-21,2122/05,SME,N,
354338,L A C CLEANING CONTRACTORS LIMITED,798.41,Temporary Accommodation,General Cleaning,24-Aug-21,2122/05,SME,N,
353945,MENTA,"12,499.50",Virtual High Street SIGIF,Prof & Consultancy Fees,09-Jun-21,2122/05,SME,Y,50%
354329,MENTA,"6,249.75",Virtual High Street SIGIF,Prof & Consultancy Fees,19-Aug-21,2122/05,SME,Y,50%
354083,ARMSTRONG YORK ASBESTOS ENVIRONMENTAL,"9,407.94",Asbestos Survey & Reinspection,Prof & Consultancy Fees,30-Jul-21,2122/05,SME,N,
354100,BAREFOOT & GILLES LTD,"3,925.00",BRRP-InnovationClusterStowmkt,Prof & Consultancy Fees,02-Jul-21,2122/05,SME,N,
354101,BAREFOOT & GILLES LTD,600,BRRP-InnovationClusterStowmkt,Prof & Consultancy Fees,10-Aug-21,2122/05,SME,N,
354396,THE MIX STOWMARKET LTD,928.9,Suffolk Community Restart Fund,Contributions from other LAs,27-Aug-21,2122/05,SME,N,
353886,TRADITION (UK) LTD,"1,586.30",Treasury Management,Prof & Consultancy Fees,30-Jul-21,2122/05,LGE,N,
354154,TRADITION (UK) LTD,"1,586.30",Treasury Management,Prof & Consultancy Fees,30-Jul-21,2122/05,LGE,N,
353925,OPUS PEOPLE SOLUTIONS LTD,673.95,Current Liabilities,Agency Staff Holding A/C,29-Jul-21,2122/05,SME,N,
354196,OPUS PEOPLE SOLUTIONS LTD,307.58,Current Liabilities,Agency Staff Holding A/C,12-Aug-21,2122/05,SME,N,
354313,OPUS PEOPLE SOLUTIONS LTD,307.58,Current Liabilities,Agency Staff Holding A/C,19-Aug-21,2122/05,SME,N,
353800,VERTAS GROUP LTD,"1,350.00",Unapportionable Central OHs,Security Systems,30-Jun-21,2122/05,SME,N,
354033,POSTURITE LTD,"1,916.95",Health & Safety,"Equipment, Tools & Materials",04-Aug-21,2122/05,SME,Y,50%
353901,4PRINCIPLES CONSTRUCTION LTD,"7,457.76",Mand Disabled Facilities Grant,Grants,03-Aug-21,2122/05,SME,N,
354233,4PRINCIPLES CONSTRUCTION LTD,"5,112.20",Mand Disabled Facilities Grant,Grants,18-Aug-21,2122/05,SME,N,
354275,4PRINCIPLES CONSTRUCTION LTD,"4,809.04",Mand Disabled Facilities Grant,Grants,24-Aug-21,2122/05,SME,N,
353897,MATT ALLMAN LTD T/A MOVEITCLEARITFINDIT,600,Homelessness Private Sector,Removal Expenses,02-Aug-21,2122/05,SME,N,
354058,BIRKETTS LLP,690,Organisational Devt,Legal Expenses,02-Aug-21,2122/05,LGE,Y,50%
353950,GALLAGHER CAR & VAN RENTALS LTD,425,Domestic Waste,Refuse Contract,02-Aug-21,2122/05,LGE,N,
354091,GALLAGHER CAR & VAN RENTALS LTD,"1,100.00",Domestic Waste,Refuse Contract,09-Aug-21,2122/05,LGE,N,
353831,STOWUPLAND PRE SCHOOL & THE MIGHTY OAKS,"1,000.00",Grants & Contrbns,Contributions & Donations,27-Jul-21,2122/05,SME,N,
354032,DAVID BLACK & SON LTD,345,Building Services,Plant & Vehicle - Other costs,22-Jun-21,2122/05,SME,N,
354392,NISA WAVENEY JUNIORS ANGLING CLUB,749,Suffolk Community Restart Fund,Contributions from other LAs,27-Aug-21,2122/05,SME,N,
353843,BACTON VILLAGE HALL,"2,378.00",Suffolk Community Restart Fund,Contributions from other LAs,28-Jul-21,2122/05,SME,N,
353917,MENDLESHAM MEDICAL GROUP,"32,226.00",CIL Funded REFCUS,Grants,05-Aug-21,2122/05,SME,N,
354238,D A BEVAN,350,Taxi & Private Hire Licensing,Contracted Services,30-Jun-21,2122/05,SME,N,
354150,PUBLIC SEWER SERVICES,"1,434.77",Building Services,Repairs,30-Jul-21,2122/05,SME,N,
354151,PUBLIC SEWER SERVICES,465.45,Structural Works,Improvements,30-Jul-21,2122/05,SME,N,
354017,THE STOWMARKET GLASS COMPANY LTD,340,Building Services,Repairs,16-Jul-21,2122/05,SME,N,
354082,ASPECT CONTRACTS LTD,"1,578.00",Asbestos,Improvements,09-Aug-21,2122/05,LGE,N,
354157,RIX PETROLEUM (EAST ANGLIA) LTD,"7,768.57",Open Spaces,Plant & Vehicle Fuel,04-Aug-21,2122/05,SME,N,
354316,KNOWLES ASSOCIATES TFM LTD,672.92,Building Services,Lease Cars - Payment,09-Aug-21,2122/05,SME,Y,50%
353783,NORTHUMBRIAN WATER LTD,28.9,Cedars Park,Legionella Testing,26-Jul-21,2122/05,LGE,N,
353783,NORTHUMBRIAN WATER LTD,28.9,Creeting Rd Depot,Legionella Testing,26-Jul-21,2122/05,LGE,Y,50%
353783,NORTHUMBRIAN WATER LTD,34.15,Headquarters General,Legionella Testing,26-Jul-21,2122/05,LGE,N,
353783,NORTHUMBRIAN WATER LTD,28.9,Leisure Contract,Legionella Testing,26-Jul-21,2122/05,LGE,N,
353783,NORTHUMBRIAN WATER LTD,183.9,Open Spaces,Legionella Testing,26-Jul-21,2122/05,LGE,N,
353783,NORTHUMBRIAN WATER LTD,34.15,Other HRA Temp Accommodation,Legionella Testing,26-Jul-21,2122/05,LGE,N,
353783,NORTHUMBRIAN WATER LTD,68.3,Public Conveniences,Legionella Testing,26-Jul-21,2122/05,LGE,N,
353783,NORTHUMBRIAN WATER LTD,470.25,Responsive maintenance,Legionella Testing,26-Jul-21,2122/05,LGE,N,
353783,NORTHUMBRIAN WATER LTD,438.7,Sheltered Accommodation,Legionella Testing,26-Jul-21,2122/05,LGE,N,
353783,NORTHUMBRIAN WATER LTD,34.15,Temporary Accommodation,Legionella Testing,26-Jul-21,2122/05,LGE,N,
353783,NORTHUMBRIAN WATER LTD,63.05,Wingfield Barns,Legionella Testing,26-Jul-21,2122/05,LGE,N,
353847,GIPPING OCCUPATIONAL HEALTH LTD,645,Health & Safety,Contracted Services,28-Jul-21,2122/05,SME,Y,50%
354067,GIPPING OCCUPATIONAL HEALTH LTD,420,Health & Safety,Contracted Services,06-Aug-21,2122/05,SME,N,
421927,GIPPING OCCUPATIONAL HEALTH LTD,675,Health & Safety,Contracted Services,28-Jul-21,2122/05,SME,Y,50%
353951,PARK AVENUE RECRUITMENT LTD,"1,722.00",Devt Management - Apps,Prof & Consultancy Fees,26-Jul-21,2122/05,SME,Y,46%
353818,JOHN FORD GROUP LTD,"5,002.02",Mand Disabled Facilities Grant,Grants,28-Jul-21,2122/05,SME,N,
354413,STOWMARKET A S D SATURDAY CLUBS,"1,800.00",Suffolk Community Restart Fund,Contributions from other LAs,27-Aug-21,2122/05,SME,N,
353837,ICENI,"1,226.26",Needham Market Middle School,Prof & Consultancy Fees,28-Jul-21,2122/05,SME,N,
353837,ICENI,"2,073.91",Needham Market Middle School,Prof & Consultancy Fees,28-Jul-21,2122/05,SME,N,
353812,PORTAL PLAN QUEST LTD,462,Devt Management - Apps,Planning Fees,28-Jul-21,2122/05,SME,N,
354204,PORTAL PLAN QUEST LTD,256,Devt Management - Apps,Planning Fees,17-Aug-21,2122/05,SME,N,
354254,PORTAL PLAN QUEST LTD,407,Devt Management - Apps,Planning Fees,19-Aug-21,2122/05,SME,N,
353929,EUNOMIA RESEARCH & CONSULTING LTD,"3,500.00",Devt Management - Apps,Environmental  Consultancy,30-Jul-21,2122/05,SME,N,
354199,EUNOMIA RESEARCH & CONSULTING LTD,"3,750.00",Devt Management - Apps,Environmental  Consultancy,09-Aug-21,2122/05,SME,N,
354221,EUNOMIA RESEARCH & CONSULTING LTD,"14,000.00",Devt Management - Apps,Environmental  Consultancy,14-Jul-21,2122/05,SME,N,
353926,MICHELLE BOLGER EXPERT LANDSCAPE CONSULT,"9,640.68",Devt Management - Apps,Ecology Consultancy,28-Jul-21,2122/05,SME,N,
353844,FINBOROUGH LADIES NETBALL CLUB,900,Suffolk Community Restart Fund,Contributions from other LAs,29-Jul-21,2122/05,SME,N,
353763,A C LEIGH (NORWICH) LTD,"1,530.66",Building Services,"Equipment, Tools & Materials",23-Jul-21,2122/05,SME,N,
354089,A C LEIGH (NORWICH) LTD,310.32,Building Services,"Equipment, Tools & Materials",04-Aug-21,2122/05,SME,N,
354179,A C LEIGH (NORWICH) LTD,379.3,Building Services,"Equipment, Tools & Materials",09-Aug-21,2122/05,SME,N,
353722,SUFFOLK POWER EQUIPMENT,279,Open Spaces,Plant & Vehicle - Other costs,22-Jul-21,2122/05,ST,N,
354288,SUFFOLK POWER EQUIPMENT,317,Open Spaces,Plant & Vehicle - Other costs,21-Aug-21,2122/05,ST,N,
353811,EDMUNDSON ELECTRICAL LTD (IPSWICH),566.06,Building Services,"Equipment, Tools & Materials",26-Jul-21,2122/05,LGE,N,
354066,EDMUNDSON ELECTRICAL LTD (IPSWICH),541.49,Building Services,"Equipment, Tools & Materials",05-Aug-21,2122/05,LGE,N,
354218,EDMUNDSON ELECTRICAL LTD (IPSWICH),353.25,Building Services,"Equipment, Tools & Materials",17-Aug-21,2122/05,LGE,N,
353957,WASHCO LTD,81,Sheltered Accommodation,"Equipment, Tools & Materials",01-Aug-21,2122/05,SME,N,
353957,WASHCO LTD,305,Sheltered Accommodation,"Equipment, Tools & Materials",01-Aug-21,2122/05,SME,N,
353957,WASHCO LTD,81,Sheltered Accommodation,"Equipment, Tools & Materials",01-Aug-21,2122/05,SME,N,
353983,ANGLIA COMMERCIAL FLOORING LTD,324.24,Building Services,Repairs,03-Aug-21,2122/05,SME,N,
353985,ANGLIA COMMERCIAL FLOORING LTD,913.12,Building Services,Repairs,03-Aug-21,2122/05,SME,N,
353986,ANGLIA COMMERCIAL FLOORING LTD,700.38,Building Services,Repairs,03-Aug-21,2122/05,SME,N,
353987,ANGLIA COMMERCIAL FLOORING LTD,915.57,Building Services,Repairs,03-Aug-21,2122/05,SME,N,
353999,ANGLIA COMMERCIAL FLOORING LTD,390.91,Building Services,Repairs,03-Aug-21,2122/05,SME,N,
354000,ANGLIA COMMERCIAL FLOORING LTD,448.13,Building Services,Repairs,03-Aug-21,2122/05,SME,N,
354002,ANGLIA COMMERCIAL FLOORING LTD,447.3,Building Services,Repairs,03-Aug-21,2122/05,SME,N,
354003,ANGLIA COMMERCIAL FLOORING LTD,459.7,Building Services,Repairs,03-Aug-21,2122/05,SME,N,
354004,ANGLIA COMMERCIAL FLOORING LTD,407.93,Building Services,Repairs,03-Aug-21,2122/05,SME,N,
354005,ANGLIA COMMERCIAL FLOORING LTD,259.53,Building Services,Repairs,03-Aug-21,2122/05,SME,N,
354006,ANGLIA COMMERCIAL FLOORING LTD,373.03,Building Services,Repairs,03-Aug-21,2122/05,SME,N,
354030,ANGLIA COMMERCIAL FLOORING LTD,672.84,Building Services,Repairs,03-Aug-21,2122/05,SME,N,
354031,ANGLIA COMMERCIAL FLOORING LTD,333.88,Building Services,Repairs,08-Apr-21,2122/05,SME,N,
353902,PARKYNS LETTINGS BURY ST EDMUNDS,650,Guaranteed Rent Scheme,Rent Payable,04-Aug-21,2122/05,SME,N,
354236,PARKYNS LETTINGS BURY ST EDMUNDS,750,Guaranteed Rent Scheme,Misc Supplies & Services Costs,19-Aug-21,2122/05,SME,N,
354236,PARKYNS LETTINGS BURY ST EDMUNDS,865.38,Guaranteed Rent Scheme,Rent Payable,19-Aug-21,2122/05,SME,N,
354236,PARKYNS LETTINGS BURY ST EDMUNDS,669,Guaranteed Rent Scheme,Rent Payable,19-Aug-21,2122/05,SME,N,
354301,MID SUFFOLK GROWTH LTD,"60,009.11",Regen Fund - HQ Sites,Prof & Consultancy Fees,23-Aug-21,2122/05,SME,N,
354302,MID SUFFOLK GROWTH LTD,"78,959.35",Needham HQ S106 Units,Purchase of Land & Buildings,24-Aug-21,2122/05,SME,N,
354256,THE CODDENHAM CENTRE,"1,664.40",Community Fund Projects-Grants,Grants,19-Aug-21,2122/05,SME,N,
354110,QUADIENT UK LIMITED,"1,000.00",Central Postal Serv,Postage,05-Aug-21,2122/05,LGE,Y,50%
354412,DREAM ON CIC,"1,450.00",Suffolk Community Restart Fund,Contributions from other LAs,27-Aug-21,2122/05,SME,N,
354391,HAUGHLEY PLAYING FIELD BOWLS CLUB,"1,176.80",Suffolk Community Restart Fund,Contributions from other LAs,27-Aug-21,2122/05,SME,N,
353898,EYE OPPORTUNITY GROUP,"1,192.00",Suffolk Community Restart Fund,Contributions from other LAs,03-Aug-21,2122/05,SME,N,
354400,THORNDON BOWLS CLUB,"2,500.00",Suffolk Community Restart Fund,Contributions from other LAs,27-Aug-21,2122/05,SME,N,
354195,RIGHT DIRECTIONS MANAGEMENT LTD,"12,050.00",Leisure Contract,Prof & Consultancy Fees,30-Apr-21,2122/05,SME,Y,50%
354410,STOWUPLAND FALCONS FC,"2,500.00",Suffolk Community Restart Fund,Contributions from other LAs,27-Aug-21,2122/05,SME,N,
354268,BRANDON WETROOMS,"5,620.00",Mand Disabled Facilities Grant,Grants,20-Aug-21,2122/05,SME,N,
353939,THE KINETIC SCIENCE FOUNDATION,"3,757.98",Open Spaces,Contracted Services,02-Aug-21,2122/05,SME,N,
353940,THE KINETIC SCIENCE FOUNDATION,"2,495.00",RHSSF,Advertising&mkting (non-staff),02-Aug-21,2122/05,SME,N,
354022,EYES OPEN CIC,"1,600.00",Suffolk Community Restart Fund,Contributions from other LAs,06-Aug-21,2122/05,SME,N,
354232,EYES OPEN CIC,"4,800.00",Shop Front & Access Imp Grants,Annual Bldg Maint Contracts,17-Aug-21,2122/05,SME,N,
354415,NORTON PRE SCHOOL,"2,500.00",Suffolk Community Restart Fund,Contributions from other LAs,27-Aug-21,2122/05,SME,N,
354297,GREGG BROWN PHOTOGRAPHY,285,Assets & Development,Prof & Consultancy Fees,23-Aug-21,2122/05,ST,N,
354407,GREGG BROWN PHOTOGRAPHY,285,Communications,Advertising&mkting (non-staff),27-Aug-21,2122/05,ST,N,
354305,LIMELEASE LTD,395,Guaranteed Rent Scheme,Rent Payable,24-Aug-21,2122/05,SME,N,
354394,DEBENHAM SHED,"2,500.00",Suffolk Community Restart Fund,Contributions from other LAs,27-Aug-21,2122/05,SME,N,
353903,JLV PROPERTY LTD,500,Guaranteed Rent Scheme,Rent Payable,04-Aug-21,2122/05,SME,N,
353701,BUCHER MUNICIPAL LTD,"1,484.10",Open Spaces,"Equipment, Tools & Materials",22-Jul-21,2122/05,LGE,N,
354190,GIPPING CONSTRUCTION LTD,"31,243.93",Regen Fund - HQ Sites,Prof & Consultancy Fees,26-Jul-21,2122/05,SME,N,
354190,GIPPING CONSTRUCTION LTD,"409,039.07",Needham Market Middle School,Prof & Consultancy Fees,26-Jul-21,2122/05,SME,N,
354242,PRIVATE LANDLORD,786.5,Rent Deposit Scheme,Rent Payable,19-Aug-21,2122/05,ST,N,
354041,MRS SHELLEY SPALL T/A CLEANING COVERED,896,Business Cont/Emergency Plan,General Cleaning,05-Aug-21,2122/05,SME,N,
354094,PRIVATE LANDLORD,786.5,Guaranteed Rent Scheme,Rent Payable,11-Aug-21,2122/05,ST,N,
354118,COUNTRYSTYLE RECYCLING LTD,262,Trade Waste,Trade Waste Disposal,31-Jul-21,2122/05,SME,Y,50%
354119,COUNTRYSTYLE RECYCLING LTD,440.12,Bring Sites,Contracted Services,31-Jul-21,2122/05,SME,N,
354220,TEMPLE LETTINGS,650,Guaranteed Rent Scheme,Rent Payable,18-Aug-21,2122/05,SME,N,
421928,TEMPLE LETTINGS,"1,300.00",Rent Deposit Scheme,Misc Premises Costs,10-Aug-21,2122/05,SME,N,
353889,DGL QUALITY MANAGEMENT LTD,870.76,Needham Market Middle School,Prof & Consultancy Fees,31-Jul-21,2122/05,SME,N,
354125,OUR PARKS LTD,"3,410.00",Policy & Strategy (H & W),Grants,11-Aug-21,2122/05,SME,Y,50%
354414,WOOLPIT CHILDCARE CENTRE LTD(WOOLPITARC),"1,250.00",Suffolk Community Restart Fund,Contributions from other LAs,27-Aug-21,2122/05,SME,N,
353841,BSEVC,"2,449.00",Suffolk Community Restart Fund,Contributions from other LAs,28-Jul-21,2122/05,SME,N,
353846,RSK LAND & DEVELOPMENT ENGINEERING LTD,"1,648.00",Strategic Assets,Prof & Consultancy Fees,30-Jun-21,2122/05,LGE,N,
354021,PCC OF STOWMARKET,"6,230.84",Community Fund Projects-Grants,Grants,06-Aug-21,2122/05,SME,N,
354096,ARAN INSULATION LTD,648,Insulation Imps,Improvements,10-Aug-21,2122/05,SME,N,
354231,ARAN INSULATION LTD,"2,563.78",Renovation/Home Repair Grants,Grants,17-Aug-21,2122/05,SME,N,
354250,ARAN INSULATION LTD,"1,189.94",Insulation Imps,Improvements,19-Aug-21,2122/05,SME,N,
354251,ARAN INSULATION LTD,"1,227.64",Insulation Imps,Improvements,19-Aug-21,2122/05,SME,N,
354387,MID SUFFOLK CONSTRUCTION & MAINTENANCE,"5,640.00",Mand Disabled Facilities Grant,Grants,27-Aug-21,2122/05,SME,N,
353936,HM REVENUES & CUSTOMS (CIS TAX),452.26,Current Liabilities,Bank Payments,05-Aug-21,2122/05,LGE,N,
353892,IAN BOOTH CONSULTANT ENGINEER LTD,510,Strategic Assets,Prof & Consultancy Fees,31-Jul-21,2122/05,SME,N,
354255,STORM ENVIRONMENTAL LTD,"24,295.00",Bins,Bins,18-Aug-21,2122/05,SME,Y,50%
354208,PUREGYM LIMITED,"60,000.00",Regen Fund,Improvements,26-Mar-21,2122/05,LGE,N,
353835,DEBENHAM LEISURE CENTRE FOOTBALL CLUB,500,Grants & Contrbns,Contributions & Donations,27-Jul-21,2122/05,SME,N,
353838,DEBENHAM STREET FAIR GROUP,800,Grants & Contrbns,Contributions & Donations,27-Jul-21,2122/05,SME,N,
353913,MARCHDELL LTD,715,Guaranteed Rent Scheme,Rent Payable,04-Aug-21,2122/05,SME,N,
353913,MARCHDELL LTD,750,Guaranteed Rent Scheme,Misc Supplies & Services Costs,04-Aug-21,2122/05,SME,N,
353868,WORTHAM LAWN TENNIS CLUB,375,Suffolk Community Restart Fund,Contributions from other LAs,29-Jul-21,2122/05,SME,N,
353869,FAIRVIEW FARM ENTERPRISES CIC,"2,500.00",Suffolk Community Restart Fund,Contributions from other LAs,29-Jul-21,2122/05,SME,N,
353870,ST BOTOLPHS & DISTRICT BOWLS CLUB,333,Suffolk Community Restart Fund,Contributions from other LAs,29-Jul-21,2122/05,SME,N,
353916,SOUTHERN SCREEN HIRE LTD,624.6,RHSSF,"Equipment, Tools & Materials",04-Aug-21,2122/05,SME,N,
354073,URBA,750,Devt Policy & Local Plans,Prof & Consultancy Fees,09-Aug-21,2122/05,SME,Y,50%
354039,SUFFOLK GLAZING REPAIRS LTD,"1,020.00",Renovation/Home Repair Grants,Grants,10-Aug-21,2122/05,SME,N,
354023,SPOT WELLBEING,750,Suffolk Community Restart Fund,Contributions from other LAs,06-Aug-21,2122/05,SME,N,
354388,SUFFOLK OXYGEN THERAPY CENTRE,400,Suffolk Community Restart Fund,Contributions from other LAs,27-Aug-21,2122/05,SME,N,
354390,WALSHAM LE WILLOWS YOUTH FOOTBALL CLUB,"1,246.88",Suffolk Community Restart Fund,Contributions from other LAs,27-Aug-21,2122/05,SME,N,
421925,E.ON NEXT,466.04,Other HRA Temp Accommodation,Heating Charges,17-Jul-21,2122/05,LGE,N,
354114,IPSERV LTD,851.55,Central Printing,Commercial Printing,10-Aug-21,2122/05,SME,N,
354114,IPSERV LTD,609.91,Communications,Commercial Printing,10-Aug-21,2122/05,SME,Y,50%
354115,IPSERV LTD,236.25,Central Printing,Commercial Printing,10-Aug-21,2122/05,SME,N,
354115,IPSERV LTD,394.94,Communications,Commercial Printing,10-Aug-21,2122/05,SME,Y,50%
354398,ELMSWELL FOOTBALL CLUB,"1,500.00",Suffolk Community Restart Fund,Contributions from other LAs,27-Aug-21,2122/05,SME,N,
354411,STONHAM ASPAL PRE SCHOOL,"1,306.95",Suffolk Community Restart Fund,Contributions from other LAs,27-Aug-21,2122/05,SME,N,
870,CHASSIS-CAB LTD,-456.86,Street & Major Road Cleansing,Plant & Vehicle - Other costs,17-Aug-21,2122/05,SME,N,
195,ELMHURST ENERGY SYSTEMS LTD - DD,-485,Bldg Regs Chargeable Serv,Contracted Services,04-Aug-21,2122/05,SME,Y,50%
354331,PHS GROUP PLC,-107.67,Temporary Accommodation,Contracted Services,24-Aug-21,2122/05,LGE,N,
354160,WORKWEAR (EAST ANGLIA) LTD,-38.32,Street & Major Road Cleansing,Protective clothing,19-Jul-21,2122/05,SME,N,
196,GIPPING OCCUPATIONAL HEALTH LTD,-645,Health & Safety,Contracted Services,12-Aug-21,2122/05,SME,Y,50%
871,HM REVENUES & CUSTOMS (CIS TAX),-452.26,Current Liabilities,Construction Industry Tax,12-Aug-21,2122/05,LGE,N,
421931,HM REVENUES & CUSTOMS (CIS TAX),-411.87,Current Liabilities,Cert IBS Creditors Holding ac,13-Jul-21,2122/05,LGE,N,
421932,HM REVENUES & CUSTOMS (CIS TAX),-725.33,Current Liabilities,Bank Payments,15-Jun-21,2122/05,LGE,N,
869,SOUTHERN SCREEN HIRE LTD,-624.6,Health & Safety,"Equipment, Tools & Materials",16-Aug-21,2122/05,SME,N,
354903,AE WHITE SURFACING,885,Open Spaces,Annual Bldg Maint Contracts,20-Sep-21,2122/06,SME,N,
354418,AGROCO TRAILERS,"3,470.00",Vehicle and Plant Renewals,Plant & Vehicle - Purchase,27-Aug-21,2122/06,SME,N,
354350,ANGLIA RUSKIN UNIVERSITY,"4,500.00",Organisational Devt,Post-Entry Training,17-Sep-20,2122/06,LGE,Y,50%
354522,ANGLIAN WATER,956.59,Tenancy Services,Water Rates - Metered,26-Aug-21,2122/06,LGE,N,
354687,ANGLIAN WATER,"3,456.65",Sheltered Accommodation,Water Rates - Metered,23-Aug-21,2122/06,LGE,N,
354767,ANGLIAN WATER,926.84,Sheltered Accommodation,Water Rates - Metered,31-Aug-21,2122/06,LGE,N,
354892,APSE,"2,255.00",Food & Safety (General),Agency Staff,20-Sep-21,2122/06,LGE,Y,50%
354892,APSE,"2,255.00",Animal Welfare Licensing,Agency Staff,20-Sep-21,2122/06,LGE,Y,50%
354354,AQUAJET CLEANING EQUIPMENT LTD,920,Creeting Rd Depot,"Equipment, Tools & Materials",26-Aug-21,2122/06,SME,Y,50%
354449,ARLINGCLOSE LTD,282.36,Treasury Management,Contracted Services,31-Aug-21,2122/06,SME,N,
354598,BINDER LTD,52.5,Wingfield Barns,Annual Bldg Maint Contracts,25-Aug-21,2122/06,SME,N,
354598,BINDER LTD,225,Wingfield Barns,Annual Bldg Maint Contracts,25-Aug-21,2122/06,SME,N,
421941,BLUE FLAME (COLCHESTER) LTD,"5,255.16",Planned Maint - Heating,Property Servicing,01-Sep-21,2122/06,SME,N,
421941,BLUE FLAME (COLCHESTER) LTD,814.57,PV Panels,Contracted Services,01-Sep-21,2122/06,SME,N,
422052,BLUE FLAME (COLCHESTER) LTD,"13,921.94",Planned Maint - Heating,Property Servicing,08-Sep-21,2122/06,SME,N,
422052,BLUE FLAME (COLCHESTER) LTD,"1,657.84",PV Panels,Contracted Services,08-Sep-21,2122/06,SME,N,
422052,BLUE FLAME (COLCHESTER) LTD,167.14,Voids Maintenance,Repairs,08-Sep-21,2122/06,SME,N,
422055,BLUE FLAME (COLCHESTER) LTD,131.32,Voids Maintenance,Repairs,15-Sep-21,2122/06,SME,N,
422055,BLUE FLAME (COLCHESTER) LTD,"15,347.27",Planned Maint - Heating,Property Servicing,15-Sep-21,2122/06,SME,N,
422055,BLUE FLAME (COLCHESTER) LTD,180.96,Smoke Alarms (Bbgh Standard),Improvements,15-Sep-21,2122/06,SME,N,
422055,BLUE FLAME (COLCHESTER) LTD,"1,628.01",PV Panels,Contracted Services,15-Sep-21,2122/06,SME,N,
422055,BLUE FLAME (COLCHESTER) LTD,40,Housing Rechargeable Works,Repairs,15-Sep-21,2122/06,SME,N,
422142,BLUE FLAME (COLCHESTER) LTD,33.98,Disabled Facilities (Revenue),Repairs,22-Sep-21,2122/06,SME,N,
422142,BLUE FLAME (COLCHESTER) LTD,"14,747.92",Planned Maint - Heating,Property Servicing,22-Sep-21,2122/06,SME,N,
422142,BLUE FLAME (COLCHESTER) LTD,169.9,Central Heating,Improvements,22-Sep-21,2122/06,SME,N,
422142,BLUE FLAME (COLCHESTER) LTD,380.63,PV Panels,Contracted Services,22-Sep-21,2122/06,SME,N,
422142,BLUE FLAME (COLCHESTER) LTD,154.41,Housing Rechargeable Works,Repairs,22-Sep-21,2122/06,SME,N,
422150,BLUE FLAME (COLCHESTER) LTD,135.92,Voids Maintenance,Repairs,29-Sep-21,2122/06,SME,N,
422150,BLUE FLAME (COLCHESTER) LTD,"16,963.54",Planned Maint - Heating,Property Servicing,29-Sep-21,2122/06,SME,N,
422150,BLUE FLAME (COLCHESTER) LTD,"17,101.00",Central Heating,Improvements,29-Sep-21,2122/06,SME,N,
422150,BLUE FLAME (COLCHESTER) LTD,367.97,PV Panels,Contracted Services,29-Sep-21,2122/06,SME,N,
354601,BOLTON BROTHERS LTD,369.57,Bring Sites,Contracted Services,31-Aug-21,2122/06,SME,N,
354355,BOWER FULLER,"4,314.15",Sheltered Accommodation,Fire Prevention,28-Jul-21,2122/06,SME,N,
354359,BOWER FULLER,672.33,Creeting Rd Depot,Security Systems,02-Aug-21,2122/06,SME,Y,50%
354360,BOWER FULLER,475.2,Sheltered Accommodation,Fire Prevention,02-Aug-21,2122/06,SME,N,
354361,BOWER FULLER,391.2,Sheltered Accommodation,Fire Prevention,02-Aug-21,2122/06,SME,Y,50%
354364,BOWER FULLER,450,Responsive maintenance,Fire Prevention,28-Jul-21,2122/06,SME,N,
354365,BOWER FULLER,930.37,Sheltered Accommodation,Fire Prevention,28-Jul-21,2122/06,SME,N,
354366,BOWER FULLER,"5,134.79",Sheltered Accommodation,Fire Prevention,28-Jul-21,2122/06,SME,N,
354367,BOWER FULLER,958.83,Sheltered Accommodation,Fire Prevention,28-Jul-21,2122/06,SME,N,
354644,BUTTON & TURNER LTD,273.13,Open Spaces,Plant & Vehicle - Other costs,24-Aug-21,2122/06,SME,N,
354662,AQUASAMPLERS,970,Water Sampling,Sampling & Analysis,31-Aug-21,2122/06,SME,N,
354887,CENTRAL TYRE LTD,251.04,Open Spaces,Plant & Vehicle - Other costs,20-Sep-21,2122/06,SME,N,
354695,CHIPSIDE LTD,481.5,C Parks General,Contracted Services,31-Aug-21,2122/06,SME,N,
354281,CLARKE FENCING LTD,386.55,Building Services,Repairs,19-Aug-21,2122/06,SME,N,
354406,CLARKE FENCING LTD,283.84,Open Spaces,"Equipment, Tools & Materials",26-Aug-21,2122/06,SME,N,
354544,CLARKE FENCING LTD,543.61,Open Spaces,"Equipment, Tools & Materials",31-Aug-21,2122/06,SME,N,
354311,D W ADAMS LTD,"5,977.72",Council House Adaptions,Improvements,24-Aug-21,2122/06,SME,N,
354385,D W ADAMS LTD,"3,655.00",Building Services,Repairs,27-Aug-21,2122/06,SME,N,
354608,D W ADAMS LTD,"3,638.00",Building Services,Repairs,06-Sep-21,2122/06,SME,N,
354735,D W ADAMS LTD,587,Building Services,Repairs,10-Sep-21,2122/06,SME,N,
354853,D W ADAMS LTD,"4,311.00",Council House Adaptions,Improvements,17-Sep-21,2122/06,SME,N,
354905,DOLPHIN STAIRLIFTS (EAST ANGLIA) LTD,"4,396.00",Mand Disabled Facilities Grant,Grants,20-Sep-21,2122/06,SME,N,
354914,DOLPHIN STAIRLIFTS (EAST ANGLIA) LTD,"1,711.00",Mand Disabled Facilities Grant,Grants,21-Sep-21,2122/06,SME,N,
355173,DOLPHIN STAIRLIFTS (EAST ANGLIA) LTD,"4,793.00",Mand Disabled Facilities Grant,Grants,30-Sep-21,2122/06,SME,N,
354420,EAST ANGLIA CLEANING SERVICES LTD,"1,374.49",Jnt Waste Contract,General Cleaning,28-Aug-21,2122/06,SME,Y,50%
354421,EAST ANGLIA CLEANING SERVICES LTD,902.94,Open Spaces,General Cleaning,28-Aug-21,2122/06,SME,Y,50%
354825,EAST OF ENGLAND LGA,"9,119.06",Management Team,Subscriptions,08-Sep-21,2122/06,SME,N,
354419,EGBERT H.TAYLOR & CO.LTD.,"5,591.34",Bins,Bins,27-Aug-21,2122/06,SME,Y,50%
422059,ENVIRONMENT AGENCY,"2,534.00",BRRP Needham Lake Visitor Ctr,Prof & Consultancy Fees,14-Sep-21,2122/06,LGE,N,
354299,FELLBRIDGE BUILDING SERVICES,"21,109.82",Building Services,Repairs,23-Aug-21,2122/06,SME,N,
354568,FELLBRIDGE BUILDING SERVICES,"3,490.75",Building Services,Repairs,02-Sep-21,2122/06,SME,N,
354576,FELLBRIDGE BUILDING SERVICES,"7,287.11",Building Services,Repairs,02-Sep-21,2122/06,SME,N,
354581,FELLBRIDGE BUILDING SERVICES,"33,311.79",Building Services,Repairs,02-Sep-21,2122/06,SME,N,
354721,FELLBRIDGE BUILDING SERVICES,"5,463.68",Building Services,Repairs,09-Sep-21,2122/06,SME,N,
355005,FELLBRIDGE BUILDING SERVICES,"1,631.09",Building Services,Repairs,23-Sep-21,2122/06,SME,N,
355007,FELLBRIDGE BUILDING SERVICES,560,Building Services,Repairs,23-Sep-21,2122/06,SME,N,
355008,FELLBRIDGE BUILDING SERVICES,"1,639.99",Building Services,Repairs,23-Sep-21,2122/06,SME,N,
355009,FELLBRIDGE BUILDING SERVICES,"8,065.27",Major Imps,Improvements,23-Sep-21,2122/06,SME,N,
353906,FORE-MOST GARAGE DOORS LTD,468.11,Building Services,Repairs,31-Jul-21,2122/06,SME,N,
353906,FORE-MOST GARAGE DOORS LTD,78,Building Services,Repairs,31-Jul-21,2122/06,SME,N,
354518,FORE-MOST GARAGE DOORS LTD,"1,452.00",Building Services,Repairs,31-Aug-21,2122/06,SME,N,
354875,G & G SIGNS,284.4,Street Naming & Numbering,Signs,29-Jun-21,2122/06,SME,N,
354921,GB ADAPTIONS LTD,695,Mand Disabled Facilities Grant,Grants,21-Sep-21,2122/06,SME,N,
353967,G4S CASH SOLUTIONS LTD,720.72,Financial Servs,Contracted Services,02-Jun-21,2122/06,LGE,N,
353968,G4S CASH SOLUTIONS LTD,514.8,Financial Servs,Contracted Services,02-Jun-21,2122/06,LGE,N,
354683,G4S CASH SOLUTIONS LTD,743.6,Financial Servs,Contracted Services,02-Jul-21,2122/06,LGE,N,
354684,G4S CASH SOLUTIONS LTD,514.8,Financial Servs,Contracted Services,02-Jul-21,2122/06,LGE,N,
354889,HOUSEMARK LTD,"5,846.00",General/Supervision & Mgmt,Subscriptions,10-Aug-21,2122/06,SME,Y,50%
355019,JOHN PEEL CENTRE FOR CREATIVE ARTS,"2,160.00",Suffolk Community Restart Fund,Grants,24-Sep-21,2122/06,SME,N,
354585,KEYWAYS THE LOCKSMITHS LTD,868,Sheltered Accommodation,Repairs,03-Sep-21,2122/06,SME,N,
354663,KEYWAYS THE LOCKSMITHS LTD,300,Building Services,Repairs,07-Sep-21,2122/06,SME,N,
354729,KEYWAYS THE LOCKSMITHS LTD,280,Building Services,Repairs,10-Sep-21,2122/06,SME,N,
354934,LABC,600,Bldg Regs Chargeable Serv,Training,22-Sep-21,2122/06,SME,Y,50%
354450,M & H CIVIL ENGINEERING LTD,782.25,Building Services,Repairs,31-Aug-21,2122/06,SME,N,
354769,MATERIAL CHANGE COMPOSTING LTD,"1,615.20",Open Spaces,"Equipment, Tools & Materials",31-Aug-21,2122/06,LGE,N,
354770,MATERIAL CHANGE COMPOSTING LTD,583.4,Open Spaces,Waste Disposal,31-Aug-21,2122/06,LGE,N,
354932,MATERIAL CHANGE COMPOSTING LTD,960,Jnt Waste Contract,"Equipment, Tools & Materials",20-Sep-21,2122/06,LGE,Y,50%
354445,MB TREES (EAST ANGLIA) LTD,820,Amenity Areas,Tree felling/maintenance,31-Aug-21,2122/06,SME,N,
355002,MB TREES (EAST ANGLIA) LTD,380,Public Tree Programme,Tree felling/maintenance,23-Sep-21,2122/06,SME,N,
355122,MB TREES (EAST ANGLIA) LTD,285,Amenity Areas,Tree felling/maintenance,28-Sep-21,2122/06,SME,N,
355123,MB TREES (EAST ANGLIA) LTD,840,Tenancy Services,Tree felling/maintenance,28-Sep-21,2122/06,SME,N,
354171,MERCURY BUILDING SERVICES LTD,"31,400.10",Sheltered Units-Gen.Imp,Improvements,16-Aug-21,2122/06,SME,N,
354563,PITMAN BROTHERS (DECORATORS) LTD,"1,650.00",Building Services,Repairs,02-Sep-21,2122/06,SME,N,
354821,PRO-FLAT SPECIALIST SERVICES LTD,"1,362.00",Building Services,Repairs,15-Sep-21,2122/06,SME,N,
354334,REID PLUMBING & HEATING CONTRACTORS LTD,"13,416.44",Central Heating,Major Contracts,25-Aug-21,2122/06,SME,N,
354485,REID PLUMBING & HEATING CONTRACTORS LTD,"9,048.14",Central Heating,Major Contracts,01-Sep-21,2122/06,SME,N,
354673,REID PLUMBING & HEATING CONTRACTORS LTD,"4,937.92",Central Heating,Major Contracts,08-Sep-21,2122/06,SME,N,
354798,REID PLUMBING & HEATING CONTRACTORS LTD,"5,153.60",Central Heating,Major Contracts,14-Sep-21,2122/06,SME,N,
354819,REID PLUMBING & HEATING CONTRACTORS LTD,"26,579.90",Central Heating,Major Contracts,14-Sep-21,2122/06,SME,N,
354900,REID PLUMBING & HEATING CONTRACTORS LTD,"3,995.00",Central Heating,Major Contracts,20-Sep-21,2122/06,SME,N,
355010,REID PLUMBING & HEATING CONTRACTORS LTD,"15,114.74",Central Heating,Major Contracts,23-Sep-21,2122/06,SME,N,
354332,SACKERS LTD,274.39,Building Services,Waste Disposal,25-Aug-21,2122/06,SME,Y,50%
354333,SACKERS LTD,480.02,Building Services,Waste Disposal,23-Aug-21,2122/06,SME,Y,50%
354347,SACKERS LTD,284.79,Building Services,Waste Disposal,25-Aug-21,2122/06,SME,Y,50%
354521,SACKERS LTD,574.46,Building Services,Waste Disposal,31-Aug-21,2122/06,SME,Y,50%
354610,SACKERS LTD,457.05,Building Services,Waste Disposal,02-Sep-21,2122/06,SME,Y,50%
354823,SACKERS LTD,405.37,Building Services,Waste Disposal,07-Sep-21,2122/06,SME,Y,50%
354824,SACKERS LTD,434.08,Building Services,Waste Disposal,06-Sep-21,2122/06,SME,Y,50%
354826,SACKERS LTD,574.76,Building Services,Waste Disposal,31-Aug-21,2122/06,SME,Y,50%
354827,SACKERS LTD,471.41,Building Services,Waste Disposal,14-Sep-21,2122/06,SME,Y,50%
354936,SOLUTIONS ON SECURITY SERVICES,"1,487.33",Creeting Rd Depot,Security Systems,22-Sep-21,2122/06,SME,Y,50%
354937,SOLUTIONS ON SECURITY SERVICES,"2,165.20",Creeting Rd Depot,Security Systems,22-Sep-21,2122/06,SME,Y,50%
354938,SOLUTIONS ON SECURITY SERVICES,740,Creeting Rd Depot,Security Systems,22-Sep-21,2122/06,SME,Y,50%
354939,SOLUTIONS ON SECURITY SERVICES,785.5,Creeting Rd Depot,Security Systems,22-Sep-21,2122/06,SME,Y,50%
354668,SWIFT INDUSTRIAL SUPPLIES LTD,875,Jnt Waste Contract,"Equipment, Tools & Materials",07-Sep-21,2122/06,SME,Y,50%
354422,TANKCHANGE LTD,345,Central Heating,Improvements,16-Aug-21,2122/06,SME,N,
354423,TANKCHANGE LTD,345,Central Heating,Improvements,16-Aug-21,2122/06,SME,N,
354424,TANKCHANGE LTD,345,Central Heating,Improvements,16-Aug-21,2122/06,SME,N,
354425,TANKCHANGE LTD,"1,995.00",Central Heating,Improvements,16-Aug-21,2122/06,SME,N,
354426,TANKCHANGE LTD,"2,195.00",Central Heating,Improvements,16-Aug-21,2122/06,SME,N,
354427,TANKCHANGE LTD,"2,200.00",Central Heating,Improvements,16-Aug-21,2122/06,SME,N,
354428,TANKCHANGE LTD,"2,175.00",Central Heating,Improvements,16-Aug-21,2122/06,SME,N,
354429,TANKCHANGE LTD,"2,145.00",Central Heating,Improvements,18-Jul-21,2122/06,SME,N,
354430,TANKCHANGE LTD,"2,200.00",Central Heating,Improvements,16-Aug-21,2122/06,SME,N,
354431,TANKCHANGE LTD,"2,095.00",Central Heating,Improvements,29-Jul-21,2122/06,SME,N,
354432,TANKCHANGE LTD,345,Central Heating,Improvements,29-Jul-21,2122/06,SME,N,
354437,TANKCHANGE LTD,985,Responsive maintenance,Repairs,29-Jul-21,2122/06,SME,N,
354438,TANKCHANGE LTD,"2,045.00",Central Heating,Improvements,16-Aug-21,2122/06,SME,N,
354439,TANKCHANGE LTD,345,Central Heating,Improvements,29-Jul-21,2122/06,SME,N,
354440,TANKCHANGE LTD,345,Central Heating,Improvements,29-Jul-21,2122/06,SME,N,
354441,TANKCHANGE LTD,345,Central Heating,Improvements,29-Jul-21,2122/06,SME,N,
354442,TANKCHANGE LTD,"2,145.00",Central Heating,Improvements,16-Aug-21,2122/06,SME,N,
354443,TANKCHANGE LTD,"2,175.00",Central Heating,Improvements,16-Aug-21,2122/06,SME,N,
354467,TANKCHANGE LTD,395,Central Heating,Improvements,29-Jul-21,2122/06,SME,N,
354849,TANKCHANGE LTD,"2,145.00",Central Heating,Improvements,03-Sep-21,2122/06,SME,N,
354303,THERMATECH,"1,600.00",Sheltered Accommodation,Fire Prevention,23-Aug-21,2122/06,SME,N,
354891,THRIFTY CAR & VAN RENTAL,749.9,Elections,Miscellaneous Insurances,02-Sep-21,2122/06,LGE,N,
354685,VODAFONE CORPORATE LTD,"1,600.14",ICT,Telephone Costs,21-Jul-21,2122/06,LGE,Y,50%
353969,WINDIMAN LTD,"1,185.00",Council House Adaptions,Improvements,03-Aug-21,2122/06,SME,N,
354416,WINDIMAN LTD,940.4,Building Services,Repairs,27-Aug-21,2122/06,SME,N,
354417,WINDIMAN LTD,385.23,Building Services,Repairs,27-Aug-21,2122/06,SME,N,
354678,WINDIMAN LTD,612,Building Services,Repairs,31-Aug-21,2122/06,SME,N,
354869,WINDIMAN LTD,"1,250.00",Building Services,Repairs,16-Sep-21,2122/06,SME,N,
354870,WINDIMAN LTD,627.38,Building Services,Repairs,16-Sep-21,2122/06,SME,N,
355006,WINDIMAN LTD,700,Building Services,Repairs,23-Sep-21,2122/06,SME,N,
354856,WORKWEAR (EAST ANGLIA) LTD,312.17,Public Realm TransitionProject,Protective clothing,21-Aug-21,2122/06,SME,Y,50%
354857,WORKWEAR (EAST ANGLIA) LTD,312.17,Public Realm TransitionProject,Protective clothing,21-Aug-21,2122/06,SME,Y,50%
354858,WORKWEAR (EAST ANGLIA) LTD,312.17,Public Realm TransitionProject,Protective clothing,21-Aug-21,2122/06,SME,Y,50%
354859,WORKWEAR (EAST ANGLIA) LTD,312.17,Public Realm TransitionProject,Protective clothing,21-Aug-21,2122/06,SME,Y,50%
354860,WORKWEAR (EAST ANGLIA) LTD,312.17,Public Realm TransitionProject,Protective clothing,21-Aug-21,2122/06,SME,Y,50%
354861,WORKWEAR (EAST ANGLIA) LTD,312.17,Public Realm TransitionProject,Protective clothing,21-Aug-21,2122/06,SME,Y,50%
354862,WORKWEAR (EAST ANGLIA) LTD,312.17,Public Realm TransitionProject,Protective clothing,21-Aug-21,2122/06,SME,Y,50%
354863,WORKWEAR (EAST ANGLIA) LTD,312.17,Public Realm TransitionProject,Protective clothing,21-Aug-21,2122/06,SME,Y,50%
354864,WORKWEAR (EAST ANGLIA) LTD,312.17,Public Realm TransitionProject,Protective clothing,21-Aug-21,2122/06,SME,Y,50%
354865,WORKWEAR (EAST ANGLIA) LTD,627.42,Public Realm TransitionProject,Protective clothing,19-Aug-21,2122/06,SME,Y,50%
354867,WORKWEAR (EAST ANGLIA) LTD,313.71,Public Realm TransitionProject,Protective clothing,19-Aug-21,2122/06,SME,Y,50%
354868,WORKWEAR (EAST ANGLIA) LTD,313.71,Public Realm TransitionProject,Protective clothing,19-Aug-21,2122/06,SME,Y,50%
354304,ARCHANT COMMUNITY MEDIA LTD,770.44,Devt Management - Apps,Advertising&mkting (non-staff),21-Aug-21,2122/06,LGE,N,
354562,ARCHANT COMMUNITY MEDIA LTD,577.83,Devt Management - Apps,Advertising&mkting (non-staff),31-Aug-21,2122/06,LGE,N,
354590,ARCHANT COMMUNITY MEDIA LTD,591.67,Civil Parking Enforcement,Advertising&mkting (non-staff),31-Aug-21,2122/06,LGE,N,
354690,ARCHANT COMMUNITY MEDIA LTD,315.18,Devt Management - Apps,Advertising&mkting (non-staff),04-Sep-21,2122/06,LGE,N,
354759,ARCHANT COMMUNITY MEDIA LTD,315.18,Devt Management - Apps,Advertising&mkting (non-staff),11-Sep-21,2122/06,LGE,N,
355082,ARCHANT COMMUNITY MEDIA LTD,551.57,Devt Management - Apps,Advertising&mkting (non-staff),25-Sep-21,2122/06,LGE,N,
353372,ESSEX COUNTY COUNCIL,749,Conservation,Prof & Consultancy Fees,05-Jul-21,2122/06,LGE,N,
353513,ESSEX COUNTY COUNCIL,"6,541.75",Devt Management - Apps,Ecology Consultancy,02-Jul-21,2122/06,LGE,N,
353660,ESSEX COUNTY COUNCIL,"1,275.00",Pre App Charging,Ecology Consultancy,02-Jul-21,2122/06,LGE,N,
354999,ESSEX COUNTY COUNCIL,"9,983.75",Devt Management - Apps,Landscape Consultancy,23-Sep-21,2122/06,LGE,N,
355000,ESSEX COUNTY COUNCIL,"1,464.00",Pre App Charging,Landscape Consultancy,23-Sep-21,2122/06,LGE,N,
354569,BUILDBASE,685.39,Open Spaces,"Equipment, Tools & Materials",20-Aug-21,2122/06,LGE,N,
354602,IPSWICH BOROUGH COUNCIL,1.77,Communications,Commercial Printing,01-Sep-21,2122/06,LGE,Y,100%
354602,IPSWICH BOROUGH COUNCIL,"2,325.27",Central Printing,Commercial Printing,01-Sep-21,2122/06,LGE,N,
354602,IPSWICH BOROUGH COUNCIL,226.96,Communications,Commercial Printing,01-Sep-21,2122/06,LGE,N,
354760,SERCO LTD,"4,377.00",Domestic Waste,Refuse Contract,06-Sep-21,2122/06,LGE,Y,50%
354762,SERCO LTD,"22,179.86",Trade Waste,Refuse Contract,10-Sep-21,2122/06,LGE,Y,60%
354762,SERCO LTD,"77,664.58",Garden Waste,Refuse Contract,10-Sep-21,2122/06,LGE,Y,48%
354762,SERCO LTD,"292,516.56",Domestic Waste,Refuse Contract,10-Sep-21,2122/06,LGE,Y,48%
354763,SERCO LTD,"8,075.33",Domestic Waste,Refuse Contract,10-Sep-21,2122/06,LGE,Y,50%
355054,SERCO LTD,569.6,Domestic Waste,Refuse Contract,22-Sep-21,2122/06,LGE,Y,50%
354801,TRAVIS PERKINS TRADING CO LTD,"38,234.18",Building Services,"Equipment, Tools & Materials",01-Sep-21,2122/06,LGE,Y,60%
422062,EDF ENERGY,90.73,"11 Market Place, Stowmarket",Electricity,17-Sep-21,2122/06,LGE,N,
422062,EDF ENERGY,475.98,Creeting Rd Depot,Electricity,17-Sep-21,2122/06,LGE,Y,50%
422062,EDF ENERGY,282.86,Headquarters General,Electricity,17-Sep-21,2122/06,LGE,N,
422062,EDF ENERGY,"15,042.67",Leisure Contract,Electricity,17-Sep-21,2122/06,LGE,N,
422062,EDF ENERGY,15.42,Needham Market Middle School,Electricity,17-Sep-21,2122/06,LGE,N,
422062,EDF ENERGY,267.04,Open Spaces,Electricity,17-Sep-21,2122/06,LGE,N,
422062,EDF ENERGY,333.19,Other HRA Temp Accommodation,Electricity,17-Sep-21,2122/06,LGE,N,
422062,EDF ENERGY,0.69,Paddock House Eye,Electricity,17-Sep-21,2122/06,LGE,N,
422062,EDF ENERGY,31.26,Public Conveniences,Electricity,17-Sep-21,2122/06,LGE,N,
422062,EDF ENERGY,374.4,Pure Gym & Adjacent Building,Electricity,17-Sep-21,2122/06,LGE,N,
422062,EDF ENERGY,1.9,Recycling Centre,Electricity,17-Sep-21,2122/06,LGE,N,
422062,EDF ENERGY,324.2,Sewage Treatment Works,Electricity,17-Sep-21,2122/06,LGE,N,
422062,EDF ENERGY,"6,672.62",Sheltered Accommodation,Electricity,17-Sep-21,2122/06,LGE,N,
422062,EDF ENERGY,67.57,Tacon Close Eye TDP,Electricity,17-Sep-21,2122/06,LGE,N,
422062,EDF ENERGY,363.79,Temporary Accommodation,Electricity,17-Sep-21,2122/06,LGE,N,
422062,EDF ENERGY,"1,094.71",Tenancy Services,Electricity,17-Sep-21,2122/06,LGE,N,
422062,EDF ENERGY,769.76,Wingfield Barns,Electricity,17-Sep-21,2122/06,LGE,N,
354880,J BREHENY CONTRACTORS LTD,"43,672.64",Strategic Assets,Major Contracts,07-Sep-21,2122/06,LGE,N,
422061,GPC BARCLAYS,"2,350.42",Current Assets,Barclaycard Control,14-Sep-21,2122/06,LGE,Y,18%
421944,ALLSTAR BUSINESS SOLUTIONS LTD,102.57,Housing Options,Plant & Vehicle Fuel,31-Aug-21,2122/06,SME,Y,50%
421944,ALLSTAR BUSINESS SOLUTIONS LTD,"6,486.14",Building Services,Plant & Vehicle Fuel,31-Aug-21,2122/06,SME,Y,50%
354280,STANNAH STAIRLIFTS LTD,"2,605.00",Council House Adaptions,Improvements,30-Jun-21,2122/06,LGE,N,
354571,STANNAH STAIRLIFTS LTD,"3,359.00",Asbestos,Repairs,02-Sep-21,2122/06,LGE,N,
421945,COMPUTERSHARE ,"1,276.00",Current Assets,ChildCare Vouchers-Control,27-Aug-21,2122/06,LGE,N,
354629,1331 STOWMARKET SQUADRON,"1,704.00",Grants & Contrbns,Contributions & Donations,07-Sep-21,2122/06,SME,N,
354619,BACTON PARISH COUNCIL,700,Grants & Contrbns,Contributions & Donations,06-Sep-21,2122/06,SME,N,
354626,BADWELL ASH PARISH COUNCIL,"1,000.00",Grants & Contrbns,Contributions & Donations,06-Sep-21,2122/06,SME,N,
354913,BRAMFORD PARISH COUNCIL,"11,700.00",S106 Open Spaces Expenditure,Grants,20-Sep-21,2122/06,SME,N,
355030,BRUNDISH PARISH COUNCIL,"2,000.00",Grants & Contrbns,Contributions & Donations,24-Sep-21,2122/06,SME,N,
354843,DEBENHAM VILLAGE HALL & PLAYING FIELD TR,"6,510.35",Policy & Strategy (H & W),Grants,15-Sep-21,2122/06,SME,N,
422079,DEBENHAM VILLAGE HALL & PLAYING FIELD TR,774.43,Bring Sites,Contributions & Donations,21-Sep-21,2122/06,SME,N,
422082,EARL STONHAM PARISH COUNCIL,405.31,Bring Sites,Contributions & Donations,21-Sep-21,2122/06,SME,N,
422084,ELMSWELL PARISH COUNCIL,"1,011.47",Bring Sites,Contributions & Donations,21-Sep-21,2122/06,SME,N,
422087,FRAMSDEN PARISH COUNCIL,442.8,Bring Sites,Contributions & Donations,21-Sep-21,2122/06,SME,N,
355033,GREAT BRICETT PARISH COUNCIL,"2,000.00",Grants & Contrbns,Contributions & Donations,24-Sep-21,2122/06,SME,N,
354637,HAUGHLEY PARISH COUNCIL,962,Grants & Contrbns,Contributions & Donations,08-Sep-21,2122/06,SME,N,
354812,HAUGHLEY VILLAGE HALL MANAGEMENT COMMITT,"10,876.00",Community Fund Projects-Grants,Grants,14-Sep-21,2122/06,SME,N,
354634,HEMINGSTONE PARISH COUNCIL,"2,231.52",Grants & Contrbns,Contributions & Donations,07-Sep-21,2122/06,SME,N,
354612,HOME -START MID SUFFOLK,"2,000.00",Grants & Contrbns,Contributions & Donations,06-Sep-21,2122/06,SME,N,
422096,HOXNE VILLAGE HALL,373.38,Bring Sites,Contributions & Donations,21-Sep-21,2122/06,SME,N,
354615,MENDHAM PARISH COUNCIL,"1,000.00",Grants & Contrbns,Contributions & Donations,06-Sep-21,2122/06,SME,N,
355020,METFIELD VILLAGE HALL,"2,500.00",Suffolk Community Restart Fund,Grants,24-Sep-21,2122/06,SME,N,
354625,MID SUFFOLK VOLUNTARY ORGANISATIONS FORU,"3,000.00",Grants & Contrbns,Contributions & Donations,06-Sep-21,2122/06,SME,N,
422103,NORTON PARISH COUNCIL,671.76,Bring Sites,Contributions & Donations,21-Sep-21,2122/06,SME,N,
354616,PALGRAVE & DISTRICT COMMUNITY CENTRE,980,Grants & Contrbns,Contributions & Donations,08-Sep-21,2122/06,SME,N,
422109,RATTLESDEN PARISH COUNCIL,314.16,Bring Sites,Contributions & Donations,21-Sep-21,2122/06,SME,N,
422111,RICKINGHALL VILLAGE HALL,552.77,Bring Sites,Contributions & Donations,21-Sep-21,2122/06,SME,N,
355028,STOWUPLAND PARISH COUNCIL,700,Grants & Contrbns,Contributions & Donations,24-Sep-21,2122/06,SME,N,
422129,WALSHAM LE WILLOWS MEMORIAL VILLAGE HALL,691.31,Bring Sites,Contributions & Donations,21-Sep-21,2122/06,SME,N,
354614,WEYBREAD PARISH COUNCIL,400,Grants & Contrbns,Contributions & Donations,06-Sep-21,2122/06,SME,N,
355027,WINGFIELD PARISH COUNCIL,310,Grants & Contrbns,Contributions & Donations,24-Sep-21,2122/06,SME,N,
422134,WOOLPIT PARISH COUNCIL,570.52,Bring Sites,Contributions & Donations,21-Sep-21,2122/06,SME,N,
422135,WORLINGWORTH COMMUNITY CENTRE COMMITTEE,291.41,Bring Sites,Contributions & Donations,21-Sep-21,2122/06,SME,N,
422136,WORTHAM VILLAGE HALL,434.06,Bring Sites,Contributions & Donations,21-Sep-21,2122/06,SME,N,
422137,WYVERSTONE VILLAGE HALL COMMITTEE,404.04,Bring Sites,Contributions & Donations,21-Sep-21,2122/06,SME,N,
422138,YAXLEY PARISH COUNCIL,400.02,Bring Sites,Contributions & Donations,21-Sep-21,2122/06,SME,N,
354507,SUFFOLK COUNTY COUNCIL,900,BMS Invest,Advertising&mkting (non-staff),31-Aug-21,2122/06,LGE,Y,50%
354607,SUFFOLK COUNTY COUNCIL,"10,424.88",Communications,Recruitment,03-Sep-21,2122/06,LGE,Y,50%
354674,SUFFOLK COUNTY COUNCIL,"18,848.19",Domestic Waste,MRF Disposal,07-Sep-21,2122/06,LGE,N,
354674,SUFFOLK COUNTY COUNCIL,"32,355.60",Garden Waste,Garden Waste Disposal,07-Sep-21,2122/06,LGE,N,
354886,SUFFOLK COUNTY COUNCIL,"2,945.00",Land Chgs,Contracted Services,20-Sep-21,2122/06,LGE,N,
422086,FELSHAM & GEDDING VILLAGE HALL M.C.,293.76,Bring Sites,Contributions & Donations,21-Sep-21,2122/06,SME,N,
422118,STOWMARKET COMMUNITY SPORTS & SOCIAL CLU,884.65,Bring Sites,Contributions & Donations,21-Sep-21,2122/06,SME,N,
354815,STOWMARKET TOWN COUNCIL,"17,339.42",S106 Open Spaces Expenditure,Grants,14-Sep-21,2122/06,SME,N,
355036,TELEFONICA UK LIMITED - O2,"1,312.83",ICT,Telephone Costs,27-Sep-21,2122/06,LGE,Y,50%
355057,KENNET EQUIPMENT LEASING,283.05,Creeting Rd Depot,Operating Lease Payments,27-Sep-21,2122/06,SME,Y,50%
354613,ALL SAINTS SCHOOLS TRUST,"2,000.00",Grants & Contrbns,Contributions & Donations,06-Sep-21,2122/06,SME,N,
354543,A. R. KENT & SONS (T/A KENT SKIPS),433.33,Building Services,Repairs,31-Aug-21,2122/06,SME,N,
354604,EAST OF ENGLAND CO-OPERATIVE SOCIETY LTD,"1,293.00",General Rechargeable Works,Misc Supplies & Services Costs,03-Sep-21,2122/06,LGE,N,
354776,LEX AUTOLEASE,"1,841.04",Building Services,Lease Cars - Payment,01-Sep-21,2122/06,SME,Y,50%
354777,LEX AUTOLEASE,"1,831.95",Building Services,Lease Cars - Payment,01-Sep-21,2122/06,SME,Y,50%
354778,LEX AUTOLEASE,"2,755.28",Building Services,Lease Cars - Payment,01-Sep-21,2122/06,SME,Y,50%
354779,LEX AUTOLEASE,"2,864.04",Building Services,Lease Cars - Payment,01-Sep-21,2122/06,SME,Y,50%
354780,LEX AUTOLEASE,"3,339.82",Building Services,Lease Cars - Payment,01-Sep-21,2122/06,SME,Y,50%
354781,LEX AUTOLEASE,"2,755.93",Building Services,Lease Cars - Payment,01-Sep-21,2122/06,SME,Y,50%
354782,LEX AUTOLEASE,"4,049.64",Building Services,Lease Cars - Payment,01-Sep-21,2122/06,SME,Y,50%
354783,LEX AUTOLEASE,"2,892.34",Building Services,Lease Cars - Payment,01-Sep-21,2122/06,SME,Y,50%
354784,LEX AUTOLEASE,"3,475.78",Building Services,Lease Cars - Payment,01-Sep-21,2122/06,SME,Y,50%
354785,LEX AUTOLEASE,"3,056.28",Building Services,Lease Cars - Payment,01-Sep-21,2122/06,SME,Y,50%
354786,LEX AUTOLEASE,"3,117.96",Building Services,Lease Cars - Payment,01-Sep-21,2122/06,SME,Y,50%
354787,LEX AUTOLEASE,"3,002.89",Building Services,Lease Cars - Payment,01-Sep-21,2122/06,SME,Y,50%
354788,LEX AUTOLEASE,"3,325.44",Building Services,Lease Cars - Payment,01-Sep-21,2122/06,SME,Y,50%
354789,LEX AUTOLEASE,"3,144.12",Building Services,Lease Cars - Payment,01-Sep-21,2122/06,SME,Y,50%
354790,LEX AUTOLEASE,"2,896.20",Building Services,Lease Cars - Payment,01-Sep-21,2122/06,SME,Y,50%
354791,LEX AUTOLEASE,"3,340.92",Building Services,Lease Cars - Payment,01-Sep-21,2122/06,SME,Y,50%
354792,LEX AUTOLEASE,"3,436.84",Building Services,Lease Cars - Payment,01-Sep-21,2122/06,SME,Y,50%
354793,LEX AUTOLEASE,"2,047.70",Building Services,Lease Cars - Payment,01-Sep-21,2122/06,SME,Y,50%
354794,LEX AUTOLEASE,"2,052.30",Building Services,Lease Cars - Payment,01-Sep-21,2122/06,SME,Y,50%
354796,LEX AUTOLEASE,256.76,Building Services,Lease Cars - Payment,05-Sep-21,2122/06,SME,Y,50%
353374,LANDMARK CHAMBERS,"2,500.00",Devt Management - Apps,Legal ex App proj&pre-decn adv,12-May-21,2122/06,SME,N,
354128,LANDMARK CHAMBERS,"1,500.00",Devt Management - Apps,Legal ex App proj&pre-decn adv,01-Jul-21,2122/06,SME,N,
354902,LANDMARK CHAMBERS,"1,500.00",Devt Management - Apps,Legal ex App proj&pre-decn adv,20-Sep-21,2122/06,SME,N,
354831,ESSEX AND SUFFOLK WATER,872.31,Sheltered Accommodation,Water Rates - Metered,09-Sep-21,2122/06,LGE,N,
422144,GAZPROM ENERGY,15.51,"11 Market Place, Stowmarket",Gas,22-Sep-21,2122/06,SME,N,
422144,GAZPROM ENERGY,82.18,Creeting Rd Depot,Gas,22-Sep-21,2122/06,SME,N,
422144,GAZPROM ENERGY,6.36,General/Supervision & Mgmt,Gas,22-Sep-21,2122/06,SME,N,
422144,GAZPROM ENERGY,2.63,Headquarters General,Gas,22-Sep-21,2122/06,SME,N,
422144,GAZPROM ENERGY,"3,024.98",Leisure Contract,Gas,22-Sep-21,2122/06,SME,N,
422144,GAZPROM ENERGY,71.99,Pure Gym & Adjacent Building,Gas,22-Sep-21,2122/06,SME,N,
422144,GAZPROM ENERGY,"2,906.13",Sheltered Accommodation,Gas,22-Sep-21,2122/06,SME,N,
422144,GAZPROM ENERGY,187.85,Temporary Accommodation,Gas,22-Sep-21,2122/06,SME,N,
422144,GAZPROM ENERGY,208.05,Tenancy Services,Gas,22-Sep-21,2122/06,SME,N,
354918,THE HOUSING OMBUDSMAN,"7,233.00",Capita System Support,Subscriptions,01-Jun-21,2122/06,LGE,N,
354650,ERNEST DOE & SONS LTD,274.96,Open Spaces,"Equipment, Tools & Materials",05-Aug-21,2122/06,LGE,N,
354346,WHYBROW PROPERTY SOLUTIONS LTD,"10,000.00",Building Services,Repairs,25-Aug-21,2122/06,SME,N,
354600,WHYBROW PROPERTY SOLUTIONS LTD,"10,000.00",Major Imps,Major Contracts,03-Sep-21,2122/06,SME,N,
354800,WHYBROW PROPERTY SOLUTIONS LTD,"3,976.62",Building Services,Repairs,10-Sep-21,2122/06,SME,N,
354933,WHYBROW PROPERTY SOLUTIONS LTD,"11,677.76",Council House Adaptions,Improvements,03-Sep-21,2122/06,SME,N,
354799,L A C CLEANING CONTRACTORS LIMITED,"2,972.25",Building Services,Repairs,14-Sep-21,2122/06,SME,N,
354640,ARMSTRONG YORK ASBESTOS ENVIRONMENTAL,"11,518.38",Asbestos Survey & Reinspection,Prof & Consultancy Fees,31-Aug-21,2122/06,SME,N,
354736,EXPERIAN LTD,650.79,Economy & Business,Subscriptions,31-Jul-21,2122/06,SME,Y,50%
422067,1ST BACTON SCOUT GROUP,552.44,Bring Sites,Contributions & Donations,21-Sep-21,2122/06,SME,N,
354704,COMMUNITY ACTION SUFFOLK,"2,000.00",Strategic Housing,Prof & Consultancy Fees,22-Jul-21,2122/06,SME,N,
354618,OLD NEWTON VILLAGE HALL,"1,000.00",Grants & Contrbns,Contributions & Donations,06-Sep-21,2122/06,SME,N,
422106,OLD NEWTON VILLAGE HALL,417.74,Bring Sites,Contributions & Donations,21-Sep-21,2122/06,SME,N,
354706,CHILDCARE VOUCHER LTD EDENRED (UK GROUP),554.75,Health & Safety,"Equipment, Tools & Materials",13-Sep-21,2122/06,SME,N,
354408,CONCERTUS DESIGN & PROPERTY CONSULTANTS,"3,905.00",Endeavour House - HQ,Misc Premises Costs,28-May-21,2122/06,SME,Y,50%
354409,CONCERTUS DESIGN & PROPERTY CONSULTANTS,"1,375.00",Endeavour House - HQ,Misc Premises Costs,30-Jul-21,2122/06,SME,Y,50%
354909,CONCERTUS DESIGN & PROPERTY CONSULTANTS,"1,375.00",Endeavour House - HQ,Misc Premises Costs,31-Aug-21,2122/06,SME,Y,50%
354480,ASHBURNHAM OVER 60'S CLUB,882,Suffolk Community Restart Fund,Contributions from other LAs,31-Aug-21,2122/06,SME,N,
354646,ORSIS UK LTD,"4,947.60",PV Panels,Contracted Services,06-Sep-21,2122/06,SME,N,
354854,OPUS PEOPLE SOLUTIONS LTD,856.82,Current Liabilities,Agency Staff Holding A/C,16-Sep-21,2122/06,SME,N,
355050,OPUS PEOPLE SOLUTIONS LTD,798.7,Current Liabilities,Agency Staff Holding A/C,23-Sep-21,2122/06,SME,N,
354802,CORNERSTONE BARRISTERS,"2,250.00",Devt Management - Apps,Legal Expenses,20-Aug-21,2122/06,SME,N,
354680,VERTAS GROUP LTD,"1,440.00",Unapportionable Central OHs,Security Systems,31-Aug-21,2122/06,SME,N,
354851,VERTAS GROUP LTD,"4,557.00",Stowmarket CAP,Operating Lease Payments,01-Dec-17,2122/06,SME,Y,50%
354851,VERTAS GROUP LTD,"3,307.00",Stowmarket CAP,Contracted Services,01-Dec-17,2122/06,SME,Y,50%
355025,POSTURITE LTD,666.56,Health & Safety,Furniture,24-Sep-21,2122/06,SME,Y,50%
354818,MATT ALLMAN LTD T/A MOVEITCLEARITFINDIT,750,Homelessness Private Sector,Removal Expenses,15-Sep-21,2122/06,SME,N,
354898,BIRKETTS LLP,"1,000.00",BMS Invest,Legal Expenses,10-Aug-21,2122/06,LGE,Y,50%
354520,UK CONTAINER MAINTENANCE LTD,"3,012.00",Jnt Waste Contract,"Equipment, Tools & Materials",26-Aug-21,2122/06,SME,N,
354295,GALLAGHER CAR & VAN RENTALS LTD,"1,100.00",Domestic Waste,Refuse Contract,12-Jul-21,2122/06,LGE,N,
354609,GALLAGHER CAR & VAN RENTALS LTD,"1,100.00",Domestic Waste,Refuse Contract,06-Sep-21,2122/06,LGE,N,
354701,GALLAGHER CAR & VAN RENTALS LTD,546.43,Domestic Waste,Refuse Contract,08-Sep-21,2122/06,LGE,N,
354734,FORESOLUTIONS LTD,991.84,Street & Major Road Cleansing,Plant & Vehicle - Other costs,08-Sep-21,2122/06,SME,N,
354679,G H BULLARD & ASSOCIATES LLP,777,Mendlesham - New Build,Prof & Consultancy Fees,31-Aug-21,2122/06,SME,N,
354603,CHEC PLANNING LTD,"5,832.51",Nghbrhd Plan Designations,Prof & Consultancy Fees,03-Sep-21,2122/06,SME,N,
354627,MENDLESHAM MEDICAL GROUP,"43,296.00",CIL Funded REFCUS,Grants,06-Sep-21,2122/06,SME,N,
354535,INGLETON  WOOD LLP,"5,000.00",Eric Jones Rough Sleepers,Prof & Consultancy Fees,30-Jul-21,2122/06,LGE,N,
354850,GREEN SPARK PRODUCTION LTD T/A AV UNIT,"1,819.60",Cost of Democracy,"Equipment, Tools & Materials",07-Jul-21,2122/06,SME,N,
354742,OCEAN MEDIA GROUP LTD,"1,044.00",General/Supervision & Mgmt,Subscriptions,09-Jun-21,2122/06,SME,Y,50%
354271,NTM-GB LTD,"56,114.00",Vehicle and Plant Renewals,Plant & Vehicle - Purchase,20-Aug-21,2122/06,SME,N,
354271,NTM-GB LTD,220,Vehicle and Plant Renewals,Plant & Vehicle - Purchase,20-Aug-21,2122/06,SME,N,
422053,HM COURTS & TRIBUNALS SERVICE  (DD ONLY),255,Tenancy Services,Legal Expenses,01-Sep-21,2122/06,LGE,N,
354511,PUBLIC SEWER SERVICES,300,Building Services,Repairs,24-Aug-21,2122/06,SME,N,
354513,PUBLIC SEWER SERVICES,785.28,Building Services,Repairs,24-Aug-21,2122/06,SME,N,
354744,PUBLIC SEWER SERVICES,"1,546.79",Building Services,Repairs,31-Aug-21,2122/06,SME,N,
354829,PUBLIC SEWER SERVICES,548.62,Building Services,Repairs,29-Jul-21,2122/06,SME,N,
354830,PUBLIC SEWER SERVICES,357.34,Building Services,Repairs,30-Jul-21,2122/06,SME,N,
354639,ASPECT CONTRACTS LTD,"1,256.00",Asbestos,Improvements,31-Aug-21,2122/06,LGE,N,
354578,RIX PETROLEUM (EAST ANGLIA) LTD,"1,425.75",Open Spaces,Plant & Vehicle Fuel,07-Jul-21,2122/06,SME,N,
354468,KNOWLES ASSOCIATES TFM LTD,"13,692.82",HRA Vehicle Renewals,Plant & Vehicle - Purchase,19-Aug-21,2122/06,SME,N,
354890,KNOWLES ASSOCIATES TFM LTD,277.08,Building Services,Lease Cars - Payment,15-Sep-21,2122/06,SME,Y,50%
354336,NORTHUMBRIAN WATER LTD,"1,280.79",Sheltered Accommodation,Legionella Testing,25-Aug-21,2122/06,LGE,N,
354336,NORTHUMBRIAN WATER LTD,37.45,Tenancy Services,Legionella Testing,25-Aug-21,2122/06,LGE,N,
354337,NORTHUMBRIAN WATER LTD,28.9,Cedars Park,Legionella Testing,25-Aug-21,2122/06,LGE,N,
354337,NORTHUMBRIAN WATER LTD,28.9,Creeting Rd Depot,Legionella Testing,25-Aug-21,2122/06,LGE,Y,50%
354337,NORTHUMBRIAN WATER LTD,34.15,Headquarters General,Legionella Testing,25-Aug-21,2122/06,LGE,N,
354337,NORTHUMBRIAN WATER LTD,28.9,Leisure Contract,Legionella Testing,25-Aug-21,2122/06,LGE,N,
354337,NORTHUMBRIAN WATER LTD,183.9,Open Spaces,Legionella Testing,25-Aug-21,2122/06,LGE,N,
354337,NORTHUMBRIAN WATER LTD,34.15,Other HRA Temp Accommodation,Legionella Testing,25-Aug-21,2122/06,LGE,N,
354337,NORTHUMBRIAN WATER LTD,68.3,Public Conveniences,Legionella Testing,25-Aug-21,2122/06,LGE,N,
354337,NORTHUMBRIAN WATER LTD,470.25,Responsive maintenance,Legionella Testing,25-Aug-21,2122/06,LGE,N,
354337,NORTHUMBRIAN WATER LTD,404.55,Sheltered Accommodation,Legionella Testing,25-Aug-21,2122/06,LGE,N,
354337,NORTHUMBRIAN WATER LTD,68.3,Temporary Accommodation,Legionella Testing,25-Aug-21,2122/06,LGE,N,
354337,NORTHUMBRIAN WATER LTD,63.05,Wingfield Barns,Legionella Testing,25-Aug-21,2122/06,LGE,N,
355121,NORTHUMBRIAN WATER LTD,28.9,Cedars Park,Legionella Testing,28-Sep-21,2122/06,LGE,N,
355121,NORTHUMBRIAN WATER LTD,28.9,Creeting Rd Depot,Legionella Testing,28-Sep-21,2122/06,LGE,Y,50%
355121,NORTHUMBRIAN WATER LTD,34.15,Headquarters General,Legionella Testing,28-Sep-21,2122/06,LGE,N,
355121,NORTHUMBRIAN WATER LTD,28.9,Leisure Contract,Legionella Testing,28-Sep-21,2122/06,LGE,N,
355121,NORTHUMBRIAN WATER LTD,183.9,Open Spaces,Legionella Testing,28-Sep-21,2122/06,LGE,N,
355121,NORTHUMBRIAN WATER LTD,34.15,Other HRA Temp Accommodation,Legionella Testing,28-Sep-21,2122/06,LGE,N,
355121,NORTHUMBRIAN WATER LTD,68.3,Public Conveniences,Legionella Testing,28-Sep-21,2122/06,LGE,N,
355121,NORTHUMBRIAN WATER LTD,470.25,Responsive maintenance,Legionella Testing,28-Sep-21,2122/06,LGE,N,
355121,NORTHUMBRIAN WATER LTD,404.55,Sheltered Accommodation,Legionella Testing,28-Sep-21,2122/06,LGE,N,
355121,NORTHUMBRIAN WATER LTD,68.3,Temporary Accommodation,Legionella Testing,28-Sep-21,2122/06,LGE,N,
355121,NORTHUMBRIAN WATER LTD,63.05,Wingfield Barns,Legionella Testing,28-Sep-21,2122/06,LGE,N,
353848,GIPPING OCCUPATIONAL HEALTH LTD,285,Organisational Devt,Contracted Services,28-Jul-21,2122/06,SME,Y,50%
354739,GIPPING OCCUPATIONAL HEALTH LTD,506.25,Health & Safety,Contracted Services,09-Sep-21,2122/06,SME,N,50%
354739,GIPPING OCCUPATIONAL HEALTH LTD,168.75,Health & Safety,Training,09-Sep-21,2122/06,SME,Y,50%
355124,GIPPING OCCUPATIONAL HEALTH LTD,400,Health & Safety,Contracted Services,27-Sep-21,2122/06,SME,N,
354656,PARK AVENUE RECRUITMENT LTD,"1,763.00",Devt Management - Apps,Prof & Consultancy Fees,25-Aug-21,2122/06,SME,Y,46%
354725,PARK AVENUE RECRUITMENT LTD,"1,640.00",Devt Management - Apps,Prof & Consultancy Fees,07-Sep-21,2122/06,SME,Y,46%
354810,JOHN FORD GROUP LTD,"5,251.59",Mand Disabled Facilities Grant,Grants,14-Sep-21,2122/06,SME,N,
354750,ICENI,"2,421.12",Eves Meadow Haughley S106,Prof & Consultancy Fees,13-Sep-21,2122/06,SME,N,
354752,ICENI,"1,857.90","Back Hills, Botesdale, S106",Prof & Consultancy Fees,13-Sep-21,2122/06,SME,N,
354753,ICENI,"2,935.43","Green Road, Woolpit",Prof & Consultancy Fees,13-Sep-21,2122/06,SME,N,
355039,PORTAL PLAN QUEST LTD,462,Devt Management - Apps,Planning Fees,27-Sep-21,2122/06,SME,N,
355049,PORTAL PLAN QUEST LTD,462,Devt Management - Apps,Planning Fees,27-Sep-21,2122/06,SME,N,
355114,PORTAL PLAN QUEST LTD,"2,772.00",Devt Management - Apps,Planning Fees,28-Sep-21,2122/06,SME,N,
354655,MICHELLE BOLGER EXPERT LANDSCAPE CONSULT,"4,618.55",Devt Management - Apps,Landscape Consultancy,26-Aug-21,2122/06,SME,N,
354345,BELLWAY HOMES LIMITED (ESSEX DIVISION),"249,337.60",Eves Meadow Haughley S106,Prof & Consultancy Fees,20-Aug-21,2122/06,LGE,N,
354703,BELLWAY HOMES LIMITED (ESSEX DIVISION),"62,868.32",Eves Meadow Haughley S106,Prof & Consultancy Fees,06-Sep-21,2122/06,LGE,N,
354797,SOLACE IN BUSINESS,"9,600.00",Bus Imp (Corp),Agency Staff,10-Sep-21,2122/06,SME,Y,50%
354343,HAMSON BARRON SMITH LTD,"2,870.00",Pure Gym & Adjacent Building,Property Enhancements & Imps,23-Aug-21,2122/06,LGE,N,
354291,SUFFOLK POWER EQUIPMENT,260.25,Open Spaces,Plant & Vehicle - Other costs,21-Aug-21,2122/06,ST,N,
422054,3 POINT PROPERTY MANAGEMENT LTD,750,Guaranteed Rent Scheme,Rent Payable,10-Sep-21,2122/06,SME,N,
422063,3 POINT PROPERTY MANAGEMENT LTD,"1,450.00",Guaranteed Rent Scheme,Rent Payable,17-Sep-21,2122/06,SME,N,
354534,OAKPARK SECURITY SYSTEMS LTD,"1,840.00",General/Supervision & Mgmt,Contracted Services,31-Aug-21,2122/06,LGE,N,
354481,EDMUNDSON ELECTRICAL LTD (IPSWICH),308.52,Building Services,"Equipment, Tools & Materials",31-Aug-21,2122/06,LGE,N,
354717,EDMUNDSON ELECTRICAL LTD (IPSWICH),383.79,Building Services,"Equipment, Tools & Materials",06-Jul-21,2122/06,LGE,N,
354986,EDMUNDSON ELECTRICAL LTD (IPSWICH),516.22,Building Services,"Equipment, Tools & Materials",21-Sep-21,2122/06,LGE,N,
354775,ENSORS,"1,950.00",BMS Invest,Audit Fees,07-Sep-21,2122/06,SME,N,
354940,ENSORS,780,BMS Invest,Prof & Consultancy Fees,22-Sep-21,2122/06,SME,Y,50%
354840,HUGHES TRADE,524.88,Public Realm TransitionProject,"Equipment, Tools & Materials",16-Sep-21,2122/06,LGE,N,
354876,HUGHES TRADE,375.28,Temporary Accommodation,Furniture,20-Sep-21,2122/06,LGE,N,
422069,2ND EYE RAINBOWS,809.9,Bring Sites,Contributions & Donations,21-Sep-21,2122/06,SME,N,
353984,ANGLIA COMMERCIAL FLOORING LTD,533.76,Building Services,Repairs,03-Aug-21,2122/06,SME,N,
354944,ANGLIA COMMERCIAL FLOORING LTD,452.3,Building Services,Repairs,22-Sep-21,2122/06,SME,N,
354945,ANGLIA COMMERCIAL FLOORING LTD,672.84,Building Services,Repairs,22-Sep-21,2122/06,SME,N,
354947,ANGLIA COMMERCIAL FLOORING LTD,280.41,Building Services,Repairs,22-Sep-21,2122/06,SME,N,
354949,ANGLIA COMMERCIAL FLOORING LTD,504.28,Building Services,Repairs,22-Sep-21,2122/06,SME,N,
354950,ANGLIA COMMERCIAL FLOORING LTD,437.72,Building Services,Repairs,22-Sep-21,2122/06,SME,N,
354951,ANGLIA COMMERCIAL FLOORING LTD,430.32,Building Services,Repairs,22-Sep-21,2122/06,SME,N,
354953,ANGLIA COMMERCIAL FLOORING LTD,575.57,Building Services,Repairs,22-Sep-21,2122/06,SME,N,
354954,ANGLIA COMMERCIAL FLOORING LTD,361.16,Building Services,Repairs,22-Sep-21,2122/06,SME,N,
354955,ANGLIA COMMERCIAL FLOORING LTD,976.96,Building Services,Repairs,22-Sep-21,2122/06,SME,N,
354959,ANGLIA COMMERCIAL FLOORING LTD,288.36,Building Services,Repairs,22-Sep-21,2122/06,SME,N,
354966,ANGLIA COMMERCIAL FLOORING LTD,437.24,Building Services,Repairs,22-Sep-21,2122/06,SME,N,
354967,ANGLIA COMMERCIAL FLOORING LTD,441.56,Building Services,Repairs,22-Sep-21,2122/06,SME,N,
354970,ANGLIA COMMERCIAL FLOORING LTD,341.5,Building Services,Repairs,22-Sep-21,2122/06,SME,N,
354971,ANGLIA COMMERCIAL FLOORING LTD,512.24,Building Services,Repairs,22-Sep-21,2122/06,SME,N,
354974,ANGLIA COMMERCIAL FLOORING LTD,"1,357.54",Building Services,Repairs,22-Sep-21,2122/06,SME,N,
354978,ANGLIA COMMERCIAL FLOORING LTD,544.96,Building Services,Repairs,22-Sep-21,2122/06,SME,N,
354981,ANGLIA COMMERCIAL FLOORING LTD,430.32,Building Services,Repairs,22-Sep-21,2122/06,SME,N,
422145,ANGLIAN WATER BUS (NAT) LTD T/A WAVE,165.55,"11 Market Place, Stowmarket",Water Rates - Metered,27-Sep-21,2122/06,LGE,N,
422145,ANGLIAN WATER BUS (NAT) LTD T/A WAVE,"3,715.27",Creeting Rd Depot,Water Rates - Metered,27-Sep-21,2122/06,LGE,Y,50%
422145,ANGLIAN WATER BUS (NAT) LTD T/A WAVE,208.08,General/Supervision & Mgmt,Water Rates - Metered,27-Sep-21,2122/06,LGE,N,
422145,ANGLIAN WATER BUS (NAT) LTD T/A WAVE,746.22,Headquarters General,Water Rates - Metered,27-Sep-21,2122/06,LGE,N,
422145,ANGLIAN WATER BUS (NAT) LTD T/A WAVE,348.5,Open Spaces,Water Rates - Metered,27-Sep-21,2122/06,LGE,N,
422145,ANGLIAN WATER BUS (NAT) LTD T/A WAVE,"1,300.65",Public Conveniences,Water Rates - Metered,27-Sep-21,2122/06,LGE,N,
422145,ANGLIAN WATER BUS (NAT) LTD T/A WAVE,41.56,Recycling Centre,Water Rates - Metered,27-Sep-21,2122/06,LGE,N,
422145,ANGLIAN WATER BUS (NAT) LTD T/A WAVE,44.61,Sewage Treatment Works,Water Rates - Metered,27-Sep-21,2122/06,LGE,N,
422145,ANGLIAN WATER BUS (NAT) LTD T/A WAVE,"13,728.21",Sheltered Accommodation,Water Rates - Metered,27-Sep-21,2122/06,LGE,N,
422145,ANGLIAN WATER BUS (NAT) LTD T/A WAVE,191.82,Tacon Close Eye TDP,Water Rates - Metered,27-Sep-21,2122/06,LGE,N,
422145,ANGLIAN WATER BUS (NAT) LTD T/A WAVE,256.95,Temporary Accommodation,Water Rates - Metered,27-Sep-21,2122/06,LGE,N,
422145,ANGLIAN WATER BUS (NAT) LTD T/A WAVE,267.96,Tenancy Services,Water Rates - Metered,27-Sep-21,2122/06,LGE,N,
422145,ANGLIAN WATER BUS (NAT) LTD T/A WAVE,57.3,Wingfield Barns,Water Rates - Metered,27-Sep-21,2122/06,LGE,N,
422147,ANGLIAN WATER BUS (NAT) LTD T/A WAVE,28.39,"11 Market Place, Stowmarket",Water Rates - Metered,29-Sep-21,2122/06,LGE,N,
422147,ANGLIAN WATER BUS (NAT) LTD T/A WAVE,637.57,Creeting Rd Depot,Water Rates - Metered,29-Sep-21,2122/06,LGE,Y,50%
422147,ANGLIAN WATER BUS (NAT) LTD T/A WAVE,31.15,General/Supervision & Mgmt,Water Rates - Metered,29-Sep-21,2122/06,LGE,N,
422147,ANGLIAN WATER BUS (NAT) LTD T/A WAVE,119.29,Headquarters General,Water Rates - Metered,29-Sep-21,2122/06,LGE,N,
422147,ANGLIAN WATER BUS (NAT) LTD T/A WAVE,119.33,Open Spaces,Water Rates - Metered,29-Sep-21,2122/06,LGE,N,
422147,ANGLIAN WATER BUS (NAT) LTD T/A WAVE,"1,500.81",Public Conveniences,Water Rates - Metered,29-Sep-21,2122/06,LGE,N,
422147,ANGLIAN WATER BUS (NAT) LTD T/A WAVE,4.04,Recycling Centre,Water Rates - Metered,29-Sep-21,2122/06,LGE,N,
422147,ANGLIAN WATER BUS (NAT) LTD T/A WAVE,4.04,Sewage Treatment Works,Water Rates - Metered,29-Sep-21,2122/06,LGE,N,
422147,ANGLIAN WATER BUS (NAT) LTD T/A WAVE,"1,677.03",Sheltered Accommodation,Water Rates - Metered,29-Sep-21,2122/06,LGE,N,
422147,ANGLIAN WATER BUS (NAT) LTD T/A WAVE,37,Tacon Close Eye TDP,Water Rates - Metered,29-Sep-21,2122/06,LGE,N,
422147,ANGLIAN WATER BUS (NAT) LTD T/A WAVE,46.26,Temporary Accommodation,Water Rates - Metered,29-Sep-21,2122/06,LGE,N,
422147,ANGLIAN WATER BUS (NAT) LTD T/A WAVE,28.38,Tenancy Services,Water Rates - Metered,29-Sep-21,2122/06,LGE,N,
422147,ANGLIAN WATER BUS (NAT) LTD T/A WAVE,22.66,Wingfield Barns,Water Rates - Metered,29-Sep-21,2122/06,LGE,N,
422148,ANGLIAN WATER BUS (NAT) LTD T/A WAVE,25.4,"11 Market Place, Stowmarket",Water Rates - Metered,29-Sep-21,2122/06,LGE,N,
422148,ANGLIAN WATER BUS (NAT) LTD T/A WAVE,627.47,Creeting Rd Depot,Water Rates - Metered,29-Sep-21,2122/06,LGE,Y,50%
422148,ANGLIAN WATER BUS (NAT) LTD T/A WAVE,31.15,General/Supervision & Mgmt,Water Rates - Metered,29-Sep-21,2122/06,LGE,N,
422148,ANGLIAN WATER BUS (NAT) LTD T/A WAVE,119.29,Headquarters General,Water Rates - Metered,29-Sep-21,2122/06,LGE,N,
422148,ANGLIAN WATER BUS (NAT) LTD T/A WAVE,119.33,Open Spaces,Water Rates - Metered,29-Sep-21,2122/06,LGE,N,
422148,ANGLIAN WATER BUS (NAT) LTD T/A WAVE,13.47,Public Conveniences,Water Rates - Metered,29-Sep-21,2122/06,LGE,N,
422148,ANGLIAN WATER BUS (NAT) LTD T/A WAVE,-3.24,Recycling Centre,Water Rates - Metered,29-Sep-21,2122/06,LGE,N,
422148,ANGLIAN WATER BUS (NAT) LTD T/A WAVE,4.04,Sewage Treatment Works,Water Rates - Metered,29-Sep-21,2122/06,LGE,N,
422148,ANGLIAN WATER BUS (NAT) LTD T/A WAVE,"1,859.59",Sheltered Accommodation,Water Rates - Metered,29-Sep-21,2122/06,LGE,N,
422148,ANGLIAN WATER BUS (NAT) LTD T/A WAVE,16.42,Tacon Close Eye TDP,Water Rates - Metered,29-Sep-21,2122/06,LGE,N,
422148,ANGLIAN WATER BUS (NAT) LTD T/A WAVE,43.28,Temporary Accommodation,Water Rates - Metered,29-Sep-21,2122/06,LGE,N,
422148,ANGLIAN WATER BUS (NAT) LTD T/A WAVE,40.3,Tenancy Services,Water Rates - Metered,29-Sep-21,2122/06,LGE,N,
422148,ANGLIAN WATER BUS (NAT) LTD T/A WAVE,9.55,Wingfield Barns,Water Rates - Metered,29-Sep-21,2122/06,LGE,N,
354681,BURY ST EDMUNDS VETERINARY CENTRE,289.58,Animal Welfare Licensing,Prof & Consultancy Fees,24-Jun-21,2122/06,SME,N,
354659,PARKYNS LETTINGS BURY ST EDMUNDS,650,Guaranteed Rent Scheme,Rent Payable,07-Sep-21,2122/06,SME,N,
354893,ALBION COMPUTERS PLC,"2,520.00",Jnt Waste Contract,Computer Equpt Purchases,20-Sep-21,2122/06,SME,Y,50%
422125,THE CODDENHAM CENTRE,330.37,Bring Sites,Contributions & Donations,21-Sep-21,2122/06,SME,N,
354834,GATEHOUSE CARING IN EAST ANGLIA,253,RoughSleepersInterventionYr3,Furniture,16-Sep-21,2122/06,SME,N,
354834,GATEHOUSE CARING IN EAST ANGLIA,25,RoughSleepersInterventionYr3,Furniture,16-Sep-21,2122/06,SME,N,
354670,CLOSOMAT LTD,495,Building Services,Repairs,08-Sep-21,2122/06,SME,N,
354630,OLD NEWTON UNDER FIVES,"1,001.22",Grants & Contrbns,Contributions & Donations,07-Sep-21,2122/06,SME,N,
354617,EYES OPEN CIC,768.75,Grants & Contrbns,Grants,06-Sep-21,2122/06,SME,N,
354816,MODECE ARCHITECTS LTD,"16,406.25",Shop Front & Access Imp Grants,Repairs,15-Sep-21,2122/06,SME,N,
355110,LIMELEASE LTD,395,Guaranteed Rent Scheme,Rent Payable,28-Sep-21,2122/06,SME,N,
354483,JLV PROPERTY LTD,500,Guaranteed Rent Scheme,Rent Payable,01-Sep-21,2122/06,SME,N,
354911,BUCHER MUNICIPAL LTD,531.36,Street & Major Road Cleansing,Plant & Vehicle - Other costs,21-Sep-21,2122/06,LGE,N,
354754,GIPPING CONSTRUCTION LTD,"23,802.94",Regen Fund - HQ Sites,Prof & Consultancy Fees,26-Aug-21,2122/06,SME,N,
354754,GIPPING CONSTRUCTION LTD,"311,623.06",Needham Market Middle School,Prof & Consultancy Fees,26-Aug-21,2122/06,SME,N,
354908,PRIVATE LANDLORD,786.5,Rent Deposit Scheme,Rent Payable,21-Sep-21,2122/06,ST,N,
355127,BURO HAPPOLD LTD,"24,500.00",BRRP-InnovationClusterStowmkt,Prof & Consultancy Fees,28-Sep-21,2122/06,SME,N,
354922,HANDICARE AGE UK BATHING,"2,450.00",Mand Disabled Facilities Grant,Grants,20-Sep-21,2122/06,SME,N,
354698,AFFINITY HEALTH AT WORK LTD,"4,000.00",Cost of Democracy,Training,22-Jun-21,2122/06,SME,Y,50%
354123,MRS SHELLEY SPALL T/A CLEANING COVERED,896,Business Cont/Emergency Plan,General Cleaning,10-Aug-21,2122/06,SME,N,
354577,MRS SHELLEY SPALL T/A CLEANING COVERED,896,Business Cont/Emergency Plan,General Cleaning,02-Sep-21,2122/06,SME,N,
354755,MRS SHELLEY SPALL T/A CLEANING COVERED,896,Business Cont/Emergency Plan,General Cleaning,13-Sep-21,2122/06,SME,N,
354469,CORENERGY LIMITED,900,Public Sector Decarbonisation,Contracted Services,31-Aug-21,2122/06,SME,N,
354474,CORENERGY LIMITED,"41,899.20",Public Sector Decarbonisation,Contracted Services,31-Aug-21,2122/06,SME,N,
354475,CORENERGY LIMITED,"222,033.60",Public Sector Decarbonisation,Contracted Services,31-Aug-21,2122/06,SME,N,
354710,PRIVATE LANDLORD,786.5,Guaranteed Rent Scheme,Rent Payable,13-Sep-21,2122/06,ST,N,
354671,COUNTRYSTYLE RECYCLING LTD,562,Trade Waste,Trade Waste Disposal,31-Aug-21,2122/06,SME,Y,50%
354672,COUNTRYSTYLE RECYCLING LTD,297.21,Bring Sites,Contracted Services,31-Aug-21,2122/06,SME,N,
354906,TEMPLE LETTINGS,650,Guaranteed Rent Scheme,Rent Payable,21-Sep-21,2122/06,SME,N,
354448,DGL QUALITY MANAGEMENT LTD,870.76,Needham Market Middle School,Prof & Consultancy Fees,31-Aug-21,2122/06,SME,N,
354747,RSK LAND & DEVELOPMENT ENGINEERING LTD,"1,250.00",Strategic Assets,Prof & Consultancy Fees,31-Aug-21,2122/06,LGE,N,
354748,RSK LAND & DEVELOPMENT ENGINEERING LTD,"2,500.00",Strategic Assets,Prof & Consultancy Fees,31-Aug-21,2122/06,LGE,N,
422080,DEMENTIA UK,301.24,Bring Sites,Contributions & Donations,21-Sep-21,2122/06,SME,N,
354395,VECTEC LIMITED,"59,525.00",Jnt Waste Contract,"Equipment, Tools & Materials",27-Aug-21,2122/06,SME,Y,55%
354811,PCC OF STOWMARKET,"2,554.92",Community Fund Projects-Grants,Grants,14-Sep-21,2122/06,SME,N,
354524,ARAN INSULATION LTD,"1,223.44",Insulation Imps,Improvements,25-Aug-21,2122/06,SME,N,
354525,ARAN INSULATION LTD,"1,223.44",Insulation Imps,Improvements,25-Aug-21,2122/06,SME,N,
354526,ARAN INSULATION LTD,"1,313.20",Insulation Imps,Improvements,25-Aug-21,2122/06,SME,N,
354527,ARAN INSULATION LTD,994.1,Insulation Imps,Improvements,25-Aug-21,2122/06,SME,N,
354528,ARAN INSULATION LTD,"1,002.26",Insulation Imps,Improvements,25-Aug-21,2122/06,SME,N,
354529,ARAN INSULATION LTD,"1,200.14",Insulation Imps,Improvements,25-Aug-21,2122/06,SME,N,
354530,ARAN INSULATION LTD,"1,200.14",Insulation Imps,Improvements,25-Aug-21,2122/06,SME,N,
354531,ARAN INSULATION LTD,"1,230.40",Insulation Imps,Improvements,25-Aug-21,2122/06,SME,N,
354532,ARAN INSULATION LTD,"1,363.20",Insulation Imps,Improvements,25-Aug-21,2122/06,SME,N,
354533,ARAN INSULATION LTD,"1,427.14",Insulation Imps,Improvements,25-Aug-21,2122/06,SME,N,
354877,ARAN INSULATION LTD,"16,048.00",Insulation Imps,Improvements,09-Sep-21,2122/06,SME,N,
354878,ARAN INSULATION LTD,"3,480.00",Building Services,Repairs,09-Sep-21,2122/06,SME,N,
354517,IAN BOOTH CONSULTANT ENGINEER LTD,960,Strategic Assets,Prof & Consultancy Fees,31-Aug-21,2122/06,SME,N,
354997,IHASCO LTD,600,Organisational Devt,Training,13-Jul-21,2122/06,SME,Y,50%
355031,MELLIS CRICKET CLUB,"1,100.00",Grants & Contrbns,Contributions & Donations,24-Sep-21,2122/06,SME,N,
355029,DEBENHAM LEISURE CENTRE FOOTBALL CLUB,800,Grants & Contrbns,Contributions & Donations,24-Sep-21,2122/06,SME,N,
354484,MARCHDELL LTD,715,Guaranteed Rent Scheme,Rent Payable,01-Sep-21,2122/06,SME,N,
354575,SSE,538,Homeless Prevention Fund,Misc Supplies & Services Costs,02-Sep-21,2122/06,LGE,N,
354676,SSE,347.1,Homeless Prevention Fund,Misc Supplies & Services Costs,08-Sep-21,2122/06,LGE,N,
354572,SEH FRENCH LTD,"75,430.00",Needham Lake Vis Centre (CAP),Major Contracts,23-Aug-21,2122/06,SME,N,
354765,SEH FRENCH LTD,"66,078.00",Needham Lake Vis Centre (CAP),Major Contracts,14-Sep-21,2122/06,SME,N,
354923,PRIVATE LANDLORD,669,Guaranteed Rent Scheme,Rent Payable,22-Sep-21,2122/06,ST,N,
355013,ELECTRICAL TESTING LTD,"2,035.62",C Parks General,Repairs,24-Sep-21,2122/06,SME,N,
354479,STOWMARKET STRIDERS RUNNING CLUB,"2,010.00",Suffolk Community Restart Fund,Contributions from other LAs,31-Aug-21,2122/06,SME,N,
354478,JUNGLE CUBS & GIANTS  CIC,"2,101.97",Suffolk Community Restart Fund,Contributions from other LAs,01-Sep-21,2122/06,SME,N,
355014,SUFFOLK CHINESE FAMILY WELFARE ASSOC,"1,250.00",Suffolk Community Restart Fund,Grants,24-Sep-21,2122/06,SME,N,
355015,PCC OF MENDLESHAM,957.73,Suffolk Community Restart Fund,Grants,24-Sep-21,2122/06,SME,N,
354820,JACKSON LIFT SERVICES LTD,624.99,Sheltered Accommodation,Plant Maintenance,07-Sep-21,2122/06,LGE,N,
354638,PRIVATE LANDLORD,"1,400.00",Rent Deposit Scheme,Misc Premises Costs,03-Sep-21,2122/06,ST,N,
354631,ROOKERY BOWLS CLUB,928.8,Grants & Contrbns,Contributions & Donations,07-Sep-21,2122/06,SME,N,
354632,5TH STOWMARKET BROWNIES,427.77,Grants & Contrbns,Contributions & Donations,07-Sep-21,2122/06,SME,N,
354633,CODDENHAM COMMUNITY SHOP LTD,"2,000.00",Grants & Contrbns,Contributions & Donations,07-Sep-21,2122/06,SME,N,
354635,OLD NEWTON BOWLS CLUB,960,Grants & Contrbns,Contributions & Donations,08-Sep-21,2122/06,SME,N,
354636,SOMERSHAM AND DISTRICT COMMUNITY SHOP,"1,250.00",Grants & Contrbns,Contributions & Donations,08-Sep-21,2122/06,SME,N,
422056,MUSKER MCINTYRE DISS LETTINGS,650,Rent Deposit Scheme,Misc Premises Costs,14-Sep-21,2122/06,SME,N,
422057,MUSKER MCINTYRE DISS LETTINGS,605,Rent Deposit Scheme,Misc Premises Costs,14-Sep-21,2122/06,SME,N,
422058,MUSKER MCINTYRE DISS LETTINGS,525,Homeless Prevention Fund,Misc Supplies & Services Costs,14-Sep-21,2122/06,SME,N,
354814,BRAND PLUMBING & HEATING LTD,"6,197.65",Mand Disabled Facilities Grant,Grants,14-Sep-21,2122/06,SME,N,
355037,MK AUTOS MOT CENTRE LIMITED,300,Taxi & Private Hire Licensing,Contracted Services,31-Aug-21,2122/06,SME,N,
355061,VIKINGS ESTATE AGENCY,"1,238.45",Rent Deposit Scheme,Misc Premises Costs,20-Sep-21,2122/06,SME,N,
355017,STOWMARKET VOLLEYBALL CLUB,"2,500.00",Suffolk Community Restart Fund,Grants,24-Sep-21,2122/06,SME,N,
355021,GREAT BLAKENHAM CYCLE SPEEDWAY CLUB,"2,500.00",Suffolk Community Restart Fund,Grants,24-Sep-21,2122/06,SME,N,
355016,THE BLOSSOM CHARITY,"2,117.50",Suffolk Community Restart Fund,Grants,24-Sep-21,2122/06,SME,N,
355112,K FLATMAN BUILDERS,"3,433.00",Renovation/Home Repair Grants,Grants,28-Sep-21,2122/06,ST,N,
355022,LEX AUTOLEASE,-307.14,Building Services,Lease Cars - Payment,07-Sep-21,2122/06,SME,Y,50%
354931,BRITISH RED CROSS,-117,Organisational Devt,Health & Safety Training,14-Sep-21,2122/06,SME,Y,50%
